Workbook

Sheet Notes

Sheet NEED Table Creator
F1: 2 | G1: 3 | H1: 4 | I1: 5 | J1: 6 | K1: 7 | L1: 8 | M1: 9 | N1: 10 | O1: 11
T3: Number of Observations | W3: =D13 -> Region
T4: =IF(I5=T3, "", I5) -> Median | W4: =F11 -> Property Age
D5: Variable 1 (Column) | E5: Property Age | H5: Median/Mean: | I5: Median | J5: Fuel: | K5: Electricity | L5: Year: | M5: 2012 | W5: =CONCATENATE(F9, " by ", W4, " and ", W3) -> Median Electricity Consumption 2012 (kWh) by Property Age and Region
T6: =IF(I5=T3, "Number of Properties", "(kWh)") -> (kWh)
D7: Variable 2 (Row) | E7: Region | W7: =IF(D13=AB11,"IMD - 1 is most deprives and IMD - 5 is least deprived",IF(D13=AA11,"FP - 1 is most fuel poor and FP - 5 is least fuel poor"," ")) -> 
W8: =IF(F11=AB11,"IMD - 1 is most deprives and IMD - 5 is least deprived",IF(F11=AA11,"FP-1 is most fuel poor and FP -5 is least fuel poor"," ")) -> 
F9: =CONCATENATE(T4," ",K5," Consumption ",M5, " ", T6) -> Median Electricity Consumption 2012 (kWh) | W9: =IF(OR(D13=AB11,D13=AA11,F11=AB11,F11=AA11), "Total all properties is for all properties in England and Wales, total for each quintile is total for all properties in England only.", " ") -> 
T10: Variables | AE10: Selections for drop down menus: | AI10: Vlookup to choose correct column from tables | AO10: Data cell contents | AR10: Electricity | BP10: Gas | CP10: Data Totals | CS10: Electricity | DQ10: Gas
F11: =E5 -> Property Age | P11: All | T11: Property Age | U11: Property Type | V11: Number of Bedrooms | W11: Floor Area (m2) | X11: Tenure | Y11: Income | Z11: Number of Adults | AA11: Fuel Poverty Quintile | AB11: Index of Multiple Deprivation Quintile | AC11: Region | AE11: Mean/Median | AF11: Fuel | AG11: Year | AR11: 2012 | AU11: 2011 | AX11: 2010 | BA11: 2009 | BD11: 2008 | BG11: 2007 | BJ11: 2006 | BM11: 2005 | BP11: 2012 | BS11: 2011 | BV11: 2010 | BY11: 2009 | CB11: 2008 | CE11: 2007 | CH11: 2006 | CK11: 2005 | CS11: 2012 | CV11: 2011 | CY11: 2010 | DB11: 2009 | DE11: 2008 | DH11: 2007 | DK11: 2006 | DN11: 2005 | DQ11: 2012 | DT11: 2011 | DW11: 2010 | DZ11: 2009 | EC11: 2008 | EF11: 2007 | EI11: 2006 | EL11: 2005
F12: =HLOOKUP($F$11,$T$11:$AC$21,F$1,FALSE) -> Pre 1919 | G12: 1919-44 | H12: 1945-64 | I12: 1965-82 | J12: 1983-92 | K12: 1993-99 | L12: Post 1999 | M12: 0 | N12: 0 | O12: =HLOOKUP($F$11,$T$11:$AC$21,O$1,FALSE) -> 0 | T12: Pre 1919 | U12: Detached | V12: 1 bedroom | W12: 50 or less | X12: Owner-occupied | Y12: Less than £15,000 | Z12: 1 | AA12: FP - 1 | AB12: IMD - 1 | AC12: North East | AE12: Median | AF12: Gas | AG12: 2005 | AI12: MedianElectricity2012 | AJ12: 2 | AO12: Attribute 1 | AP12: Attribute 2 | AQ12: Concat for lookup | AR12: Median | AS12: Mean | AT12: N | AU12: Median | AV12: Mean | AW12: N | AX12: Median | AY12: Mean | AZ12: N | BA12: Median | BB12: Mean | BC12: N | BD12: Median | BE12: Mean | BF12: N | BG12: Median | BH12: Mean | BI12: N | BJ12: Median | BK12: Mean | BL12: N | BM12: Median | BN12: Mean | BO12: N | BP12: Median | BQ12: Mean | BR12: N | BS12: Median | BT12: Mean | BU12: N | BV12: Median | BW12: Mean | BX12: N | BY12: Median | BZ12: Mean | CA12: N | CB12: Median | CC12: Mean | CD12: N | CE12: Median | CF12: Mean | CG12: N | CH12: Median | CI12: Mean | CJ12: N | CK12: Median | CL12: Mean | CM12: N | CP12: Variable | CR12: Concat for lookup | CS12: Median | CT12: Mean | CU12: N | CV12: Median | CW12: Mean | CX12: N | CY12: Median | CZ12: Mean | DA12: N | DB12: Median | DC12: Mean | DD12: N | DE12: Median | DF12: Mean | DG12: N | DH12: Median | DI12: Mean | DJ12: N | DK12: Median | DL12: Mean | DM12: N | DN12: Median | DO12: Mean | DP12: N | DQ12: Median | DR12: Mean | DS12: N | DT12: Median | DU12: Mean | DV12: N | DW12: Median | DX12: Mean | DY12: N | DZ12: Median | EA12: Mean | EB12: N | EC12: Median | ED12: Mean | EE12: N | EF12: Median | EG12: Mean | EH12: N | EI12: Median | EJ12: Mean | EK12: N | EL12: Median | EM12: Mean | EN12: N
D13: =E7 -> Region | E13: =HLOOKUP($D$13,$T$11:$AC$21,$A14,FALSE) -> North East | F13: =VLOOKUP(CONCATENATE($E13,F$12),$AQ$13:$CM$3856,(VLOOKUP(CONCATENATE($I$5,$K$5,$M$5), $AI$12:$AL$59, 2, FALSE)),FALSE) -> 3000 | G13: =VLOOKUP(CONCATENATE($E13,G$12),$AQ$13:$CM$3856,(VLOOKUP(CONCATENATE($I$5,$K$5,$M$5), $AI$12:$AL$59, 2, FALSE)),FALSE) -> 3000 | H13: =VLOOKUP(CONCATENATE($E13,H$12),$AQ$13:$CM$3856,(VLOOKUP(CONCATENATE($I$5,$K$5,$M$5), $AI$12:$AL$59, 2, FALSE)),FALSE) -> 2900 | I13: =VLOOKUP(CONCATENATE($E13,I$12),$AQ$13:$CM$3856,(VLOOKUP(CONCATENATE($I$5,$K$5,$M$5), $AI$12:$AL$59, 2, FALSE)),FALSE) -> 2900 | J13: =VLOOKUP(CONCATENATE($E13,J$12),$AQ$13:$CM$3856,(VLOOKUP(CONCATENATE($I$5,$K$5,$M$5), $AI$12:$AL$59, 2, FALSE)),FALSE) -> 3100 | K13: =VLOOKUP(CONCATENATE($E13,K$12),$AQ$13:$CM$3856,(VLOOKUP(CONCATENATE($I$5,$K$5,$M$5), $AI$12:$AL$59, 2, FALSE)),FALSE) -> 3500 | L13: =VLOOKUP(CONCATENATE($E13,L$12),$AQ$13:$CM$3856,(VLOOKUP(CONCATENATE($I$5,$K$5,$M$5), $AI$12:$AL$59, 2, FALSE)),FALSE) -> 3200 | M13: =VLOOKUP(CONCATENATE($E13,M$12),$AQ$13:$CM$3856,(VLOOKUP(CONCATENATE($I$5,$K$5,$M$5), $AI$12:$AL$59, 2, FALSE)),FALSE) ->  | N13: =VLOOKUP(CONCATENATE($E13,N$12),$AQ$13:$CM$3856,(VLOOKUP(CONCATENATE($I$5,$K$5,$M$5), $AI$12:$AL$59, 2, FALSE)),FALSE) ->  | O13: =VLOOKUP(CONCATENATE($E13,O$12),$AQ$13:$CM$3856,(VLOOKUP(CONCATENATE($I$5,$K$5,$M$5), $AI$12:$AL$59, 2, FALSE)),FALSE) ->  | P13: =VLOOKUP(CONCATENATE($D$13,E13),$CR$13:$EN$75,(VLOOKUP(CONCATENATE($I$5,$K$5,$M$5), $AI$12:$AJ$59, 2, FALSE)),FALSE) -> 3000 | T13: 1919-44 | U13: Semi detached | V13: 2 bedrooms | W13: 51 to 100 | X13: Privately rented | Y13: £15,000 - £19,999 | Z13: 2 | AA13: FP - 2 | AB13: IMD - 2 | AC13: North West | AE13: Mean | AF13: Electricity | AG13: 2006 | AI13: MeanElectricity2012 | AJ13: 3 | AN13: 1 | AO13: Pre 1919 | AP13: Detached | AQ13: =CONCATENATE(AO13,AP13) -> Pre 1919Detached | AR13: 5600 | AS13: 7100 | AT13: 79770 | AU13: 5800 | AV13: 7200 | AW13: 80970 | AX13: 5900 | AY13: 7300 | AZ13: 70590 | BA13: 5900 | BB13: 7300 | BC13: 69770 | BD13: 5900 | BE13: 7300 | BF13: 69320 | BG13: 6200 | BH13: 7500 | BI13: 69020 | BJ13: 6300 | BK13: 7600 | BL13: 69770 | BM13: 6500 | BN13: 7800 | BO13: 60030 | BP13: 23900 | BQ13: 24800 | BR13: 32050 | BS13: 23700 | BT13: 24600 | BU13: 33800 | BV13: 25400 | BW13: 26100 | BX13: 30660 | BY13: 25300 | BZ13: 26000 | CA13: 33060 | CB13: 27300 | CC13: 27500 | CD13: 28030 | CE13: 28100 | CF13: 28100 | CG13: 27080 | CH13: 28700 | CI13: 28500 | CJ13: 26170 | CK13: 29500 | CL13: 29300 | CM13: 24890 | CP13: Property Age | CQ13: Pre 1919 | CR13: =CONCATENATE(CP13,CQ13) -> Property AgePre 1919 | CS13: 3300 | CT13: 4400 | CU13: 709060 | CV13: 3400 | CW13: 4400 | CX13: 718800 | CY13: 3500 | CZ13: 4400 | DA13: 658880 | DB13: 3500 | DC13: 4500 | DD13: 649880 | DE13: 3500 | DF13: 4500 | DG13: 646160 | DH13: 3600 | DI13: 4700 | DJ13: 645480 | DK13: 3700 | DL13: 4700 | DM13: 649530 | DN13: 3800 | DO13: 4900 | DP13: 571990 | DQ13: 13600 | DR13: 15100 | DS13: 550070 | DT13: 13600 | DU13: 15100 | DV13: 575620 | DW13: 14800 | DX13: 16300 | DY13: 513820 | DZ13: 14800 | EA13: 16300 | EB13: 560800 | EC13: 16400 | ED13: 17800 | EE13: 492220 | EF13: 17000 | EG13: 18300 | EH13: 484230 | EI13: 17500 | EJ13: 18800 | EK13: 474370 | EL13: 18400 | EM13: 19600 | EN13: 461460
A14: 2 | E14: North West | F14: =VLOOKUP(CONCATENATE($E14,F$12),$AQ$13:$CM$3856,(VLOOKUP(CONCATENATE($I$5,$K$5,$M$5), $AI$12:$AL$59, 2, FALSE)),FALSE) -> 3200 | G14: =VLOOKUP(CONCATENATE($E14,G$12),$AQ$13:$CM$3856,(VLOOKUP(CONCATENATE($I$5,$K$5,$M$5), $AI$12:$AL$59, 2, FALSE)),FALSE) -> 3400 | H14: =VLOOKUP(CONCATENATE($E14,H$12),$AQ$13:$CM$3856,(VLOOKUP(CONCATENATE($I$5,$K$5,$M$5), $AI$12:$AL$59, 2, FALSE)),FALSE) -> 3200 | I14: =VLOOKUP(CONCATENATE($E14,I$12),$AQ$13:$CM$3856,(VLOOKUP(CONCATENATE($I$5,$K$5,$M$5), $AI$12:$AL$59, 2, FALSE)),FALSE) -> 3200 | J14: =VLOOKUP(CONCATENATE($E14,J$12),$AQ$13:$CM$3856,(VLOOKUP(CONCATENATE($I$5,$K$5,$M$5), $AI$12:$AL$59, 2, FALSE)),FALSE) -> 3300 | K14: =VLOOKUP(CONCATENATE($E14,K$12),$AQ$13:$CM$3856,(VLOOKUP(CONCATENATE($I$5,$K$5,$M$5), $AI$12:$AL$59, 2, FALSE)),FALSE) -> 3600 | L14: =VLOOKUP(CONCATENATE($E14,L$12),$AQ$13:$CM$3856,(VLOOKUP(CONCATENATE($I$5,$K$5,$M$5), $AI$12:$AL$59, 2, FALSE)),FALSE) -> 3700 | M14: =VLOOKUP(CONCATENATE($E14,M$12),$AQ$13:$CM$3856,(VLOOKUP(CONCATENATE($I$5,$K$5,$M$5), $AI$12:$AL$59, 2, FALSE)),FALSE) ->  | N14: =VLOOKUP(CONCATENATE($E14,N$12),$AQ$13:$CM$3856,(VLOOKUP(CONCATENATE($I$5,$K$5,$M$5), $AI$12:$AL$59, 2, FALSE)),FALSE) ->  | O14: =VLOOKUP(CONCATENATE($E14,O$12),$AQ$13:$CM$3856,(VLOOKUP(CONCATENATE($I$5,$K$5,$M$5), $AI$12:$AL$59, 2, FALSE)),FALSE) ->  | P14: 3300 | T14: 1945-64 | U14: End terrace | V14: 3 bedrooms | W14: 101 to 150 | X14: Council/Housing Association | Y14: £20,000 - £29,999 | Z14: 3 | AA14: FP - 3 | AB14: IMD - 3 | AC14: Yorks & Humber | AE14: Number of Observations | AG14: 2007 | AI14: Number of ObservationsElectricity2012 | AJ14: 4 | AN14: 2 | AO14: 1919-44 | AP14: Detached | AQ14: 1919-44Detached | AR14: 4800 | AS14: 5700 | AT14: 62550 | AU14: 4900 | AV14: 5800 | AW14: 63150 | AX14: 5000 | AY14: 5900 | AZ14: 64140 | BA14: 5000 | BB14: 5900 | BC14: 63440 | BD14: 5000 | BE14: 6000 | BF14: 63290 | BG14: 5300 | BH14: 6200 | BI14: 63150 | BJ14: 5300 | BK14: 6300 | BL14: 63670 | BM14: 5500 | BN14: 6400 | BO14: 57190 | BP14: 23500 | BQ14: 24400 | BR14: 50770 | BS14: 23000 | BT14: 24100 | BU14: 53300 | BV14: 24800 | BW14: 25600 | BX14: 52230 | BY14: 24800 | BZ14: 25600 | CA14: 55490 | CB14: 27000 | CC14: 27500 | CD14: 48900 | CE14: 27600 | CF14: 28000 | CG14: 47700 | CH14: 28500 | CI14: 28700 | CJ14: 46530 | CK14: 29600 | CL14: 29600 | CM14: 44470 | CP14: Property Age | CQ14: 1919-44 | CR14: =CONCATENATE(CP14,CQ14) -> Property Age1919-44 | CS14: 3500 | CT14: 4200 | CU14: 618450 | CV14: 3600 | CW14: 4200 | CX14: 624050 | CY14: 3600 | CZ14: 4300 | DA14: 636200 | DB14: 3600 | DC14: 4300 | DD14: 629950 | DE14: 3600 | DF14: 4300 | DG14: 626570 | DH14: 3800 | DI14: 4500 | DJ14: 627590 | DK14: 3800 | DL14: 4600 | DM14: 630150 | DN14: 3900 | DO14: 4700 | DP14: 561410 | DQ14: 14700 | DR14: 15700 | DS14: 547960 | DT14: 14600 | DU14: 15700 | DV14: 571990 | DW14: 15800 | DX14: 16900 | DY14: 565010 | DZ14: 16000 | EA14: 17000 | EB14: 602810 | EC14: 17600 | ED14: 18600 | EE14: 546120 | EF14: 18300 | EG14: 19200 | EH14: 538310 | EI14: 19000 | EJ14: 19800 | EK14: 529660 | EL14: 19900 | EM14: 20700 | EN14: 516660
A15: 3 | E15: Yorks & Humber | F15: =VLOOKUP(CONCATENATE($E15,F$12),$AQ$13:$CM$3856,(VLOOKUP(CONCATENATE($I$5,$K$5,$M$5), $AI$12:$AL$59, 2, FALSE)),FALSE) -> 3100 | G15: =VLOOKUP(CONCATENATE($E15,G$12),$AQ$13:$CM$3856,(VLOOKUP(CONCATENATE($I$5,$K$5,$M$5), $AI$12:$AL$59, 2, FALSE)),FALSE) -> 3200 | H15: =VLOOKUP(CONCATENATE($E15,H$12),$AQ$13:$CM$3856,(VLOOKUP(CONCATENATE($I$5,$K$5,$M$5), $AI$12:$AL$59, 2, FALSE)),FALSE) -> 3000 | I15: =VLOOKUP(CONCATENATE($E15,I$12),$AQ$13:$CM$3856,(VLOOKUP(CONCATENATE($I$5,$K$5,$M$5), $AI$12:$AL$59, 2, FALSE)),FALSE) -> 3000 | J15: =VLOOKUP(CONCATENATE($E15,J$12),$AQ$13:$CM$3856,(VLOOKUP(CONCATENATE($I$5,$K$5,$M$5), $AI$12:$AL$59, 2, FALSE)),FALSE) -> 3100 | K15: =VLOOKUP(CONCATENATE($E15,K$12),$AQ$13:$CM$3856,(VLOOKUP(CONCATENATE($I$5,$K$5,$M$5), $AI$12:$AL$59, 2, FALSE)),FALSE) -> 3400 | L15: =VLOOKUP(CONCATENATE($E15,L$12),$AQ$13:$CM$3856,(VLOOKUP(CONCATENATE($I$5,$K$5,$M$5), $AI$12:$AL$59, 2, FALSE)),FALSE) -> 3600 | M15: =VLOOKUP(CONCATENATE($E15,M$12),$AQ$13:$CM$3856,(VLOOKUP(CONCATENATE($I$5,$K$5,$M$5), $AI$12:$AL$59, 2, FALSE)),FALSE) ->  | N15: =VLOOKUP(CONCATENATE($E15,N$12),$AQ$13:$CM$3856,(VLOOKUP(CONCATENATE($I$5,$K$5,$M$5), $AI$12:$AL$59, 2, FALSE)),FALSE) ->  | O15: =VLOOKUP(CONCATENATE($E15,O$12),$AQ$13:$CM$3856,(VLOOKUP(CONCATENATE($I$5,$K$5,$M$5), $AI$12:$AL$59, 2, FALSE)),FALSE) ->  | P15: 3100 | T15: 1965-82 | U15: Mid terrace | V15: 4 bedrooms | W15: 151 to 200 | Y15: £30,000 - £39,999 | Z15: 4 | AA15: FP - 4 | AB15: IMD - 4 | AC15: East Midlands | AG15: 2008 | AI15: MedianElectricity2011 | AJ15: 5 | AN15: 3 | AO15: 1945-64 | AP15: Detached | AQ15: 1945-64Detached | AR15: 4300 | AS15: 5200 | AT15: 60270 | AU15: 4400 | AV15: 5300 | AW15: 60760 | AX15: 4500 | AY15: 5300 | AZ15: 61450 | BA15: 4500 | BB15: 5300 | BC15: 60960 | BD15: 4500 | BE15: 5300 | BF15: 60600 | BG15: 4700 | BH15: 5600 | BI15: 60630 | BJ15: 4800 | BK15: 5700 | BL15: 61150 | BM15: 4900 | BN15: 5800 | BO15: 54030 | BP15: 20600 | BQ15: 21700 | BR15: 50340 | BS15: 20300 | BT15: 21500 | BU15: 52690 | BV15: 21800 | BW15: 22800 | BX15: 52040 | BY15: 21900 | BZ15: 23000 | CA15: 54930 | CB15: 24000 | CC15: 24900 | CD15: 49480 | CE15: 24700 | CF15: 25500 | CG15: 48500 | CH15: 25600 | CI15: 26200 | CJ15: 47750 | CK15: 26700 | CL15: 27300 | CM15: 46290 | CP15: Property Age | CQ15: 1945-64 | CR15: Property Age1945-64 | CS15: 3200 | CT15: 3900 | CU15: 691730 | CV15: 3300 | CW15: 4000 | CX15: 697960 | CY15: 3300 | CZ15: 4000 | DA15: 699740 | DB15: 3300 | DC15: 4000 | DD15: 693540 | DE15: 3300 | DF15: 4100 | DG15: 689540 | DH15: 3500 | DI15: 4200 | DJ15: 689940 | DK15: 3500 | DL15: 4300 | DM15: 693120 | DN15: 3600 | DO15: 4400 | DP15: 619660 | DQ15: 12800 | DR15: 13600 | DS15: 594890 | DT15: 12800 | DU15: 13700 | DV15: 620170 | DW15: 13900 | DX15: 14700 | DY15: 602740 | DZ15: 14000 | EA15: 14800 | EB15: 643050 | EC15: 15500 | ED15: 16300 | EE15: 583510 | EF15: 16200 | EG15: 17000 | EH15: 576460 | EI15: 16800 | EJ15: 17500 | EK15: 567510 | EL15: 17700 | EM15: 18400 | EN15: 553100
A16: 4 | E16: East Midlands | F16: =VLOOKUP(CONCATENATE($E16,F$12),$AQ$13:$CM$3856,(VLOOKUP(CONCATENATE($I$5,$K$5,$M$5), $AI$12:$AL$59, 2, FALSE)),FALSE) -> 3300 | G16: =VLOOKUP(CONCATENATE($E16,G$12),$AQ$13:$CM$3856,(VLOOKUP(CONCATENATE($I$5,$K$5,$M$5), $AI$12:$AL$59, 2, FALSE)),FALSE) -> 3400 | H16: =VLOOKUP(CONCATENATE($E16,H$12),$AQ$13:$CM$3856,(VLOOKUP(CONCATENATE($I$5,$K$5,$M$5), $AI$12:$AL$59, 2, FALSE)),FALSE) -> 3200 | I16: =VLOOKUP(CONCATENATE($E16,I$12),$AQ$13:$CM$3856,(VLOOKUP(CONCATENATE($I$5,$K$5,$M$5), $AI$12:$AL$59, 2, FALSE)),FALSE) -> 3100 | J16: =VLOOKUP(CONCATENATE($E16,J$12),$AQ$13:$CM$3856,(VLOOKUP(CONCATENATE($I$5,$K$5,$M$5), $AI$12:$AL$59, 2, FALSE)),FALSE) -> 3300 | K16: =VLOOKUP(CONCATENATE($E16,K$12),$AQ$13:$CM$3856,(VLOOKUP(CONCATENATE($I$5,$K$5,$M$5), $AI$12:$AL$59, 2, FALSE)),FALSE) -> 3500 | L16: =VLOOKUP(CONCATENATE($E16,L$12),$AQ$13:$CM$3856,(VLOOKUP(CONCATENATE($I$5,$K$5,$M$5), $AI$12:$AL$59, 2, FALSE)),FALSE) -> 3400 | M16: =VLOOKUP(CONCATENATE($E16,M$12),$AQ$13:$CM$3856,(VLOOKUP(CONCATENATE($I$5,$K$5,$M$5), $AI$12:$AL$59, 2, FALSE)),FALSE) ->  | N16: =VLOOKUP(CONCATENATE($E16,N$12),$AQ$13:$CM$3856,(VLOOKUP(CONCATENATE($I$5,$K$5,$M$5), $AI$12:$AL$59, 2, FALSE)),FALSE) ->  | O16: =VLOOKUP(CONCATENATE($E16,O$12),$AQ$13:$CM$3856,(VLOOKUP(CONCATENATE($I$5,$K$5,$M$5), $AI$12:$AL$59, 2, FALSE)),FALSE) ->  | P16: 3300 | T16: 1983-92 | U16: Bungalow | V16: 5 or more bedrooms | W16: Over 200 | Y16: £40,000 - £49,999 | Z16: 5 or more | AA16: FP - 5 | AB16: IMD - 5 | AC16: West Midlands | AG16: 2009 | AI16: MeanElectricity2011 | AJ16: 6 | AN16: 4 | AO16: 1965-82 | AP16: Detached | AQ16: 1965-82Detached | AR16: 4000 | AS16: 4700 | AT16: 139670 | AU16: 4200 | AV16: 4800 | AW16: 140410 | AX16: 4200 | AY16: 4900 | AZ16: 140500 | BA16: 4200 | BB16: 4900 | BC16: 139570 | BD16: 4200 | BE16: 4900 | BF16: 138640 | BG16: 4500 | BH16: 5200 | BI16: 139060 | BJ16: 4600 | BK16: 5300 | BL16: 139810 | BM16: 4700 | BN16: 5400 | BO16: 122960 | BP16: 17600 | BQ16: 18700 | BR16: 118100 | BS16: 17400 | BT16: 18500 | BU16: 123210 | BV16: 18600 | BW16: 19800 | BX16: 120620 | BY16: 18900 | BZ16: 20000 | CA16: 126860 | CB16: 20900 | CC16: 21900 | CD16: 116310 | CE16: 21500 | CF16: 22600 | CG16: 114530 | CH16: 22400 | CI16: 23300 | CJ16: 112380 | CK16: 23400 | CL16: 24300 | CM16: 109600 | CP16: Property Age | CQ16: 1965-82 | CR16: Property Age1965-82 | CS16: 3200 | CT16: 3900 | CU16: 772500 | CV16: 3300 | CW16: 4000 | CX16: 778520 | CY16: 3300 | CZ16: 4100 | DA16: 780820 | DB16: 3300 | DC16: 4100 | DD16: 775020 | DE16: 3400 | DF16: 4100 | DG16: 770410 | DH16: 3500 | DI16: 4300 | DJ16: 771340 | DK16: 3600 | DL16: 4400 | DM16: 775040 | DN16: 3700 | DO16: 4500 | DP16: 687710 | DQ16: 12100 | DR16: 13000 | DS16: 610880 | DT16: 12100 | DU16: 13000 | DV16: 637980 | DW16: 13100 | DX16: 13900 | DY16: 618630 | DZ16: 13200 | EA16: 14000 | EB16: 661710 | EC16: 14700 | ED16: 15500 | EE16: 599520 | EF16: 15300 | EG16: 16100 | EH16: 593040 | EI16: 15900 | EJ16: 16700 | EK16: 583420 | EL16: 16700 | EM16: 17500 | EN16: 566610
A17: 5 | E17: West Midlands | F17: =VLOOKUP(CONCATENATE($E17,F$12),$AQ$13:$CM$3856,(VLOOKUP(CONCATENATE($I$5,$K$5,$M$5), $AI$12:$AL$59, 2, FALSE)),FALSE) -> 3400 | G17: =VLOOKUP(CONCATENATE($E17,G$12),$AQ$13:$CM$3856,(VLOOKUP(CONCATENATE($I$5,$K$5,$M$5), $AI$12:$AL$59, 2, FALSE)),FALSE) -> 3500 | H17: =VLOOKUP(CONCATENATE($E17,H$12),$AQ$13:$CM$3856,(VLOOKUP(CONCATENATE($I$5,$K$5,$M$5), $AI$12:$AL$59, 2, FALSE)),FALSE) -> 3300 | I17: =VLOOKUP(CONCATENATE($E17,I$12),$AQ$13:$CM$3856,(VLOOKUP(CONCATENATE($I$5,$K$5,$M$5), $AI$12:$AL$59, 2, FALSE)),FALSE) -> 3300 | J17: =VLOOKUP(CONCATENATE($E17,J$12),$AQ$13:$CM$3856,(VLOOKUP(CONCATENATE($I$5,$K$5,$M$5), $AI$12:$AL$59, 2, FALSE)),FALSE) -> 3400 | K17: =VLOOKUP(CONCATENATE($E17,K$12),$AQ$13:$CM$3856,(VLOOKUP(CONCATENATE($I$5,$K$5,$M$5), $AI$12:$AL$59, 2, FALSE)),FALSE) -> 3600 | L17: =VLOOKUP(CONCATENATE($E17,L$12),$AQ$13:$CM$3856,(VLOOKUP(CONCATENATE($I$5,$K$5,$M$5), $AI$12:$AL$59, 2, FALSE)),FALSE) -> 3600 | M17: =VLOOKUP(CONCATENATE($E17,M$12),$AQ$13:$CM$3856,(VLOOKUP(CONCATENATE($I$5,$K$5,$M$5), $AI$12:$AL$59, 2, FALSE)),FALSE) ->  | N17: =VLOOKUP(CONCATENATE($E17,N$12),$AQ$13:$CM$3856,(VLOOKUP(CONCATENATE($I$5,$K$5,$M$5), $AI$12:$AL$59, 2, FALSE)),FALSE) ->  | O17: =VLOOKUP(CONCATENATE($E17,O$12),$AQ$13:$CM$3856,(VLOOKUP(CONCATENATE($I$5,$K$5,$M$5), $AI$12:$AL$59, 2, FALSE)),FALSE) ->  | P17: 3400 | T17: 1993-99 | U17: Converted flat | Y17: £50,000 - £59,999 | AC17: East of England | AG17: 2010 | AI17: Number of ObservationsElectricity2011 | AJ17: 7 | AN17: 5 | AO17: 1983-92 | AP17: Detached | AQ17: 1983-92Detached | AR17: 4100 | AS17: 4800 | AT17: 83110 | AU17: 4300 | AV17: 4900 | AW17: 83430 | AX17: 4400 | AY17: 5000 | AZ17: 84480 | BA17: 4300 | BB17: 5000 | BC17: 84030 | BD17: 4400 | BE17: 5100 | BF17: 83290 | BG17: 4700 | BH17: 5300 | BI17: 83600 | BJ17: 4800 | BK17: 5400 | BL17: 84080 | BM17: 4800 | BN17: 5500 | BO17: 74210 | BP17: 16500 | BQ17: 17400 | BR17: 72710 | BS17: 16300 | BT17: 17300 | BU17: 75620 | BV17: 17500 | BW17: 18400 | BX17: 75820 | BY17: 17700 | BZ17: 18600 | CA17: 78390 | CB17: 19400 | CC17: 20400 | CD17: 73620 | CE17: 20000 | CF17: 20900 | CG17: 73040 | CH17: 20700 | CI17: 21600 | CJ17: 72240 | CK17: 21400 | CL17: 22400 | CM17: 70840 | CP17: Property Age | CQ17: 1983-92 | CR17: Property Age1983-92 | CS17: 3400 | CT17: 4200 | CU17: 279110 | CV17: 3500 | CW17: 4200 | CX17: 280400 | CY17: 3500 | CZ17: 4300 | DA17: 282300 | DB17: 3500 | DC17: 4300 | DD17: 280740 | DE17: 3600 | DF17: 4400 | DG17: 278750 | DH17: 3700 | DI17: 4600 | DJ17: 279630 | DK17: 3800 | DL17: 4600 | DM17: 281040 | DN17: 3900 | DO17: 4700 | DP17: 252730 | DQ17: 11600 | DR17: 12700 | DS17: 203410 | DT17: 11600 | DU17: 12700 | DV17: 211470 | DW17: 12500 | DX17: 13600 | DY17: 208600 | DZ17: 12600 | EA17: 13700 | EB17: 218310 | EC17: 13900 | ED17: 15000 | EE17: 202730 | EF17: 14500 | EG17: 15600 | EH17: 201510 | EI17: 15000 | EJ17: 16000 | EK17: 199960 | EL17: 15600 | EM17: 16600 | EN17: 195450
A18: 6 | E18: East of England | F18: =VLOOKUP(CONCATENATE($E18,F$12),$AQ$13:$CM$3856,(VLOOKUP(CONCATENATE($I$5,$K$5,$M$5), $AI$12:$AL$59, 2, FALSE)),FALSE) -> 3600 | G18: =VLOOKUP(CONCATENATE($E18,G$12),$AQ$13:$CM$3856,(VLOOKUP(CONCATENATE($I$5,$K$5,$M$5), $AI$12:$AL$59, 2, FALSE)),FALSE) -> 3800 | H18: =VLOOKUP(CONCATENATE($E18,H$12),$AQ$13:$CM$3856,(VLOOKUP(CONCATENATE($I$5,$K$5,$M$5), $AI$12:$AL$59, 2, FALSE)),FALSE) -> 3400 | I18: =VLOOKUP(CONCATENATE($E18,I$12),$AQ$13:$CM$3856,(VLOOKUP(CONCATENATE($I$5,$K$5,$M$5), $AI$12:$AL$59, 2, FALSE)),FALSE) -> 3400 | J18: =VLOOKUP(CONCATENATE($E18,J$12),$AQ$13:$CM$3856,(VLOOKUP(CONCATENATE($I$5,$K$5,$M$5), $AI$12:$AL$59, 2, FALSE)),FALSE) -> 3500 | K18: =VLOOKUP(CONCATENATE($E18,K$12),$AQ$13:$CM$3856,(VLOOKUP(CONCATENATE($I$5,$K$5,$M$5), $AI$12:$AL$59, 2, FALSE)),FALSE) -> 3600 | L18: =VLOOKUP(CONCATENATE($E18,L$12),$AQ$13:$CM$3856,(VLOOKUP(CONCATENATE($I$5,$K$5,$M$5), $AI$12:$AL$59, 2, FALSE)),FALSE) -> 3400 | M18: =VLOOKUP(CONCATENATE($E18,M$12),$AQ$13:$CM$3856,(VLOOKUP(CONCATENATE($I$5,$K$5,$M$5), $AI$12:$AL$59, 2, FALSE)),FALSE) ->  | N18: =VLOOKUP(CONCATENATE($E18,N$12),$AQ$13:$CM$3856,(VLOOKUP(CONCATENATE($I$5,$K$5,$M$5), $AI$12:$AL$59, 2, FALSE)),FALSE) ->  | O18: =VLOOKUP(CONCATENATE($E18,O$12),$AQ$13:$CM$3856,(VLOOKUP(CONCATENATE($I$5,$K$5,$M$5), $AI$12:$AL$59, 2, FALSE)),FALSE) ->  | P18: 3500 | T18: Post 1999 | U18: Purpose built flat | Y18: £60,000 - £69,999 | AC18: London | AG18: 2011 | AI18: MedianElectricity2010 | AJ18: 8 | AN18: 6 | AO18: 1993-99 | AP18: Detached | AQ18: 1993-99Detached | AR18: 4200 | AS18: 4900 | AT18: 71210 | AU18: 4400 | AV18: 5000 | AW18: 71410 | AX18: 4500 | AY18: 5100 | AZ18: 71550 | BA18: 4500 | BB18: 5100 | BC18: 71220 | BD18: 4500 | BE18: 5100 | BF18: 70500 | BG18: 4700 | BH18: 5400 | BI18: 70840 | BJ18: 4800 | BK18: 5500 | BL18: 71150 | BM18: 4900 | BN18: 5500 | BO18: 62970 | BP18: 16400 | BQ18: 17400 | BR18: 60690 | BS18: 16300 | BT18: 17300 | BU18: 63280 | BV18: 17300 | BW18: 18300 | BX18: 60730 | BY18: 17300 | BZ18: 18400 | CA18: 62940 | CB18: 18700 | CC18: 19800 | CD18: 61520 | CE18: 19200 | CF18: 20200 | CG18: 59510 | CH18: 19800 | CI18: 20800 | CJ18: 54320 | CK18: 20200 | CL18: 21200 | CM18: 60180 | CP18: Property Age | CQ18: 1993-99 | CR18: Property Age1993-99 | CS18: 3500 | CT18: 4300 | CU18: 196880 | CV18: 3700 | CW18: 4400 | CX18: 197740 | CY18: 3700 | CZ18: 4400 | DA18: 198620 | DB18: 3700 | DC18: 4400 | DD18: 197330 | DE18: 3700 | DF18: 4500 | DG18: 195620 | DH18: 3900 | DI18: 4700 | DJ18: 196170 | DK18: 3900 | DL18: 4700 | DM18: 197110 | DN18: 4000 | DO18: 4800 | DP18: 175960 | DQ18: 11900 | DR18: 13000 | DS18: 151990 | DT18: 11900 | DU18: 13000 | DV18: 158370 | DW18: 12700 | DX18: 13800 | DY18: 152470 | DZ18: 12700 | EA18: 13800 | EB18: 159350 | EC18: 14000 | ED18: 15100 | EE18: 152610 | EF18: 14400 | EG18: 15500 | EH18: 148380 | EI18: 14700 | EJ18: 15800 | EK18: 139690 | EL18: 15300 | EM18: 16400 | EN18: 148270
A19: 7 | E19: London | F19: =VLOOKUP(CONCATENATE($E19,F$12),$AQ$13:$CM$3856,(VLOOKUP(CONCATENATE($I$5,$K$5,$M$5), $AI$12:$AL$59, 2, FALSE)),FALSE) -> 3300 | G19: =VLOOKUP(CONCATENATE($E19,G$12),$AQ$13:$CM$3856,(VLOOKUP(CONCATENATE($I$5,$K$5,$M$5), $AI$12:$AL$59, 2, FALSE)),FALSE) -> 3600 | H19: =VLOOKUP(CONCATENATE($E19,H$12),$AQ$13:$CM$3856,(VLOOKUP(CONCATENATE($I$5,$K$5,$M$5), $AI$12:$AL$59, 2, FALSE)),FALSE) -> 2900 | I19: =VLOOKUP(CONCATENATE($E19,I$12),$AQ$13:$CM$3856,(VLOOKUP(CONCATENATE($I$5,$K$5,$M$5), $AI$12:$AL$59, 2, FALSE)),FALSE) -> 2700 | J19: =VLOOKUP(CONCATENATE($E19,J$12),$AQ$13:$CM$3856,(VLOOKUP(CONCATENATE($I$5,$K$5,$M$5), $AI$12:$AL$59, 2, FALSE)),FALSE) -> 3300 | K19: =VLOOKUP(CONCATENATE($E19,K$12),$AQ$13:$CM$3856,(VLOOKUP(CONCATENATE($I$5,$K$5,$M$5), $AI$12:$AL$59, 2, FALSE)),FALSE) -> 3400 | L19: =VLOOKUP(CONCATENATE($E19,L$12),$AQ$13:$CM$3856,(VLOOKUP(CONCATENATE($I$5,$K$5,$M$5), $AI$12:$AL$59, 2, FALSE)),FALSE) -> 3300 | M19: =VLOOKUP(CONCATENATE($E19,M$12),$AQ$13:$CM$3856,(VLOOKUP(CONCATENATE($I$5,$K$5,$M$5), $AI$12:$AL$59, 2, FALSE)),FALSE) ->  | N19: =VLOOKUP(CONCATENATE($E19,N$12),$AQ$13:$CM$3856,(VLOOKUP(CONCATENATE($I$5,$K$5,$M$5), $AI$12:$AL$59, 2, FALSE)),FALSE) ->  | O19: =VLOOKUP(CONCATENATE($E19,O$12),$AQ$13:$CM$3856,(VLOOKUP(CONCATENATE($I$5,$K$5,$M$5), $AI$12:$AL$59, 2, FALSE)),FALSE) ->  | P19: 3200 | Y19: £70,000 - £99,999 | AC19: South East | AG19: 2012 | AI19: MeanElectricity2010 | AJ19: 9 | AN19: 7 | AO19: Post 1999 | AP19: Detached | AQ19: Post 1999Detached | AR19: 4400 | AS19: 5100 | AT19: 55370 | AU19: 4600 | AV19: 5300 | AW19: 55520 | AX19: 4600 | AY19: 5300 | AZ19: 48410 | BA19: 4500 | BB19: 5200 | BC19: 48020 | BD19: 4500 | BE19: 5200 | BF19: 47300 | BG19: 4600 | BH19: 5300 | BI19: 45890 | BJ19: 4700 | BK19: 5400 | BL19: 42830 | BM19: 4600 | BN19: 5400 | BO19: 35000 | BP19: 16600 | BQ19: 17900 | BR19: 38000 | BS19: 16600 | BT19: 17900 | BU19: 43020 | BV19: 17300 | BW19: 18700 | BX19: 29750 | BY19: 17200 | BZ19: 18600 | CA19: 31370 | CB19: 18400 | CC19: 19600 | CD19: 36000 | CE19: 19300 | CF19: 20400 | CG19: 29720 | CH19: 20100 | CI19: 21300 | CJ19: 20660 | CK19: 21500 | CL19: 22000 | CM19: 30320 | CP19: Property Age | CQ19: Post 1999 | CR19: Property AgePost 1999 | CS19: 3400 | CT19: 4200 | CU19: 230440 | CV19: 3500 | CW19: 4300 | CX19: 231300 | CY19: 3600 | CZ19: 4400 | DA19: 195790 | DB19: 3500 | DC19: 4300 | DD19: 193760 | DE19: 3500 | DF19: 4300 | DG19: 190800 | DH19: 3600 | DI19: 4400 | DJ19: 179840 | DK19: 3600 | DL19: 4400 | DM19: 158100 | DN19: 3600 | DO19: 4500 | DP19: 122110 | DQ19: 11400 | DR19: 12600 | DS19: 119060 | DT19: 11500 | DU19: 12700 | DV19: 133610 | DW19: 12000 | DX19: 13300 | DY19: 93120 | DZ19: 12000 | EA19: 13300 | EB19: 99180 | EC19: 13000 | ED19: 14300 | EE19: 109370 | EF19: 13600 | EG19: 15100 | EH19: 95030 | EI19: 14200 | EJ19: 15600 | EK19: 64910 | EL19: 15200 | EM19: 16500 | EN19: 87110
A20: 8 | E20: South East | F20: =VLOOKUP(CONCATENATE($E20,F$12),$AQ$13:$CM$3856,(VLOOKUP(CONCATENATE($I$5,$K$5,$M$5), $AI$12:$AL$59, 2, FALSE)),FALSE) -> 3600 | G20: =VLOOKUP(CONCATENATE($E20,G$12),$AQ$13:$CM$3856,(VLOOKUP(CONCATENATE($I$5,$K$5,$M$5), $AI$12:$AL$59, 2, FALSE)),FALSE) -> 3900 | H20: =VLOOKUP(CONCATENATE($E20,H$12),$AQ$13:$CM$3856,(VLOOKUP(CONCATENATE($I$5,$K$5,$M$5), $AI$12:$AL$59, 2, FALSE)),FALSE) -> 3500 | I20: =VLOOKUP(CONCATENATE($E20,I$12),$AQ$13:$CM$3856,(VLOOKUP(CONCATENATE($I$5,$K$5,$M$5), $AI$12:$AL$59, 2, FALSE)),FALSE) -> 3400 | J20: =VLOOKUP(CONCATENATE($E20,J$12),$AQ$13:$CM$3856,(VLOOKUP(CONCATENATE($I$5,$K$5,$M$5), $AI$12:$AL$59, 2, FALSE)),FALSE) -> 3600 | K20: =VLOOKUP(CONCATENATE($E20,K$12),$AQ$13:$CM$3856,(VLOOKUP(CONCATENATE($I$5,$K$5,$M$5), $AI$12:$AL$59, 2, FALSE)),FALSE) -> 3700 | L20: =VLOOKUP(CONCATENATE($E20,L$12),$AQ$13:$CM$3856,(VLOOKUP(CONCATENATE($I$5,$K$5,$M$5), $AI$12:$AL$59, 2, FALSE)),FALSE) -> 3300 | M20: =VLOOKUP(CONCATENATE($E20,M$12),$AQ$13:$CM$3856,(VLOOKUP(CONCATENATE($I$5,$K$5,$M$5), $AI$12:$AL$59, 2, FALSE)),FALSE) ->  | N20: =VLOOKUP(CONCATENATE($E20,N$12),$AQ$13:$CM$3856,(VLOOKUP(CONCATENATE($I$5,$K$5,$M$5), $AI$12:$AL$59, 2, FALSE)),FALSE) ->  | O20: =VLOOKUP(CONCATENATE($E20,O$12),$AQ$13:$CM$3856,(VLOOKUP(CONCATENATE($I$5,$K$5,$M$5), $AI$12:$AL$59, 2, FALSE)),FALSE) ->  | P20: 3500 | Y20: £100,000 - £149,999 | AC20: South West | AI20: Number of ObservationsElectricity2010 | AJ20: 10 | AN20: 8 | AO20: Pre 1919 | AP20: Semi detached | AQ20: Pre 1919Semi detached | AR20: 4100 | AS20: 5100 | AT20: 103910 | AU20: 4200 | AV20: 5100 | AW20: 105130 | AX20: 4300 | AY20: 5200 | AZ20: 99740 | BA20: 4300 | BB20: 5300 | BC20: 98520 | BD20: 4300 | BE20: 5300 | BF20: 97900 | BG20: 4500 | BH20: 5500 | BI20: 97920 | BJ20: 4600 | BK20: 5600 | BL20: 98710 | BM20: 4800 | BN20: 5800 | BO20: 87810 | BP20: 18400 | BQ20: 19700 | BR20: 76780 | BS20: 18200 | BT20: 19500 | BU20: 80550 | BV20: 19700 | BW20: 20900 | BX20: 74850 | BY20: 19800 | BZ20: 21000 | CA20: 80230 | CB20: 21600 | CC20: 22600 | CD20: 71130 | CE20: 22200 | CF20: 23200 | CG20: 69700 | CH20: 22900 | CI20: 23800 | CJ20: 67970 | CK20: 23900 | CL20: 24600 | CM20: 65990 | CP20: Property Type | CQ20: Detached | CR20: Property TypeDetached | CS20: 4400 | CT20: 5300 | CU20: 551950 | CV20: 4500 | CW20: 5400 | CX20: 555660 | CY20: 4600 | CZ20: 5400 | DA20: 542880 | DB20: 4600 | DC20: 5500 | DD20: 538740 | DE20: 4600 | DF20: 5500 | DG20: 534660 | DH20: 4800 | DI20: 5700 | DJ20: 533900 | DK20: 4900 | DL20: 5800 | DM20: 534190 | DN20: 5000 | DO20: 5900 | DP20: 467890 | DQ20: 18200 | DR20: 19700 | DS20: 422650 | DT20: 18000 | DU20: 19600 | DV20: 444920 | DW20: 19300 | DX20: 20800 | DY20: 422900 | DZ20: 19500 | EA20: 20900 | EB20: 444160 | EC20: 21200 | ED20: 22500 | EE20: 414860 | EF20: 21800 | EG20: 23100 | EH20: 401040 | EI20: 22700 | EJ20: 23900 | EK20: 380980 | EL20: 23100 | EM20: 24600 | EN20: 387530
A21: 9 | E21: South West | F21: =VLOOKUP(CONCATENATE($E21,F$12),$AQ$13:$CM$3856,(VLOOKUP(CONCATENATE($I$5,$K$5,$M$5), $AI$12:$AL$59, 2, FALSE)),FALSE) -> 3800 | G21: =VLOOKUP(CONCATENATE($E21,G$12),$AQ$13:$CM$3856,(VLOOKUP(CONCATENATE($I$5,$K$5,$M$5), $AI$12:$AL$59, 2, FALSE)),FALSE) -> 3700 | H21: =VLOOKUP(CONCATENATE($E21,H$12),$AQ$13:$CM$3856,(VLOOKUP(CONCATENATE($I$5,$K$5,$M$5), $AI$12:$AL$59, 2, FALSE)),FALSE) -> 3400 | I21: =VLOOKUP(CONCATENATE($E21,I$12),$AQ$13:$CM$3856,(VLOOKUP(CONCATENATE($I$5,$K$5,$M$5), $AI$12:$AL$59, 2, FALSE)),FALSE) -> 3400 | J21: =VLOOKUP(CONCATENATE($E21,J$12),$AQ$13:$CM$3856,(VLOOKUP(CONCATENATE($I$5,$K$5,$M$5), $AI$12:$AL$59, 2, FALSE)),FALSE) -> 3400 | K21: =VLOOKUP(CONCATENATE($E21,K$12),$AQ$13:$CM$3856,(VLOOKUP(CONCATENATE($I$5,$K$5,$M$5), $AI$12:$AL$59, 2, FALSE)),FALSE) -> 3400 | L21: =VLOOKUP(CONCATENATE($E21,L$12),$AQ$13:$CM$3856,(VLOOKUP(CONCATENATE($I$5,$K$5,$M$5), $AI$12:$AL$59, 2, FALSE)),FALSE) -> 3100 | M21: =VLOOKUP(CONCATENATE($E21,M$12),$AQ$13:$CM$3856,(VLOOKUP(CONCATENATE($I$5,$K$5,$M$5), $AI$12:$AL$59, 2, FALSE)),FALSE) ->  | N21: =VLOOKUP(CONCATENATE($E21,N$12),$AQ$13:$CM$3856,(VLOOKUP(CONCATENATE($I$5,$K$5,$M$5), $AI$12:$AL$59, 2, FALSE)),FALSE) ->  | O21: =VLOOKUP(CONCATENATE($E21,O$12),$AQ$13:$CM$3856,(VLOOKUP(CONCATENATE($I$5,$K$5,$M$5), $AI$12:$AL$59, 2, FALSE)),FALSE) ->  | P21: 3500 | Y21: £150,000 and over | AC21: Wales | AI21: MedianElectricity2009 | AJ21: 11 | AN21: 9 | AO21: 1919-44 | AP21: Semi detached | AQ21: 1919-44Semi detached | AR21: 3600 | AS21: 4100 | AT21: 306420 | AU21: 3700 | AV21: 4200 | AW21: 308800 | AX21: 3700 | AY21: 4300 | AZ21: 313810 | BA21: 3700 | BB21: 4300 | BC21: 311030 | BD21: 3700 | BE21: 4300 | BF21: 309110 | BG21: 3900 | BH21: 4500 | BI21: 310180 | BJ21: 4000 | BK21: 4600 | BL21: 311280 | BM21: 4000 | BN21: 4700 | BO21: 269030 | BP21: 15400 | BQ21: 16100 | BR21: 277410 | BS21: 15300 | BT21: 16100 | BU21: 289490 | BV21: 16600 | BW21: 17300 | BX21: 285880 | BY21: 16800 | BZ21: 17500 | CA21: 303310 | CB21: 18600 | CC21: 19200 | CD21: 277080 | CE21: 19100 | CF21: 19800 | CG21: 273640 | CH21: 20000 | CI21: 20500 | CJ21: 269100 | CK21: 20900 | CL21: 21400 | CM21: 263320 | CP21: Property Type | CQ21: Semi detached | CR21: Property TypeSemi detached | CS21: 3500 | CT21: 4100 | CU21: 931620 | CV21: 3600 | CW21: 4200 | CX21: 938370 | CY21: 3700 | CZ21: 4300 | DA21: 933410 | DB21: 3600 | DC21: 4300 | DD21: 925690 | DE21: 3700 | DF21: 4300 | DG21: 919250 | DH21: 3800 | DI21: 4500 | DJ21: 920680 | DK21: 3900 | DL21: 4600 | DM21: 922420 | DN21: 4000 | DO21: 4700 | DP21: 805170 | DQ21: 14000 | DR21: 14900 | DS21: 810720 | DT21: 13900 | DU21: 14900 | DV21: 847970 | DW21: 15100 | DX21: 16000 | DY21: 818370 | DZ21: 15300 | EA21: 16200 | EB21: 866900 | EC21: 16900 | ED21: 17800 | EE21: 797290 | EF21: 17500 | EG21: 18400 | EH21: 785380 | EI21: 18200 | EJ21: 19000 | EK21: 767330 | EL21: 19100 | EM21: 19900 | EN21: 755380
A22: 10 | E22: Wales | F22: =VLOOKUP(CONCATENATE($E22,F$12),$AQ$13:$CM$3856,(VLOOKUP(CONCATENATE($I$5,$K$5,$M$5), $AI$12:$AL$59, 2, FALSE)),FALSE) -> 3300 | G22: =VLOOKUP(CONCATENATE($E22,G$12),$AQ$13:$CM$3856,(VLOOKUP(CONCATENATE($I$5,$K$5,$M$5), $AI$12:$AL$59, 2, FALSE)),FALSE) -> 3300 | H22: =VLOOKUP(CONCATENATE($E22,H$12),$AQ$13:$CM$3856,(VLOOKUP(CONCATENATE($I$5,$K$5,$M$5), $AI$12:$AL$59, 2, FALSE)),FALSE) -> 3100 | I22: =VLOOKUP(CONCATENATE($E22,I$12),$AQ$13:$CM$3856,(VLOOKUP(CONCATENATE($I$5,$K$5,$M$5), $AI$12:$AL$59, 2, FALSE)),FALSE) -> 3100 | J22: =VLOOKUP(CONCATENATE($E22,J$12),$AQ$13:$CM$3856,(VLOOKUP(CONCATENATE($I$5,$K$5,$M$5), $AI$12:$AL$59, 2, FALSE)),FALSE) -> 3100 | K22: =VLOOKUP(CONCATENATE($E22,K$12),$AQ$13:$CM$3856,(VLOOKUP(CONCATENATE($I$5,$K$5,$M$5), $AI$12:$AL$59, 2, FALSE)),FALSE) -> 3400 | L22: =VLOOKUP(CONCATENATE($E22,L$12),$AQ$13:$CM$3856,(VLOOKUP(CONCATENATE($I$5,$K$5,$M$5), $AI$12:$AL$59, 2, FALSE)),FALSE) -> 3600 | M22: =VLOOKUP(CONCATENATE($E22,M$12),$AQ$13:$CM$3856,(VLOOKUP(CONCATENATE($I$5,$K$5,$M$5), $AI$12:$AL$59, 2, FALSE)),FALSE) ->  | N22: =VLOOKUP(CONCATENATE($E22,N$12),$AQ$13:$CM$3856,(VLOOKUP(CONCATENATE($I$5,$K$5,$M$5), $AI$12:$AL$59, 2, FALSE)),FALSE) ->  | O22: =VLOOKUP(CONCATENATE($E22,O$12),$AQ$13:$CM$3856,(VLOOKUP(CONCATENATE($I$5,$K$5,$M$5), $AI$12:$AL$59, 2, FALSE)),FALSE) ->  | P22: 3200 | AI22: MeanElectricity2009 | AJ22: 12 | AN22: 10 | AO22: 1945-64 | AP22: Semi detached | AQ22: 1945-64Semi detached | AR22: 3500 | AS22: 4000 | AT22: 264530 | AU22: 3600 | AV22: 4100 | AW22: 266480 | AX22: 3600 | AY22: 4100 | AZ22: 265410 | BA22: 3500 | BB22: 4100 | BC22: 263360 | BD22: 3600 | BE22: 4200 | BF22: 261710 | BG22: 3700 | BH22: 4400 | BI22: 262390 | BJ22: 3800 | BK22: 4400 | BL22: 263520 | BM22: 3800 | BN22: 4600 | BO22: 232460 | BP22: 13700 | BQ22: 14200 | BR22: 234520 | BS22: 13700 | BT22: 14200 | BU22: 244590 | BV22: 14800 | BW22: 15300 | BX22: 237230 | BY22: 15000 | BZ22: 15500 | CA22: 251090 | CB22: 16600 | CC22: 17100 | CD22: 230560 | CE22: 17200 | CF22: 17800 | CG22: 227840 | CH22: 17900 | CI22: 18400 | CJ22: 224360 | CK22: 18900 | CL22: 19300 | CM22: 219420 | CP22: Property Type | CQ22: End terrace | CR22: Property TypeEnd terrace | CS22: 3300 | CT22: 4000 | CU22: 321740 | CV22: 3400 | CW22: 4100 | CX22: 324530 | CY22: 3500 | CZ22: 4100 | DA22: 321240 | DB22: 3400 | DC22: 4100 | DD22: 317900 | DE22: 3500 | DF22: 4200 | DG22: 315710 | DH22: 3600 | DI22: 4300 | DJ22: 314580 | DK22: 3700 | DL22: 4400 | DM22: 313970 | DN22: 3700 | DO22: 4600 | DP22: 280070 | DQ22: 12500 | DR22: 13500 | DS22: 276920 | DT22: 12500 | DU22: 13500 | DV22: 290220 | DW22: 13500 | DX22: 14500 | DY22: 275410 | DZ22: 13700 | EA22: 14600 | EB22: 294560 | EC22: 15000 | ED22: 16000 | EE22: 269530 | EF22: 15600 | EG22: 16700 | EH22: 264120 | EI22: 16300 | EJ22: 17200 | EK22: 255390 | EL22: 17000 | EM22: 18000 | EN22: 253510
A23: 11 | D23: All | F23: =VLOOKUP(CONCATENATE($F$11,F12),$CR$13:$EN$75,(VLOOKUP(CONCATENATE($I$5,$K$5,$M$5), $AI$12:$AJ$59, 2, FALSE)),FALSE) -> 3300 | G23: 3500 | H23: 3200 | I23: 3200 | J23: 3400 | K23: 3500 | L23: 3400 | P23: =VLOOKUP(CR75,$CR$75:$EN$75,(VLOOKUP(CONCATENATE($I$5,$K$5,$M$5), $AI$12:$AJ$59, 2, FALSE)),FALSE) -> 3300 | AI23: Number of ObservationsElectricity2009 | AJ23: 13 | AN23: 11 | AO23: 1965-82 | AP23: Semi detached | AQ23: 1965-82Semi detached | AR23: 3400 | AS23: 4000 | AT23: 153610 | AU23: 3600 | AV23: 4100 | AW23: 154460 | AX23: 3600 | AY23: 4100 | AZ23: 153940 | BA23: 3600 | BB23: 4200 | BC23: 152950 | BD23: 3600 | BE23: 4200 | BF23: 151800 | BG23: 3800 | BH23: 4400 | BI23: 152450 | BJ23: 3900 | BK23: 4500 | BL23: 153230 | BM23: 4000 | BN23: 4700 | BO23: 133090 | BP23: 13100 | BQ23: 13600 | BR23: 137340 | BS23: 13000 | BT23: 13600 | BU23: 143570 | BV23: 14100 | BW23: 14600 | BX23: 138940 | BY23: 14300 | BZ23: 14800 | CA23: 147150 | CB23: 15800 | CC23: 16400 | CD23: 135010 | CE23: 16400 | CF23: 17000 | CG23: 133870 | CH23: 17100 | CI23: 17700 | CJ23: 131660 | CK23: 18000 | CL23: 18500 | CM23: 128900 | CP23: Property Type | CQ23: Mid terrace | CR23: Property TypeMid terrace | CS23: 3100 | CT23: 3700 | CU23: 699840 | CV23: 3200 | CW23: 3800 | CX23: 707060 | CY23: 3200 | CZ23: 3800 | DA23: 698460 | DB23: 3200 | DC23: 3900 | DD23: 690300 | DE23: 3200 | DF23: 3900 | DG23: 686050 | DH23: 3400 | DI23: 4100 | DJ23: 685580 | DK23: 3400 | DL23: 4100 | DM23: 686420 | DN23: 3500 | DO23: 4300 | DP23: 610850 | DQ23: 11500 | DR23: 12400 | DS23: 614630 | DT23: 11600 | DU23: 12500 | DV23: 642300 | DW23: 12400 | DX23: 13400 | DY23: 608310 | DZ23: 12600 | EA23: 13500 | EB23: 656080 | EC23: 13800 | ED23: 14800 | EE23: 593330 | EF23: 14400 | EG23: 15400 | EH23: 583130 | EI23: 15000 | EJ23: 15900 | EK23: 568920 | EL23: 15600 | EM23: 16600 | EN23: 559750
AI24: MedianElectricity2008 | AJ24: 14 | AN24: 12 | AO24: 1983-92 | AP24: Semi detached | AQ24: 1983-92Semi detached | AR24: 3200 | AS24: 3900 | AT24: 39830 | AU24: 3300 | AV24: 4000 | AW24: 40000 | AX24: 3300 | AY24: 4000 | AZ24: 40040 | BA24: 3300 | BB24: 4000 | BC24: 39780 | BD24: 3300 | BE24: 4100 | BF24: 39440 | BG24: 3500 | BH24: 4300 | BI24: 39570 | BJ24: 3500 | BK24: 4300 | BL24: 39770 | BM24: 3600 | BN24: 4500 | BO24: 35460 | BP24: 10300 | BQ24: 10900 | BR24: 34780 | BS24: 10400 | BT24: 11000 | BU24: 36100 | BV24: 11100 | BW24: 11600 | BX24: 35470 | BY24: 11200 | BZ24: 11800 | CA24: 37080 | CB24: 12400 | CC24: 13000 | CD24: 34520 | CE24: 12800 | CF24: 13400 | CG24: 34380 | CH24: 13200 | CI24: 13800 | CJ24: 34210 | CK24: 13800 | CL24: 14400 | CM24: 33480 | CP24: Property Type | CQ24: Bungalow | CR24: Property TypeBungalow | CS24: 3000 | CT24: 3900 | CU24: 365670 | CV24: 3100 | CW24: 4000 | CX24: 367790 | CY24: 3100 | CZ24: 4000 | DA24: 360930 | DB24: 3000 | DC24: 4000 | DD24: 358800 | DE24: 3000 | DF24: 4100 | DG24: 356860 | DH24: 3200 | DI24: 4200 | DJ24: 356820 | DK24: 3200 | DL24: 4300 | DM24: 358260 | DN24: 3300 | DO24: 4400 | DP24: 321230 | DQ24: 13300 | DR24: 14400 | DS24: 285590 | DT24: 13200 | DU24: 14400 | DV24: 298160 | DW24: 14200 | DX24: 15300 | DY24: 291230 | DZ24: 14300 | EA24: 15500 | EB24: 303660 | EC24: 15800 | ED24: 17000 | EE24: 282270 | EF24: 16500 | EG24: 17700 | EH24: 278960 | EI24: 17000 | EJ24: 18200 | EK24: 273880 | EL24: 17900 | EM24: 19000 | EN24: 267310
D25: =IF(C57>0,"- = figure suppressed as based on less than 30 observations", IF(C58>0, "n/a = data not available"," ")) ->  | AI25: MeanElectricity2008 | AJ25: 15 | AN25: 13 | AO25: 1993-99 | AP25: Semi detached | AQ25: 1993-99Semi detached | AR25: 3200 | AS25: 3800 | AT25: 37330 | AU25: 3300 | AV25: 3900 | AW25: 37450 | AX25: 3300 | AY25: 3900 | AZ25: 36950 | BA25: 3300 | BB25: 3900 | BC25: 36750 | BD25: 3300 | BE25: 4000 | BF25: 36330 | BG25: 3400 | BH25: 4200 | BI25: 36460 | BJ25: 3500 | BK25: 4200 | BL25: 36610 | BM25: 3500 | BN25: 4300 | BO25: 32250 | BP25: 10100 | BQ25: 10700 | BR25: 32520 | BS25: 10200 | BT25: 10800 | BU25: 33880 | BV25: 10900 | BW25: 11500 | BX25: 32080 | BY25: 11000 | BZ25: 11600 | CA25: 33360 | CB25: 12000 | CC25: 12600 | CD25: 32110 | CE25: 12400 | CF25: 13100 | CG25: 31320 | CH25: 12700 | CI25: 13400 | CJ25: 30020 | CK25: 13300 | CL25: 14000 | CM25: 31100 | CP25: Property Type | CQ25: Converted flat | CR25: Property TypeConverted flat | CS25: 2600 | CT25: 3900 | CU25: 112410 | CV25: 2700 | CW25: 3900 | CX25: 114040 | CY25: 2700 | CZ25: 3900 | DA25: 84390 | DB25: 2700 | DC25: 3900 | DD25: 83100 | DE25: 2800 | DF25: 4000 | DG25: 82690 | DH25: 2900 | DI25: 4100 | DJ25: 81190 | DK25: 2900 | DL25: 4100 | DM25: 80390 | DN25: 3000 | DO25: 4300 | DP25: 72450 | DQ25: 8900 | DR25: 10700 | DS25: 75420 | DT25: 8900 | DU25: 10800 | DV25: 79070 | DW25: 9800 | DX25: 11400 | DY25: 53000 | DZ25: 9700 | EA25: 11400 | EB25: 59420 | EC25: 10700 | ED25: 12400 | EE25: 50660 | EF25: 11200 | EG25: 12900 | EH25: 49450 | EI25: 11500 | EJ25: 13300 | EK25: 48150 | EL25: 12300 | EM25: 14100 | EN25: 46950
D26: =W9 ->  | AI26: Number of ObservationsElectricity2008 | AJ26: 16 | AN26: 14 | AO26: Post 1999 | AP26: Semi detached | AQ26: Post 1999Semi detached | AR26: 3200 | AS26: 3700 | AT26: 25990 | AU26: 3300 | AV26: 3800 | AW26: 26060 | AX26: 3300 | AY26: 3800 | AZ26: 22750 | BA26: 3300 | BB26: 3800 | BC26: 22550 | BD26: 3200 | BE26: 3700 | BF26: 22200 | BG26: 3300 | BH26: 3800 | BI26: 20950 | BJ26: 3300 | BK26: 3900 | BL26: 18540 | BM26: 3300 | BN26: 3800 | BO26: 14380 | BP26: 10700 | BQ26: 11600 | BR26: 17380 | BS26: 10800 | BT26: 11700 | BU26: 19790 | BV26: 11300 | BW26: 12200 | BX26: 13370 | BY26: 11200 | BZ26: 12200 | CA26: 14110 | CB26: 12200 | CC26: 13100 | CD26: 16340 | CE26: 13400 | CF26: 14100 | CG26: 14100 | CH26: 13900 | CI26: 14500 | CJ26: 9500 | CK26: 14500 | CL26: 15100 | CM26: 12670 | CP26: Property Type | CQ26: Purpose built flat | CR26: Property TypePurpose built flat | CS26: 2400 | CT26: 3500 | CU26: 514930 | CV26: 2500 | CW26: 3500 | CX26: 521320 | CY26: 2500 | CZ26: 3600 | DA26: 516550 | DB26: 2500 | DC26: 3600 | DD26: 511130 | DE26: 2500 | DF26: 3700 | DG26: 508030 | DH26: 2600 | DI26: 3800 | DJ26: 502630 | DK26: 2700 | DL26: 3700 | DM26: 493850 | DN26: 2700 | DO26: 3800 | DP26: 438700 | DQ26: 7000 | DR26: 7800 | DS26: 292330 | DT26: 7100 | DU26: 8000 | DV26: 306570 | DW26: 7800 | DX26: 8600 | DY26: 288630 | DZ26: 7800 | EA26: 8700 | EB26: 324170 | EC26: 8600 | ED26: 9500 | EE26: 281460 | EF26: 9200 | EG26: 10100 | EH26: 278130 | EI26: 9500 | EJ26: 10300 | EK26: 268050 | EL26: 10300 | EM26: 11000 | EN26: 261330
AI27: MedianElectricity2007 | AJ27: 17 | AN27: 15 | AO27: Pre 1919 | AP27: End terrace | AQ27: Pre 1919End terrace | AR27: 3400 | AS27: 4200 | AT27: 80660 | AU27: 3500 | AV27: 4200 | AW27: 81790 | AX27: 3500 | AY27: 4300 | AZ27: 76900 | BA27: 3500 | BB27: 4400 | BC27: 75800 | BD27: 3500 | BE27: 4400 | BF27: 75250 | BG27: 3700 | BH27: 4600 | BI27: 75390 | BJ27: 3700 | BK27: 4600 | BL27: 75950 | BM27: 3900 | BN27: 4800 | BO27: 66060 | BP27: 15400 | BQ27: 16300 | BR27: 67100 | BS27: 15300 | BT27: 16300 | BU27: 70170 | BV27: 16600 | BW27: 17600 | BX27: 63900 | BY27: 16600 | BZ27: 17600 | CA27: 69430 | CB27: 18300 | CC27: 19200 | CD27: 61120 | CE27: 18900 | CF27: 19900 | CG27: 60410 | CH27: 19600 | CI27: 20400 | CJ27: 58890 | CK27: 20600 | CL27: 21400 | CM27: 57400 | CP27: Number of Bedrooms | CQ27: 1 bedroom | CR27: Number of Bedrooms1 bedroom | CS27: 2100 | CT27: 3100 | CU27: 341160 | CV27: 2100 | CW27: 3100 | CX27: 345500 | CY27: 2100 | CZ27: 3100 | DA27: 325490 | DB27: 2100 | DC27: 3200 | DD27: 322050 | DE27: 2100 | DF27: 3200 | DG27: 320440 | DH27: 2200 | DI27: 3300 | DJ27: 317910 | DK27: 2200 | DL27: 3300 | DM27: 315710 | DN27: 2300 | DO27: 3400 | DP27: 278770 | DQ27: 6500 | DR27: 7300 | DS27: 191890 | DT27: 6600 | DU27: 7500 | DV27: 200630 | DW27: 7200 | DX27: 8000 | DY27: 177910 | DZ27: 7200 | EA27: 8100 | EB27: 198170 | EC27: 8000 | ED27: 9000 | EE27: 173020 | EF27: 8500 | EG27: 9400 | EH27: 171300 | EI27: 8800 | EJ27: 9700 | EK27: 167360 | EL27: 9400 | EM27: 10300 | EN27: 161490
AI28: MeanElectricity2007 | AJ28: 18 | AN28: 16 | AO28: 1919-44 | AP28: End terrace | AQ28: 1919-44End terrace | AR28: 3400 | AS28: 4000 | AT28: 62840 | AU28: 3500 | AV28: 4000 | AW28: 63400 | AX28: 3500 | AY28: 4100 | AZ28: 65590 | BA28: 3500 | BB28: 4100 | BC28: 64970 | BD28: 3500 | BE28: 4100 | BF28: 64600 | BG28: 3600 | BH28: 4200 | BI28: 64660 | BJ28: 3700 | BK28: 4300 | BL28: 64890 | BM28: 3800 | BN28: 4400 | BO28: 58720 | BP28: 13500 | BQ28: 14200 | BR28: 57830 | BS28: 13600 | BT28: 14300 | BU28: 60360 | BV28: 14600 | BW28: 15300 | BX28: 60310 | BY28: 14800 | BZ28: 15400 | CA28: 64510 | CB28: 16300 | CC28: 17000 | CD28: 58680 | CE28: 16900 | CF28: 17600 | CG28: 57720 | CH28: 17600 | CI28: 18200 | CJ28: 57020 | CK28: 18600 | CL28: 19100 | CM28: 55640 | CP28: Number of Bedrooms | CQ28: 2 bedrooms | CR28: Number of Bedrooms2 bedrooms | CS28: 2800 | CT28: 3700 | CU28: 974170 | CV28: 2900 | CW28: 3700 | CX28: 983530 | CY28: 2900 | CZ28: 3800 | DA28: 960850 | DB28: 2900 | DC28: 3800 | DD28: 951340 | DE28: 2900 | DF28: 3800 | DG28: 945140 | DH28: 3000 | DI28: 4000 | DJ28: 940570 | DK28: 3000 | DL28: 4000 | DM28: 935830 | DN28: 3100 | DO28: 4100 | DP28: 821760 | DQ28: 10400 | DR28: 11300 | DS28: 748250 | DT28: 10400 | DU28: 11300 | DV28: 782910 | DW28: 11300 | DX28: 12200 | DY28: 741890 | DZ28: 11400 | EA28: 12300 | EB28: 800060 | EC28: 12600 | ED28: 13500 | EE28: 722830 | EF28: 13200 | EG28: 14100 | EH28: 712290 | EI28: 13700 | EJ28: 14600 | EK28: 691490 | EL28: 14300 | EM28: 15300 | EN28: 680410
AI29: Number of ObservationsElectricity2007 | AJ29: 19 | AN29: 17 | AO29: 1945-64 | AP29: End terrace | AQ29: 1945-64End terrace | AR29: 3400 | AS29: 3900 | AT29: 53530 | AU29: 3500 | AV29: 4000 | AW29: 53910 | AX29: 3500 | AY29: 4100 | AZ29: 53880 | BA29: 3400 | BB29: 4100 | BC29: 53330 | BD29: 3500 | BE29: 4100 | BF29: 53020 | BG29: 3600 | BH29: 4300 | BI29: 53110 | BJ29: 3700 | BK29: 4300 | BL29: 53280 | BM29: 3700 | BN29: 4400 | BO29: 48140 | BP29: 12300 | BQ29: 12800 | BR29: 48300 | BS29: 12400 | BT29: 12900 | BU29: 50430 | BV29: 13400 | BW29: 13900 | BX29: 48660 | BY29: 13600 | BZ29: 14100 | CA29: 51790 | CB29: 15000 | CC29: 15500 | CD29: 47080 | CE29: 15600 | CF29: 16200 | CG29: 46560 | CH29: 16300 | CI29: 16700 | CJ29: 45980 | CK29: 17200 | CL29: 17600 | CM29: 44970 | CP29: Number of Bedrooms | CQ29: 3 bedrooms | CR29: Number of Bedrooms3 bedrooms | CS29: 3500 | CT29: 4100 | CU29: 1677650 | CV29: 3600 | CW29: 4200 | CX29: 1690800 | CY29: 3600 | CZ29: 4300 | DA29: 1659470 | DB29: 3600 | DC29: 4300 | DD29: 1644630 | DE29: 3600 | DF29: 4300 | DG29: 1633770 | DH29: 3800 | DI29: 4500 | DJ29: 1634110 | DK29: 3900 | DL29: 4600 | DM29: 1636560 | DN29: 3900 | DO29: 4700 | DP29: 1448730 | DQ29: 13700 | DR29: 14600 | DS29: 1441900 | DT29: 13700 | DU29: 14600 | DV29: 1508410 | DW29: 14800 | DX29: 15600 | DY29: 1437100 | DZ29: 14900 | EA29: 15800 | EB29: 1526590 | EC29: 16400 | ED29: 17300 | EE29: 1402150 | EF29: 17100 | EG29: 18000 | EH29: 1378720 | EI29: 17800 | EJ29: 18600 | EK29: 1345520 | EL29: 18600 | EM29: 19400 | EN29: 1326400
AI30: MedianElectricity2006 | AJ30: 20 | AN30: 18 | AO30: 1965-82 | AP30: End terrace | AQ30: 1965-82End terrace | AR30: 3400 | AS30: 4000 | AT30: 65090 | AU30: 3500 | AV30: 4100 | AW30: 65560 | AX30: 3500 | AY30: 4200 | AZ30: 66730 | BA30: 3500 | BB30: 4200 | BC30: 66140 | BD30: 3600 | BE30: 4300 | BF30: 65760 | BG30: 3700 | BH30: 4500 | BI30: 65630 | BJ30: 3800 | BK30: 4500 | BL30: 65970 | BM30: 3900 | BN30: 4700 | BO30: 60000 | BP30: 11700 | BQ30: 12200 | BR30: 57240 | BS30: 11700 | BT30: 12300 | BU30: 59810 | BV30: 12700 | BW30: 13200 | BX30: 58770 | BY30: 12800 | BZ30: 13400 | CA30: 62830 | CB30: 14200 | CC30: 14700 | CD30: 56850 | CE30: 14800 | CF30: 15400 | CG30: 56070 | CH30: 15400 | CI30: 16000 | CJ30: 55290 | CK30: 16300 | CL30: 16800 | CM30: 53840 | CP30: Number of Bedrooms | CQ30: 4 bedrooms | CR30: Number of Bedrooms4 bedrooms | CS30: 4400 | CT30: 5200 | CU30: 411190 | CV30: 4600 | CW30: 5300 | CX30: 413990 | CY30: 4600 | CZ30: 5400 | DA30: 402860 | DB30: 4600 | DC30: 5400 | DD30: 399530 | DE30: 4700 | DF30: 5400 | DG30: 396530 | DH30: 4900 | DI30: 5700 | DJ30: 395740 | DK30: 5000 | DL30: 5700 | DM30: 394470 | DN30: 5100 | DO30: 5900 | DP30: 350750 | DQ30: 18300 | DR30: 19600 | DS30: 332310 | DT30: 18100 | DU30: 19500 | DV30: 349930 | DW30: 19500 | DX30: 20800 | DY30: 327680 | DZ30: 19700 | EA30: 20900 | EB30: 345650 | EC30: 21400 | ED30: 22600 | EE30: 322590 | EF30: 22100 | EG30: 23200 | EH30: 312010 | EI30: 22900 | EJ30: 24000 | EK30: 295920 | EL30: 23300 | EM30: 24700 | EN30: 301030
AI31: MeanElectricity2006 | AJ31: 21 | AN31: 19 | AO31: 1983-92 | AP31: End terrace | AQ31: 1983-92End terrace | AR31: 3000 | AS31: 4000 | AT31: 20470 | AU31: 3100 | AV31: 4000 | AW31: 20590 | AX31: 3200 | AY31: 4100 | AZ31: 20620 | BA31: 3200 | BB31: 4100 | BC31: 20500 | BD31: 3200 | BE31: 4200 | BF31: 20350 | BG31: 3300 | BH31: 4400 | BI31: 20360 | BJ31: 3400 | BK31: 4400 | BL31: 20460 | BM31: 3400 | BN31: 4500 | BO31: 18850 | BP31: 9500 | BQ31: 10100 | BR31: 16760 | BS31: 9500 | BT31: 10100 | BU31: 17450 | BV31: 10200 | BW31: 10800 | BX31: 17110 | BY31: 10300 | BZ31: 11000 | CA31: 17980 | CB31: 11200 | CC31: 11900 | CD31: 16620 | CE31: 11700 | CF31: 12400 | CG31: 16490 | CH31: 12100 | CI31: 12800 | CJ31: 16370 | CK31: 12600 | CL31: 13300 | CM31: 15970 | CP31: Number of Bedrooms | CQ31: 5 or more bedrooms | CR31: Number of Bedrooms5 or more bedrooms | CS31: 5800 | CT31: 7100 | CU31: 93990 | CV31: 6000 | CW31: 7200 | CX31: 94950 | CY31: 6000 | CZ31: 7200 | DA31: 91730 | DB31: 6000 | DC31: 7200 | DD31: 90820 | DE31: 6100 | DF31: 7200 | DG31: 90150 | DH31: 6400 | DI31: 7500 | DJ31: 89910 | DK31: 6500 | DL31: 7600 | DM31: 89730 | DN31: 6600 | DO31: 7700 | DP31: 80820 | DQ31: 24700 | DR31: 25600 | DS31: 63920 | DT31: 24300 | DU31: 25400 | DV31: 67330 | DW31: 26000 | DX31: 26800 | DY31: 61920 | DZ31: 26000 | EA31: 26700 | EB31: 66010 | EC31: 27800 | ED31: 28100 | EE31: 58000 | EF31: 28300 | EG31: 28500 | EH31: 55230 | EI31: 29300 | EJ31: 29300 | EK31: 51880 | EL31: 30200 | EM31: 29900 | EN31: 52120
AI32: Number of ObservationsElectricity2006 | AJ32: 22 | AN32: 20 | AO32: 1993-99 | AP32: End terrace | AQ32: 1993-99End terrace | AR32: 3100 | AS32: 3800 | AT32: 18160 | AU32: 3200 | AV32: 3900 | AW32: 18200 | AX32: 3200 | AY32: 3900 | AZ32: 18510 | BA32: 3200 | BB32: 3900 | BC32: 18370 | BD32: 3200 | BE32: 4000 | BF32: 18260 | BG32: 3300 | BH32: 4100 | BI32: 18220 | BJ32: 3400 | BK32: 4200 | BL32: 18350 | BM32: 3400 | BN32: 4300 | BO32: 16590 | BP32: 9800 | BQ32: 10400 | BR32: 15370 | BS32: 9800 | BT32: 10500 | BU32: 16040 | BV32: 10500 | BW32: 11300 | BX32: 15600 | BY32: 10500 | BZ32: 11300 | CA32: 16320 | CB32: 11500 | CC32: 12300 | CD32: 15630 | CE32: 11900 | CF32: 12700 | CG32: 15160 | CH32: 12200 | CI32: 13000 | CJ32: 14370 | CK32: 12600 | CL32: 13500 | CM32: 15150 | CP32: Floor Area (m2) | CQ32: 50 or less | CR32: Floor Area (m2)50 or less | CS32: 2300 | CT32: 3300 | CU32: 452740 | CV32: 2300 | CW32: 3300 | CX32: 458410 | CY32: 2300 | CZ32: 3400 | DA32: 429880 | DB32: 2300 | DC32: 3400 | DD32: 425230 | DE32: 2400 | DF32: 3500 | DG32: 422810 | DH32: 2400 | DI32: 3600 | DJ32: 417840 | DK32: 2500 | DL32: 3600 | DM32: 411120 | DN32: 2500 | DO32: 3700 | DP32: 365760 | DQ32: 6700 | DR32: 7400 | DS32: 253120 | DT32: 6800 | DU32: 7600 | DV32: 265190 | DW32: 7400 | DX32: 8100 | DY32: 232950 | DZ32: 7400 | EA32: 8200 | EB32: 261310 | EC32: 8200 | ED32: 9000 | EE32: 227130 | EF32: 8700 | EG32: 9500 | EH32: 224200 | EI32: 9000 | EJ32: 9700 | EK32: 216930 | EL32: 9700 | EM32: 10400 | EN32: 210730
AI33: MedianElectricity2005 | AJ33: 23 | AN33: 21 | AO33: Post 1999 | AP33: End terrace | AQ33: Post 1999End terrace | AR33: 3100 | AS33: 3600 | AT33: 20990 | AU33: 3200 | AV33: 3700 | AW33: 21070 | AX33: 3200 | AY33: 3700 | AZ33: 18690 | BA33: 3200 | BB33: 3700 | BC33: 18480 | BD33: 3100 | BE33: 3700 | BF33: 18150 | BG33: 3200 | BH33: 3700 | BI33: 16910 | BJ33: 3300 | BK33: 3800 | BL33: 14740 | BM33: 3200 | BN33: 3800 | BO33: 11440 | BP33: 10900 | BQ33: 11700 | BR33: 14340 | BS33: 11000 | BT33: 11900 | BU33: 15970 | BV33: 11500 | BW33: 12400 | BX33: 10820 | BY33: 11400 | BZ33: 12400 | CA33: 11440 | CB33: 12200 | CC33: 13200 | CD33: 13320 | CE33: 13500 | CF33: 14300 | CG33: 11490 | CH33: 13900 | CI33: 14700 | CJ33: 7240 | CK33: 14100 | CL33: 15100 | CM33: 10320 | CP33: Floor Area (m2) | CQ33: 51 to 100 | CR33: Floor Area (m2)51 to 100 | CS33: 3000 | CT33: 3700 | CU33: 1780930 | CV33: 3100 | CW33: 3800 | CX33: 1795740 | CY33: 3200 | CZ33: 3800 | DA33: 1781320 | DB33: 3100 | DC33: 3900 | DD33: 1765110 | DE33: 3200 | DF33: 3900 | DG33: 1753660 | DH33: 3300 | DI33: 4100 | DJ33: 1752410 | DK33: 3400 | DL33: 4100 | DM33: 1753600 | DN33: 3400 | DO33: 4200 | DP33: 1546550 | DQ33: 11600 | DR33: 12200 | DS33: 1504330 | DT33: 11600 | DU33: 12300 | DV33: 1572120 | DW33: 12600 | DX33: 13200 | DY33: 1509840 | DZ33: 12700 | EA33: 13300 | EB33: 1612160 | EC33: 14000 | ED33: 14600 | EE33: 1474420 | EF33: 14600 | EG33: 15300 | EH33: 1451890 | EI33: 15200 | EJ33: 15800 | EK33: 1417110 | EL33: 16000 | EM33: 16600 | EN33: 1395970
AI34: MeanElectricity2005 | AJ34: 24 | AN34: 22 | AO34: Pre 1919 | AP34: Mid terrace | AQ34: Pre 1919Mid terrace | AR34: 3000 | AS34: 3700 | AT34: 325490 | AU34: 3100 | AV34: 3700 | AW34: 329840 | AX34: 3100 | AY34: 3800 | AZ34: 317800 | BA34: 3100 | BB34: 3800 | BC34: 313360 | BD34: 3100 | BE34: 3800 | BF34: 311700 | BG34: 3300 | BH34: 4000 | BI34: 312270 | BJ34: 3300 | BK34: 4100 | BL34: 314410 | BM34: 3500 | BN34: 4300 | BO34: 273980 | BP34: 12600 | BQ34: 13700 | BR34: 288540 | BS34: 12700 | BT34: 13700 | BU34: 301440 | BV34: 13600 | BW34: 14700 | BX34: 279750 | BY34: 13600 | BZ34: 14800 | CA34: 305230 | CB34: 15100 | CC34: 16200 | CD34: 269960 | CE34: 15700 | CF34: 16800 | CG34: 266350 | CH34: 16300 | CI34: 17200 | CJ34: 261840 | CK34: 17100 | CL34: 18100 | CM34: 255200 | CP34: Floor Area (m2) | CQ34: 101 to 150 | CR34: Floor Area (m2)101 to 150 | CS34: 3800 | CT34: 4400 | CU34: 960010 | CV34: 3900 | CW34: 4500 | CX34: 967100 | CY34: 4000 | CZ34: 4600 | DA34: 941830 | DB34: 4000 | DC34: 4600 | DD34: 933440 | DE34: 4000 | DF34: 4600 | DG34: 926990 | DH34: 4200 | DI34: 4900 | DJ34: 926460 | DK34: 4300 | DL34: 4900 | DM34: 926110 | DN34: 4300 | DO34: 5100 | DP34: 818770 | DQ34: 16100 | DR34: 16800 | DS34: 812960 | DT34: 16000 | DU34: 16800 | DV34: 853100 | DW34: 17300 | DX34: 18000 | DY34: 805310 | DZ34: 17400 | EA34: 18200 | EB34: 852430 | EC34: 19200 | ED34: 19900 | EE34: 789060 | EF34: 19800 | EG34: 20600 | EH34: 773120 | EI34: 20700 | EJ34: 21300 | EK34: 747670 | EL34: 21500 | EM34: 22200 | EN34: 744990
AI35: Number of ObservationsElectricity2005 | AJ35: 25 | AN35: 23 | AO35: 1919-44 | AP35: Mid terrace | AQ35: 1919-44Mid terrace | AR35: 3200 | AS35: 3700 | AT35: 98330 | AU35: 3300 | AV35: 3700 | AW35: 99280 | AX35: 3300 | AY35: 3800 | AZ35: 102710 | BA35: 3300 | BB35: 3800 | BC35: 101580 | BD35: 3300 | BE35: 3800 | BF35: 101000 | BG35: 3400 | BH35: 4000 | BI35: 101240 | BJ35: 3500 | BK35: 4100 | BL35: 101690 | BM35: 3500 | BN35: 4200 | BO35: 92810 | BP35: 11900 | BQ35: 12500 | BR35: 90750 | BS35: 12000 | BT35: 12600 | BU35: 94410 | BV35: 13000 | BW35: 13500 | BX35: 94400 | BY35: 13100 | BZ35: 13700 | CA35: 101040 | CB35: 14400 | CC35: 15000 | CD35: 91750 | CE35: 15000 | CF35: 15600 | CG35: 90690 | CH35: 15600 | CI35: 16100 | CJ35: 89440 | CK35: 16400 | CL35: 16900 | CM35: 87410 | CP35: Floor Area (m2) | CQ35: 151 to 200 | CR35: Floor Area (m2)151 to 200 | CS35: 4800 | CT35: 5700 | CU35: 196470 | CV35: 5000 | CW35: 5800 | CX35: 198240 | CY35: 5000 | CZ35: 5900 | DA35: 189960 | DB35: 5000 | DC35: 5900 | DD35: 188200 | DE35: 5100 | DF35: 5900 | DG35: 186820 | DH35: 5300 | DI35: 6200 | DJ35: 186350 | DK35: 5400 | DL35: 6200 | DM35: 186200 | DN35: 5500 | DO35: 6400 | DP35: 165120 | DQ35: 22500 | DR35: 23300 | DS35: 147370 | DT35: 22100 | DU35: 23100 | DV35: 155220 | DW35: 23900 | DX35: 24700 | DY35: 144720 | DZ35: 24000 | EA35: 24800 | EB35: 152950 | EC35: 26000 | ED35: 26600 | EE35: 139640 | EF35: 26700 | EG35: 27200 | EH35: 134610 | EI35: 27800 | EJ35: 28100 | EK35: 127860 | EL35: 28500 | EM35: 28800 | EN35: 128220
AI36: MedianGas2012 | AJ36: 26 | AN36: 24 | AO36: 1945-64 | AP36: Mid terrace | AQ36: 1945-64Mid terrace | AR36: 3300 | AS36: 3900 | AT36: 80090 | AU36: 3400 | AV36: 4000 | AW36: 80780 | AX36: 3400 | AY36: 4000 | AZ36: 80280 | BA36: 3400 | BB36: 3900 | BC36: 79520 | BD36: 3400 | BE36: 4000 | BF36: 79030 | BG36: 3500 | BH36: 4200 | BI36: 79160 | BJ36: 3600 | BK36: 4200 | BL36: 79440 | BM36: 3600 | BN36: 4300 | BO36: 72410 | BP36: 11600 | BQ36: 11900 | BR36: 72790 | BS36: 11600 | BT36: 12000 | BU36: 75520 | BV36: 12600 | BW36: 13000 | BX36: 72850 | BY36: 12700 | BZ36: 13200 | CA36: 77630 | CB36: 14100 | CC36: 14500 | CD36: 70930 | CE36: 14700 | CF36: 15200 | CG36: 70070 | CH36: 15200 | CI36: 15600 | CJ36: 69120 | CK36: 16000 | CL36: 16400 | CM36: 67280 | CP36: Floor Area (m2) | CQ36: Over 200 | CR36: Floor Area (m2)Over 200 | CS36: 6500 | CT36: 7800 | CU36: 97540 | CV36: 6600 | CW36: 7900 | CX36: 98630 | CY36: 6700 | CZ36: 7900 | DA36: 98250 | DB36: n/a | DC36: n/a | DD36: n/a | DE36: n/a | DF36: n/a | DG36: n/a | DH36: n/a | DI36: n/a | DJ36: n/a | DK36: n/a | DL36: n/a | DM36: n/a | DN36: n/a | DO36: n/a | DP36: n/a | DQ36: 29000 | DR36: 29000 | DS36: 53110 | DT36: 28600 | DU36: 28700 | DV36: 55920 | DW36: 30100 | DX36: 30000 | DY36: 51630 | DZ36: n/a | EA36: n/a | EB36: n/a | EC36: n/a | ED36: n/a | EE36: n/a | EF36: n/a | EG36: n/a | EH36: n/a | EI36: n/a | EJ36: n/a | EK36: n/a | EL36: n/a | EM36: n/a | EN36: n/a
AI37: MeanGas2012 | AJ37: 27 | AN37: 25 | AO37: 1965-82 | AP37: Mid terrace | AQ37: 1965-82Mid terrace | AR37: 3300 | AS37: 3800 | AT37: 112510 | AU37: 3400 | AV37: 3900 | AW37: 113370 | AX37: 3400 | AY37: 4000 | AZ37: 115000 | BA37: 3400 | BB37: 4000 | BC37: 113930 | BD37: 3400 | BE37: 4100 | BF37: 113190 | BG37: 3600 | BH37: 4300 | BI37: 113270 | BJ37: 3700 | BK37: 4400 | BL37: 113690 | BM37: 3700 | BN37: 4500 | BO37: 103580 | BP37: 10400 | BQ37: 10800 | BR37: 98650 | BS37: 10500 | BT37: 11000 | BU37: 102880 | BV37: 11300 | BW37: 11800 | BX37: 100510 | BY37: 11500 | BZ37: 12000 | CA37: 107790 | CB37: 12600 | CC37: 13200 | CD37: 97460 | CE37: 13200 | CF37: 13800 | CG37: 96150 | CH37: 13700 | CI37: 14300 | CJ37: 94910 | CK37: 14500 | CL37: 15000 | CM37: 91970 | CP37: Tenure | CQ37: Owner-occupied | CR37: TenureOwner-occupied | CS37: 3500 | CT37: 4300 | CU37: 2320540 | CV37: 3700 | CW37: 4400 | CX37: 2337880 | CY37: 3700 | CZ37: 4500 | DA37: 2074800 | DB37: 3700 | DC37: 4500 | DD37: 2058340 | DE37: 3800 | DF37: 4500 | DG37: 2046360 | DH37: 3900 | DI37: 4700 | DJ37: 2044580 | DK37: 4000 | DL37: 4800 | DM37: 2044160 | DN37: 4100 | DO37: 4900 | DP37: 1801160 | DQ37: 14300 | DR37: 15400 | DS37: 1888010 | DT37: 14200 | DU37: 15400 | DV37: 1980140 | DW37: 15400 | DX37: 16400 | DY37: 1730260 | DZ37: 15500 | EA37: 16600 | EB37: 1832850 | EC37: 17100 | ED37: 18100 | EE37: 1692420 | EF37: 17700 | EG37: 18700 | EH37: 1656920 | EI37: 18400 | EJ37: 19300 | EK37: 1604490 | EL37: 19100 | EM37: 20100 | EN37: 1595170
AI38: Number of ObservationsGas2012 | AJ38: 28 | AN38: 26 | AO38: 1983-92 | AP38: Mid terrace | AQ38: 1983-92Mid terrace | AR38: 2900 | AS38: 3800 | AT38: 31710 | AU38: 3000 | AV38: 3800 | AW38: 31880 | AX38: 3000 | AY38: 3900 | AZ38: 32410 | BA38: 3000 | BB38: 4000 | BC38: 32140 | BD38: 3100 | BE38: 4000 | BF38: 31920 | BG38: 3200 | BH38: 4200 | BI38: 31960 | BJ38: 3300 | BK38: 4200 | BL38: 32150 | BM38: 3400 | BN38: 4400 | BO38: 29770 | BP38: 8300 | BQ38: 8900 | BR38: 25070 | BS38: 8300 | BT38: 9000 | BU38: 26030 | BV38: 9100 | BW38: 9700 | BX38: 25500 | BY38: 9100 | BZ38: 9800 | CA38: 27090 | CB38: 10000 | CC38: 10700 | CD38: 24780 | CE38: 10500 | CF38: 11200 | CG38: 24510 | CH38: 10700 | CI38: 11500 | CJ38: 24480 | CK38: 11300 | CL38: 12100 | CM38: 23860 | CP38: Tenure | CQ38: Privately rented | CR38: TenurePrivately rented | CS38: 3000 | CT38: 3900 | CU38: 495780 | CV38: 3100 | CW38: 3900 | CX38: 501500 | CY38: 3100 | CZ38: 4000 | DA38: 203170 | DB38: 3100 | DC38: 4000 | DD38: 200680 | DE38: 3200 | DF38: 4100 | DG38: 199240 | DH38: 3300 | DI38: 4200 | DJ38: 196740 | DK38: 3300 | DL38: 4200 | DM38: 194910 | DN38: 3400 | DO38: 4400 | DP38: 168510 | DQ38: 10500 | DR38: 11700 | DS38: 345810 | DT38: 10500 | DU38: 11800 | DV38: 361890 | DW38: 11500 | DX38: 12600 | DY38: 143720 | DZ38: 11500 | EA38: 12600 | EB38: 157420 | EC38: 12700 | ED38: 13800 | EE38: 139740 | EF38: 13300 | EG38: 14400 | EH38: 136960 | EI38: 13900 | EJ38: 14900 | EK38: 131910 | EL38: 14800 | EM38: 15900 | EN38: 129570
AI39: MedianGas2011 | AJ39: 29 | AN39: 27 | AO39: 1993-99 | AP39: Mid terrace | AQ39: 1993-99Mid terrace | AR39: 2800 | AS39: 3600 | AT39: 23920 | AU39: 3000 | AV39: 3600 | AW39: 24030 | AX39: 3000 | AY39: 3700 | AZ39: 24690 | BA39: 3000 | BB39: 3700 | BC39: 24470 | BD39: 3000 | BE39: 3800 | BF39: 24300 | BG39: 3100 | BH39: 3900 | BI39: 24330 | BJ39: 3200 | BK39: 3900 | BL39: 24430 | BM39: 3200 | BN39: 4100 | BO39: 22200 | BP39: 8700 | BQ39: 9500 | BR39: 19960 | BS39: 8900 | BT39: 9600 | BU39: 20880 | BV39: 9400 | BW39: 10200 | BX39: 20440 | BY39: 9400 | BZ39: 10300 | CA39: 21440 | CB39: 10300 | CC39: 11100 | CD39: 20330 | CE39: 10700 | CF39: 11600 | CG39: 19730 | CH39: 10900 | CI39: 11900 | CJ39: 18890 | CK39: 11400 | CL39: 12300 | CM39: 19800 | CP39: Tenure | CQ39: Council/Housing Association | CR39: TenureCouncil/Housing Association | CS39: 2800 | CT39: 3500 | CU39: 624360 | CV39: 2900 | CW39: 3500 | CX39: 630580 | CY39: 3000 | CZ39: 3600 | DA39: 547840 | DB39: 2900 | DC39: 3700 | DD39: 542990 | DE39: 3000 | DF39: 3700 | DG39: 539950 | DH39: 3100 | DI39: 3900 | DJ39: 537600 | DK39: 3100 | DL39: 3900 | DM39: 536120 | DN39: 3200 | DO39: 4000 | DP39: 466130 | DQ39: 10100 | DR39: 10700 | DS39: 507050 | DT39: 10200 | DU39: 10900 | DV39: 527830 | DW39: 10900 | DX39: 11500 | DY39: 431550 | DZ39: 11100 | EA39: 11600 | EB39: 465540 | EC39: 12300 | ED39: 12800 | EE39: 418950 | EF39: 12900 | EG39: 13500 | EH39: 413460 | EI39: 13400 | EJ39: 14000 | EK39: 403300 | EL39: 14200 | EM39: 14800 | EN39: 390570
AI40: MeanGas2011 | AJ40: 30 | AN40: 28 | AO40: Post 1999 | AP40: Mid terrace | AQ40: Post 1999Mid terrace | AR40: 3000 | AS40: 3500 | AT40: 27800 | AU40: 3100 | AV40: 3600 | AW40: 27890 | AX40: 3100 | AY40: 3600 | AZ40: 25000 | BA40: 3100 | BB40: 3600 | BC40: 24740 | BD40: 3000 | BE40: 3500 | BF40: 24360 | BG40: 3100 | BH40: 3600 | BI40: 22810 | BJ40: 3100 | BK40: 3600 | BL40: 20050 | BM40: 3100 | BN40: 3600 | BO40: 15590 | BP40: 10300 | BQ40: 11100 | BR40: 18870 | BS40: 10400 | BT40: 11300 | BU40: 21140 | BV40: 11000 | BW40: 11900 | BX40: 14400 | BY40: 10900 | BZ40: 11800 | CA40: 15370 | CB40: 11600 | CC40: 12500 | CD40: 17680 | CE40: 12700 | CF40: 13600 | CG40: 15200 | CH40: 13100 | CI40: 14000 | CJ40: 9830 | CK40: 13200 | CL40: 14200 | CM40: 13830 | CP40: Income | CQ40: Less than £15,000 | CR40: IncomeLess than £15,000 | CS40: 2600 | CT40: 3400 | CU40: 718190 | CV40: 2700 | CW40: 3400 | CX40: 725820 | CY40: 2700 | CZ40: 3500 | DA40: 725380 | DB40: 2700 | DC40: 3500 | DD40: 718740 | DE40: 2700 | DF40: 3500 | DG40: 711640 | DH40: 2800 | DI40: 3700 | DJ40: 707680 | DK40: 2900 | DL40: 3800 | DM40: 708680 | DN40: 3000 | DO40: 3900 | DP40: 620380 | DQ40: 10900 | DR40: 11700 | DS40: 566870 | DT40: 10900 | DU40: 11800 | DV40: 591440 | DW40: 11800 | DX40: 12700 | DY40: 566670 | DZ40: 12000 | EA40: 12800 | EB40: 607220 | EC40: 13300 | ED40: 14200 | EE40: 551470 | EF40: 13900 | EG40: 14800 | EH40: 544330 | EI40: 14500 | EJ40: 15300 | EK40: 530250 | EL40: 15300 | EM40: 16200 | EN40: 518040
AI41: Number of ObservationsGas2011 | AJ41: 31 | AN41: 29 | AO41: Pre 1919 | AP41: Bungalow | AQ41: Pre 1919Bungalow | AR41: 3800 | AS41: 5200 | AT41: 8460 | AU41: 3800 | AV41: 5100 | AW41: 8610 | AX41: 3800 | AY41: 5200 | AZ41: 7240 | BA41: 3800 | BB41: 5200 | BC41: 7170 | BD41: 3900 | BE41: 5200 | BF41: 7160 | BG41: 4000 | BH41: 5400 | BI41: 7110 | BJ41: 4100 | BK41: 5500 | BL41: 7160 | BM41: 4000 | BN41: 5500 | BO41: 6490 | BP41: 15600 | BQ41: 16800 | BR41: 4400 | BS41: 15400 | BT41: 16700 | BU41: 4610 | BV41: 16800 | BW41: 17700 | BX41: 4170 | BY41: 16800 | BZ41: 17900 | CA41: 4490 | CB41: 18500 | CC41: 19600 | CD41: 3970 | CE41: 19200 | CF41: 20200 | CG41: 3860 | CH41: 19400 | CI41: 20500 | CJ41: 3840 | CK41: 20600 | CL41: 21500 | CM41: 3680 | CP41: Income | CQ41: £15,000 - £19,999 | CR41: Income£15,000 - £19,999 | CS41: 2900 | CT41: 3600 | CU41: 281560 | CV41: 2900 | CW41: 3700 | CX41: 283950 | CY41: 2900 | CZ41: 3700 | DA41: 283840 | DB41: 2900 | DC41: 3700 | DD41: 281310 | DE41: 3000 | DF41: 3800 | DG41: 278690 | DH41: 3100 | DI41: 4000 | DJ41: 277200 | DK41: 3200 | DL41: 4000 | DM41: 277710 | DN41: 3300 | DO41: 4200 | DP41: 246430 | DQ41: 11800 | DR41: 12700 | DS41: 221050 | DT41: 11800 | DU41: 12700 | DV41: 230920 | DW41: 12800 | DX41: 13700 | DY41: 221420 | DZ41: 12900 | EA41: 13800 | EB41: 236590 | EC41: 14300 | ED41: 15200 | EE41: 216370 | EF41: 14900 | EG41: 15800 | EH41: 212810 | EI41: 15500 | EJ41: 16300 | EK41: 207200 | EL41: 16400 | EM41: 17200 | EN41: 203640
AI42: MedianGas2010 | AJ42: 32 | AN42: 30 | AO42: 1919-44 | AP42: Bungalow | AQ42: 1919-44Bungalow | AR42: 3400 | AS42: 4300 | AT42: 48140 | AU42: 3500 | AV42: 4400 | AW42: 48550 | AX42: 3500 | AY42: 4400 | AZ42: 48890 | BA42: 3500 | BB42: 4400 | BC42: 48510 | BD42: 3500 | BE42: 4500 | BF42: 48320 | BG42: 3700 | BH42: 4700 | BI42: 48300 | BJ42: 3700 | BK42: 4700 | BL42: 48580 | BM42: 3800 | BN42: 4800 | BO42: 45340 | BP42: 15700 | BQ42: 16600 | BR42: 39460 | BS42: 15500 | BT42: 16500 | BU42: 41340 | BV42: 16800 | BW42: 17700 | BX42: 41150 | BY42: 16900 | BZ42: 17800 | CA42: 43240 | CB42: 18600 | CC42: 19500 | CD42: 39780 | CE42: 19300 | CF42: 20200 | CG42: 39130 | CH42: 19900 | CI42: 20800 | CJ42: 38640 | CK42: 20800 | CL42: 21700 | CM42: 37790 | CP42: Income | CQ42: £20,000 - £29,999 | CR42: Income£20,000 - £29,999 | CS42: 3100 | CT42: 3800 | CU42: 680260 | CV42: 3100 | CW42: 3800 | CX42: 685520 | CY42: 3200 | CZ42: 3900 | DA42: 684510 | DB42: 3100 | DC42: 3900 | DD42: 677610 | DE42: 3200 | DF42: 4000 | DG42: 669630 | DH42: 3300 | DI42: 4200 | DJ42: 665330 | DK42: 3400 | DL42: 4200 | DM42: 665420 | DN42: 3500 | DO42: 4400 | DP42: 579700 | DQ42: 12000 | DR42: 13000 | DS42: 542220 | DT42: 12000 | DU42: 13000 | DV42: 566480 | DW42: 13000 | DX42: 13900 | DY42: 541130 | DZ42: 13100 | EA42: 14100 | EB42: 579230 | EC42: 14600 | ED42: 15500 | EE42: 528250 | EF42: 15200 | EG42: 16200 | EH42: 519600 | EI42: 15900 | EJ42: 16800 | EK42: 505260 | EL42: 16800 | EM42: 17600 | EN42: 496470
AI43: MeanGas2010 | AJ43: 33 | AN43: 31 | AO43: 1945-64 | AP43: Bungalow | AQ43: 1945-64Bungalow | AR43: 2900 | AS43: 3800 | AT43: 120400 | AU43: 3000 | AV43: 3900 | AW43: 121220 | AX43: 3000 | AY43: 3900 | AZ43: 122260 | BA43: 3000 | BB43: 3900 | BC43: 121480 | BD43: 3000 | BE43: 3900 | BF43: 120820 | BG43: 3100 | BH43: 4100 | BI43: 120790 | BJ43: 3200 | BK43: 4200 | BL43: 121610 | BM43: 3200 | BN43: 4300 | BO43: 108630 | BP43: 13700 | BQ43: 14700 | BR43: 100010 | BS43: 13600 | BT43: 14700 | BU43: 104270 | BV43: 14600 | BW43: 15600 | BX43: 103660 | BY43: 14800 | BZ43: 15800 | CA43: 108170 | CB43: 16300 | CC43: 17400 | CD43: 100190 | CE43: 17000 | CF43: 18000 | CG43: 99040 | CH43: 17600 | CI43: 18600 | CJ43: 97510 | CK43: 18400 | CL43: 19400 | CM43: 95210 | CP43: Income | CQ43: £30,000 - £39,999 | CR43: Income£30,000 - £39,999 | CS43: 3400 | CT43: 4100 | CU43: 558050 | CV43: 3500 | CW43: 4200 | CX43: 562000 | CY43: 3500 | CZ43: 4300 | DA43: 561080 | DB43: 3500 | DC43: 4300 | DD43: 555590 | DE43: 3600 | DF43: 4300 | DG43: 549580 | DH43: 3700 | DI43: 4500 | DJ43: 545710 | DK43: 3800 | DL43: 4600 | DM43: 544740 | DN43: 3900 | DO43: 4700 | DP43: 485060 | DQ43: 13000 | DR43: 14000 | DS43: 449080 | DT43: 12900 | DU43: 13900 | DV43: 470120 | DW43: 14000 | DX43: 15000 | DY43: 447760 | DZ43: 14200 | EA43: 15100 | EB43: 478910 | EC43: 15700 | ED43: 16600 | EE43: 437720 | EF43: 16300 | EG43: 17200 | EH43: 429050 | EI43: 17000 | EJ43: 17900 | EK43: 416670 | EL43: 17800 | EM43: 18700 | EN43: 411900
AI44: Number of ObservationsGas2010 | AJ44: 34 | AN44: 32 | AO44: 1965-82 | AP44: Bungalow | AQ44: 1965-82Bungalow | AR44: 2900 | AS44: 3800 | AT44: 129660 | AU44: 3000 | AV44: 3800 | AW44: 130200 | AX44: 3000 | AY44: 3900 | AZ44: 126340 | BA44: 2900 | BB44: 3900 | BC44: 125710 | BD44: 2900 | BE44: 4000 | BF44: 125080 | BG44: 3100 | BH44: 4200 | BI44: 125210 | BJ44: 3200 | BK44: 4200 | BL44: 125870 | BM44: 3200 | BN44: 4300 | BO44: 111600 | BP44: 12700 | BQ44: 13700 | BR44: 98920 | BS44: 12600 | BT44: 13700 | BU44: 103020 | BV44: 13500 | BW44: 14500 | BX44: 99370 | BY44: 13600 | BZ44: 14700 | CA44: 103590 | CB44: 15100 | CC44: 16200 | CD44: 96140 | CE44: 15800 | CF44: 16900 | CG44: 95260 | CH44: 16300 | CI44: 17400 | CJ44: 93740 | CK44: 17200 | CL44: 18200 | CM44: 90980 | CP44: Income | CQ44: £40,000 - £49,999 | CR44: Income£40,000 - £49,999 | CS44: 3700 | CT44: 4400 | CU44: 427710 | CV44: 3900 | CW44: 4500 | CX44: 430980 | CY44: 3900 | CZ44: 4500 | DA44: 430400 | DB44: 3900 | DC44: 4500 | DD44: 425940 | DE44: 3900 | DF44: 4600 | DG44: 420500 | DH44: 4100 | DI44: 4800 | DJ44: 418420 | DK44: 4100 | DL44: 4800 | DM44: 417540 | DN44: 4100 | DO44: 4900 | DP44: 373160 | DQ44: 14000 | DR44: 14900 | DS44: 349690 | DT44: 13900 | DU44: 14900 | DV44: 366660 | DW44: 15000 | DX44: 16000 | DY44: 348600 | DZ44: 15100 | EA44: 16100 | EB44: 372370 | EC44: 16700 | ED44: 17600 | EE44: 340880 | EF44: 17300 | EG44: 18200 | EH44: 332830 | EI44: 18100 | EJ44: 18900 | EK44: 323090 | EL44: 18800 | EM44: 19600 | EN44: 320320
AI45: MedianGas2009 | AJ45: 35 | AN45: 33 | AO45: 1983-92 | AP45: Bungalow | AQ45: 1983-92Bungalow | AR45: 2800 | AS45: 3900 | AT45: 36830 | AU45: 2900 | AV45: 3900 | AW45: 36930 | AX45: 2900 | AY45: 3900 | AZ45: 35580 | BA45: 2900 | BB45: 3900 | BC45: 35450 | BD45: 2900 | BE45: 4000 | BF45: 35190 | BG45: 3000 | BH45: 4200 | BI45: 35340 | BJ45: 3100 | BK45: 4200 | BL45: 35480 | BM45: 3100 | BN45: 4300 | BO45: 31960 | BP45: 11800 | BQ45: 12900 | BR45: 28230 | BS45: 11800 | BT45: 12900 | BU45: 29300 | BV45: 12600 | BW45: 13800 | BX45: 28570 | BY45: 12800 | BZ45: 14000 | CA45: 29380 | CB45: 14100 | CC45: 15300 | CD45: 27730 | CE45: 14700 | CF45: 16000 | CG45: 27740 | CH45: 15200 | CI45: 16400 | CJ45: 27320 | CK45: 15900 | CL45: 17100 | CM45: 26690 | CP45: Income | CQ45: £50,000 - £59,999 | CR45: Income£50,000 - £59,999 | CS45: 3900 | CT45: 4600 | CU45: 252680 | CV45: 4000 | CW45: 4700 | CX45: 254770 | CY45: 4000 | CZ45: 4700 | DA45: 254180 | DB45: 4000 | DC45: 4700 | DD45: 251530 | DE45: 4000 | DF45: 4700 | DG45: 248190 | DH45: 4200 | DI45: 4900 | DJ45: 246530 | DK45: 4200 | DL45: 5000 | DM45: 245210 | DN45: 4300 | DO45: 5100 | DP45: 221260 | DQ45: 14700 | DR45: 15700 | DS45: 203880 | DT45: 14600 | DU45: 15700 | DV45: 214250 | DW45: 15700 | DX45: 16700 | DY45: 202690 | DZ45: 15800 | EA45: 16800 | EB45: 216340 | EC45: 17300 | ED45: 18300 | EE45: 198570 | EF45: 18000 | EG45: 18900 | EH45: 193380 | EI45: 18700 | EJ45: 19600 | EK45: 186350 | EL45: 19500 | EM45: 20300 | EN45: 185870
AI46: MeanGas2009 | AJ46: 36 | AN46: 34 | AO46: 1993-99 | AP46: Bungalow | AQ46: 1993-99Bungalow | AR46: 3000 | AS46: 4100 | AT46: 12850 | AU46: 3100 | AV46: 4100 | AW46: 12920 | AX46: 3100 | AY46: 4100 | AZ46: 12450 | BA46: 3100 | BB46: 4100 | BC46: 12370 | BD46: 3100 | BE46: 4100 | BF46: 12280 | BG46: 3200 | BH46: 4300 | BI46: 12350 | BJ46: 3300 | BK46: 4400 | BL46: 12400 | BM46: 3300 | BN46: 4500 | BO46: 11300 | BP46: 11700 | BQ46: 13000 | BR46: 9340 | BS46: 11700 | BT46: 13000 | BU46: 9690 | BV46: 12400 | BW46: 13800 | BX46: 9500 | BY46: 12600 | BZ46: 13900 | CA46: 9800 | CB46: 13700 | CC46: 15100 | CD46: 9350 | CE46: 14200 | CF46: 15600 | CG46: 9260 | CH46: 14500 | CI46: 15900 | CJ46: 9000 | CK46: 15200 | CL46: 16500 | CM46: 8940 | CP46: Income | CQ46: £60,000 - £69,999 | CR46: Income£60,000 - £69,999 | CS46: 4000 | CT46: 4800 | CU46: 158850 | CV46: 4200 | CW46: 4900 | CX46: 160020 | CY46: 4200 | CZ46: 4900 | DA46: 159730 | DB46: 4200 | DC46: 4900 | DD46: 157960 | DE46: 4200 | DF46: 4900 | DG46: 155900 | DH46: 4400 | DI46: 5100 | DJ46: 154730 | DK46: 4400 | DL46: 5200 | DM46: 153800 | DN46: 4400 | DO46: 5200 | DP46: 139400 | DQ46: 15400 | DR46: 16500 | DS46: 126730 | DT46: 15300 | DU46: 16400 | DV46: 133360 | DW46: 16400 | DX46: 17500 | DY46: 125840 | DZ46: 16500 | EA46: 17600 | EB46: 134150 | EC46: 18100 | ED46: 19100 | EE46: 123640 | EF46: 18700 | EG46: 19700 | EH46: 119580 | EI46: 19400 | EJ46: 20400 | EK46: 114700 | EL46: 20100 | EM46: 21000 | EN46: 115240
AI47: Number of ObservationsGas2009 | AJ47: 37 | AN47: 35 | AO47: Post 1999 | AP47: Bungalow | AQ47: Post 1999Bungalow | AR47: 3100 | AS47: 4100 | AT47: 9330 | AU47: 3200 | AV47: 4200 | AW47: 9370 | AX47: 3200 | AY47: 4100 | AZ47: 7520 | BA47: 3100 | BB47: 4000 | BC47: 7450 | BD47: 3100 | BE47: 4000 | BF47: 7360 | BG47: 3200 | BH47: 4100 | BI47: 7080 | BJ47: 3300 | BK47: 4200 | BL47: 6530 | BM47: 3300 | BN47: 4200 | BO47: 5330 | BP47: 11600 | BQ47: 13000 | BR47: 5230 | BS47: 11400 | BT47: 12900 | BU47: 5940 | BV47: 12300 | BW47: 13700 | BX47: 4410 | BY47: 12200 | BZ47: 13700 | CA47: 4580 | CB47: 13000 | CC47: 14500 | CD47: 4730 | CE47: 13900 | CF47: 15200 | CG47: 4300 | CH47: 14400 | CI47: 15800 | CJ47: 3470 | CK47: 15200 | CL47: 16500 | CM47: 3660 | CP47: Income | CQ47: £70,000 - £99,999 | CR47: Income£70,000 - £99,999 | CS47: 4300 | CT47: 5000 | CU47: 220500 | CV47: 4400 | CW47: 5200 | CX47: 222520 | CY47: 4400 | CZ47: 5200 | DA47: 221930 | DB47: 4400 | DC47: 5200 | DD47: 219270 | DE47: 4400 | DF47: 5200 | DG47: 216860 | DH47: 4600 | DI47: 5400 | DJ47: 215220 | DK47: 4700 | DL47: 5400 | DM47: 214270 | DN47: 4600 | DO47: 5500 | DP47: 196080 | DQ47: 16500 | DR47: 17700 | DS47: 173760 | DT47: 16400 | DU47: 17600 | DV47: 182990 | DW47: 17600 | DX47: 18700 | DY47: 172140 | DZ47: 17600 | EA47: 18700 | EB47: 184230 | EC47: 19300 | ED47: 20300 | EE47: 168410 | EF47: 19800 | EG47: 20800 | EH47: 162500 | EI47: 20600 | EJ47: 21400 | EK47: 155990 | EL47: 21200 | EM47: 22100 | EN47: 157160
AI48: MedianGas2008 | AJ48: 38 | AN48: 36 | AO48: Pre 1919 | AP48: Converted flat | AQ48: Pre 1919Converted flat | AR48: 2600 | AS48: 3800 | AT48: 89450 | AU48: 2600 | AV48: 3800 | AW48: 90760 | AX48: 2700 | AY48: 3800 | AZ48: 64790 | BA48: 2700 | BB48: 3800 | BC48: 63880 | BD48: 2700 | BE48: 3900 | BF48: 63520 | BG48: 2800 | BH48: 4000 | BI48: 62490 | BJ48: 2800 | BK48: 4000 | BL48: 62210 | BM48: 2900 | BN48: 4200 | BO48: 56720 | BP48: 9000 | BQ48: 10800 | BR48: 63510 | BS48: 9100 | BT48: 10900 | BU48: 66530 | BV48: 10000 | BW48: 11700 | BX48: 43080 | BY48: 10000 | BZ48: 11700 | CA48: 48400 | CB48: 10900 | CC48: 12700 | CD48: 41210 | CE48: 11400 | CF48: 13200 | CG48: 40290 | CH48: 11800 | CI48: 13600 | CJ48: 39300 | CK48: 12500 | CL48: 14400 | CM48: 38400 | CP48: Income | CQ48: £100,000 - £149,999 | CR48: Income£100,000 - £149,999 | CS48: 4900 | CT48: 5800 | CU48: 106380 | CV48: 5100 | CW48: 5900 | CX48: 107480 | CY48: 5100 | CZ48: 6000 | DA48: 107270 | DB48: 5000 | DC48: 5900 | DD48: 105920 | DE48: 5000 | DF48: 5900 | DG48: 104920 | DH48: 5200 | DI48: 6100 | DJ48: 104260 | DK48: 5300 | DL48: 6100 | DM48: 104020 | DN48: 5300 | DO48: 6200 | DP48: 95940 | DQ48: 19100 | DR48: 20400 | DS48: 80760 | DT48: 18900 | DU48: 20200 | DV48: 85330 | DW48: 20200 | DX48: 21400 | DY48: 80350 | DZ48: 20100 | EA48: 21300 | EB48: 86090 | EC48: 21800 | ED48: 22800 | EE48: 77790 | EF48: 22300 | EG48: 23300 | EH48: 74760 | EI48: 23100 | EJ48: 23900 | EK48: 71470 | EL48: 23500 | EM48: 24500 | EN48: 72040
AI49: MeanGas2008 | AJ49: 39 | AN49: 37 | AO49: 1919-44 | AP49: Converted flat | AQ49: 1919-44Converted flat | AR49: 2500 | AS49: 3800 | AT49: 7400 | AU49: 2600 | AV49: 3800 | AW49: 7530 | AX49: 2500 | AY49: 3600 | AZ49: 6180 | BA49: 2500 | BB49: 3600 | BC49: 6050 | BD49: 2600 | BE49: 3700 | BF49: 6040 | BG49: 2700 | BH49: 3900 | BI49: 5930 | BJ49: 2700 | BK49: 3900 | BL49: 5890 | BM49: 2800 | BN49: 4000 | BO49: 5390 | BP49: 8700 | BQ49: 10500 | BR49: 5740 | BS49: 8600 | BT49: 10500 | BU49: 5960 | BV49: 9400 | BW49: 10800 | BX49: 4710 | BY49: 9300 | BZ49: 10700 | CA49: 5230 | CB49: 10400 | CC49: 11900 | CD49: 4510 | CE49: 10800 | CF49: 12500 | CG49: 4410 | CH49: 11200 | CI49: 12800 | CJ49: 4310 | CK49: 12100 | CL49: 13700 | CM49: 4100 | CP49: Income | CQ49: £150,000 and over | CR49: Income£150,000 and over | CS49: 5300 | CT49: 6500 | CU49: 36490 | CV49: 5500 | CW49: 6700 | CX49: 36910 | CY49: 5500 | CZ49: 6700 | DA49: 36860 | DB49: 5500 | DC49: 6600 | DD49: 36380 | DE49: 5500 | DF49: 6600 | DG49: 36090 | DH49: 5700 | DI49: 6700 | DJ49: 35850 | DK49: 5700 | DL49: 6800 | DM49: 35780 | DN49: 5600 | DO49: 6700 | DP49: 33510 | DQ49: 20200 | DR49: 22000 | DS49: 26830 | DT49: 20000 | DU49: 21700 | DV49: 28320 | DW49: 21200 | DX49: 22800 | DY49: 26450 | DZ49: 21100 | EA49: 22700 | EB49: 28650 | EC49: 22700 | ED49: 24000 | EE49: 25340 | EF49: 23100 | EG49: 24300 | EH49: 24280 | EI49: 23800 | EJ49: 24800 | EK49: 23200 | EL49: 24300 | EM49: 25300 | EN49: 23250
G50: =W7 ->  | AI50: Number of ObservationsGas2008 | AJ50: 40 | AN50: 38 | AO50: 1945-64 | AP50: Converted flat | AQ50: 1945-64Converted flat | AR50: 2900 | AS50: 4400 | AT50: 2620 | AU50: 3000 | AV50: 4300 | AW50: 2630 | AX50: 2900 | AY50: 4100 | AZ50: 1900 | BA50: 2800 | BB50: 4100 | BC50: 1870 | BD50: 2900 | BE50: 4100 | BF50: 1850 | BG50: 3100 | BH50: 4300 | BI50: 1820 | BJ50: 3100 | BK50: 4400 | BL50: 1800 | BM50: 3100 | BN50: 4500 | BO50: 1660 | BP50: 8500 | BQ50: 10300 | BR50: 1680 | BS50: 8700 | BT50: 10400 | BU50: 1770 | BV50: 9100 | BW50: 10600 | BX50: 1200 | BY50: 9200 | BZ50: 10900 | CA50: 1330 | CB50: 9900 | CC50: 11600 | CD50: 1130 | CE50: 10500 | CF50: 12300 | CG50: 1070 | CH50: 10900 | CI50: 12500 | CJ50: 1050 | CK50: 11800 | CL50: 13400 | CM50: 1020 | CP50: Region | CQ50: North East | CR50: RegionNorth East | CS50: 3000 | CT50: 3500 | CU50: 178090 | CV50: 3100 | CW50: 3600 | CX50: 179790 | CY50: 3100 | CZ50: 3600 | DA50: 188300 | DB50: 3100 | DC50: 3600 | DD50: 186440 | DE50: 3100 | DF50: 3600 | DG50: 185240 | DH50: 3200 | DI50: 3800 | DJ50: 185150 | DK50: 3300 | DL50: 3900 | DM50: 184860 | DN50: 3300 | DO50: 3900 | DP50: 183100 | DQ50: 13500 | DR50: 14400 | DS50: 151640 | DT50: 13400 | DU50: 14300 | DV50: 157510 | DW50: 14400 | DX50: 15200 | DY50: 158850 | DZ50: 14600 | EA50: 15500 | EB50: 169620 | EC50: 16400 | ED50: 17200 | EE50: 155790 | EF50: 17100 | EG50: 17900 | EH50: 153390 | EI50: 17900 | EJ50: 18600 | EK50: 147830 | EL50: 18900 | EM50: 19600 | EN50: 146970
G51: =W8 ->  | AI51: MedianGas2007 | AJ51: 41 | AN51: 39 | AO51: 1965-82 | AP51: Converted flat | AQ51: 1965-82Converted flat | AR51: 2600 | AS51: 4100 | AT51: 2070 | AU51: 2800 | AV51: 4100 | AW51: 2110 | AX51: 2800 | AY51: 4200 | AZ51: 1640 | BA51: 2700 | BB51: 4200 | BC51: 1590 | BD51: 2800 | BE51: 4300 | BF51: 1610 | BG51: 2900 | BH51: 4400 | BI51: 1550 | BJ51: 3000 | BK51: 4400 | BL51: 1530 | BM51: 3000 | BN51: 4500 | BO51: 1360 | BP51: 7700 | BQ51: 9600 | BR51: 950 | BS51: 7800 | BT51: 9700 | BU51: 1010 | BV51: 8800 | BW51: 10200 | BX51: 680 | BY51: 8600 | BZ51: 10200 | CA51: 780 | CB51: 9300 | CC51: 11300 | CD51: 660 | CE51: 9800 | CF51: 11600 | CG51: 630 | CH51: 10300 | CI51: 11800 | CJ51: 620 | CK51: 10800 | CL51: 12500 | CM51: 590 | CP51: Region | CQ51: North West | CR51: RegionNorth West | CS51: 3300 | CT51: 3900 | CU51: 464220 | CV51: 3400 | CW51: 4000 | CX51: 468120 | CY51: 3400 | CZ51: 4000 | DA51: 488210 | DB51: 3400 | DC51: 4100 | DD51: 482290 | DE51: 3400 | DF51: 4100 | DG51: 474620 | DH51: 3600 | DI51: 4300 | DJ51: 480740 | DK51: 3600 | DL51: 4300 | DM51: 478990 | DN51: 3700 | DO51: 4500 | DP51: 303900 | DQ51: 13000 | DR51: 14000 | DS51: 392700 | DT51: 13000 | DU51: 14100 | DV51: 409150 | DW51: 14100 | DX51: 15100 | DY51: 411070 | DZ51: 14300 | EA51: 15400 | EB51: 436520 | EC51: 16000 | ED51: 17000 | EE51: 404260 | EF51: 16600 | EG51: 17600 | EH51: 398840 | EI51: 17300 | EJ51: 18200 | EK51: 384370 | EL51: 18200 | EM51: 19000 | EN51: 384080
AI52: MeanGas2007 | AJ52: 42 | AN52: 40 | AO52: 1983-92 | AP52: Converted flat | AQ52: 1983-92Converted flat | AR52: 2900 | AS52: 4400 | AT52: 2030 | AU52: 3000 | AV52: 4300 | AW52: 2060 | AX52: 3500 | AY52: 4800 | AZ52: 2000 | BA52: 3400 | BB52: 4700 | BC52: 1950 | BD52: 3400 | BE52: 4800 | BF52: 1980 | BG52: 3600 | BH52: 5000 | BI52: 1970 | BJ52: 3500 | BK52: 4900 | BL52: 1960 | BM52: 3500 | BN52: 4900 | BO52: 1710 | BP52: 7000 | BQ52: 8600 | BR52: 770 | BS52: 7200 | BT52: 8500 | BU52: 810 | BV52: 7500 | BW52: 8700 | BX52: 730 | BY52: 7800 | BZ52: 8900 | CA52: 790 | CB52: 8400 | CC52: 9600 | CD52: 700 | CE52: 8900 | CF52: 10100 | CG52: 690 | CH52: 9100 | CI52: 10300 | CJ52: 680 | CK52: 9800 | CL52: 10900 | CM52: 670 | CP52: Region | CQ52: Yorks & Humber | CR52: RegionYorks & Humber | CS52: 3100 | CT52: 3800 | CU52: 344270 | CV52: 3200 | CW52: 3900 | CX52: 347090 | CY52: 3200 | CZ52: 3900 | DA52: 362450 | DB52: 3200 | DC52: 3900 | DD52: 359720 | DE52: 3200 | DF52: 3900 | DG52: 357150 | DH52: 3400 | DI52: 4100 | DJ52: 355280 | DK52: 3500 | DL52: 4200 | DM52: 354240 | DN52: 3500 | DO52: 4300 | DP52: 351260 | DQ52: 13400 | DR52: 14400 | DS52: 284120 | DT52: 13500 | DU52: 14600 | DV52: 297070 | DW52: 14400 | DX52: 15400 | DY52: 303130 | DZ52: 14500 | EA52: 15500 | EB52: 321920 | EC52: 16000 | ED52: 16900 | EE52: 293960 | EF52: 16700 | EG52: 17600 | EH52: 289690 | EI52: 17300 | EJ52: 18200 | EK52: 279760 | EL52: 18200 | EM52: 19000 | EN52: 269630
AI53: Number of ObservationsGas2007 | AJ53: 43 | AN53: 41 | AO53: 1993-99 | AP53: Converted flat | AQ53: 1993-99Converted flat | AR53: 3300 | AS53: 4700 | AT53: 2840 | AU53: 3400 | AV53: 4700 | AW53: 2860 | AX53: 3500 | AY53: 4800 | AZ53: 2690 | BA53: 3400 | BB53: 4800 | BC53: 2650 | BD53: 3600 | BE53: 5000 | BF53: 2630 | BG53: 3800 | BH53: 5100 | BI53: 2620 | BJ53: 3700 | BK53: 5000 | BL53: 2630 | BM53: 3800 | BN53: 5400 | BO53: 2240 | BP53: 6900 | BQ53: 8200 | BR53: 1100 | BS53: 6900 | BT53: 8400 | BU53: 1140 | BV53: 7400 | BW53: 9100 | BX53: 1030 | BY53: 7200 | BZ53: 8900 | CA53: 1140 | CB53: 8200 | CC53: 9900 | CD53: 970 | CE53: 8700 | CF53: 10400 | CG53: 950 | CH53: 8700 | CI53: 10600 | CJ53: 940 | CK53: 9400 | CL53: 11300 | CM53: 930 | CP53: Region | CQ53: East Midlands | CR53: RegionEast Midlands | CS53: 3300 | CT53: 4000 | CU53: 286740 | CV53: 3400 | CW53: 4100 | CX53: 288530 | CY53: 3400 | CZ53: 4100 | DA53: 301380 | DB53: 3400 | DC53: 4100 | DD53: 299250 | DE53: 3400 | DF53: 4200 | DG53: 298130 | DH53: 3600 | DI53: 4400 | DJ53: 298450 | DK53: 3600 | DL53: 4400 | DM53: 296590 | DN53: 3700 | DO53: 4500 | DP53: 290760 | DQ53: 13300 | DR53: 14300 | DS53: 234760 | DT53: 13400 | DU53: 14300 | DV53: 245340 | DW53: 14400 | DX53: 15300 | DY53: 247530 | DZ53: 14400 | EA53: 15300 | EB53: 263200 | EC53: 15900 | ED53: 16700 | EE53: 240530 | EF53: 16500 | EG53: 17400 | EH53: 240410 | EI53: 17200 | EJ53: 17900 | EK53: 227080 | EL53: 18200 | EM53: 18900 | EN53: 226840
AI54: MedianGas2006 | AJ54: 44 | AN54: 42 | AO54: Post 1999 | AP54: Converted flat | AQ54: Post 1999Converted flat | AR54: 3900 | AS54: 5100 | AT54: 5990 | AU54: 3800 | AV54: 4900 | AW54: 6080 | AX54: 3900 | AY54: 5200 | AZ54: 4790 | BA54: 3800 | BB54: 5200 | BC54: 4710 | BD54: 3700 | BE54: 5100 | BF54: 4670 | BG54: 3800 | BH54: 5200 | BI54: 4430 | BJ54: 3700 | BK54: 5100 | BL54: 3970 | BM54: 3700 | BN54: 5200 | BO54: 3020 | BP54: 7100 | BQ54: 8500 | BR54: 1670 | BS54: 7000 | BT54: 8700 | BU54: 1840 | BV54: 7700 | BW54: 9500 | BX54: 1350 | BY54: 7800 | BZ54: 9600 | CA54: 1500 | CB54: 8200 | CC54: 10000 | CD54: 1260 | CE54: 8900 | CF54: 10700 | CG54: 1210 | CH54: 9300 | CI54: 11000 | CJ54: 1040 | CK54: 10500 | CL54: 11600 | CM54: 1060 | CP54: Region | CQ54: West Midlands | CR54: RegionWest Midlands | CS54: 3400 | CT54: 4100 | CU54: 343860 | CV54: 3500 | CW54: 4200 | CX54: 346830 | CY54: 3500 | CZ54: 4200 | DA54: 362330 | DB54: 3500 | DC54: 4200 | DD54: 359660 | DE54: 3500 | DF54: 4300 | DG54: 357020 | DH54: 3700 | DI54: 4500 | DJ54: 358520 | DK54: 3800 | DL54: 4500 | DM54: 359200 | DN54: 4000 | DO54: 4900 | DP54: 194760 | DQ54: 13100 | DR54: 14000 | DS54: 285130 | DT54: 13200 | DU54: 14200 | DV54: 298180 | DW54: 14100 | DX54: 15000 | DY54: 303690 | DZ54: 14200 | EA54: 15200 | EB54: 322000 | EC54: 15700 | ED54: 16700 | EE54: 294300 | EF54: 16300 | EG54: 17200 | EH54: 293460 | EI54: 16900 | EJ54: 17800 | EK54: 282440 | EL54: 17800 | EM54: 18600 | EN54: 278190
AI55: MeanGas2006 | AJ55: 45 | AN55: 43 | AO55: Pre 1919 | AP55: Purpose built flat | AQ55: Pre 1919Purpose built flat | AR55: 2400 | AS55: 3300 | AT55: 21330 | AU55: 2500 | AV55: 3300 | AW55: 21690 | AX55: 2500 | AY55: 3200 | AZ55: 21820 | BA55: 2500 | BB55: 3200 | BC55: 21370 | BD55: 2500 | BE55: 3300 | BF55: 21300 | BG55: 2600 | BH55: 3400 | BI55: 21290 | BJ55: 2600 | BK55: 3400 | BL55: 21320 | BM55: 2700 | BN55: 3500 | BO55: 20900 | BP55: 9800 | BQ55: 10800 | BR55: 17700 | BS55: 9700 | BT55: 10800 | BU55: 18530 | BV55: 10500 | BW55: 11400 | BX55: 17400 | BY55: 10600 | BZ55: 11500 | CA55: 19960 | CB55: 11700 | CC55: 12700 | CD55: 16790 | CE55: 12200 | CF55: 13100 | CG55: 16540 | CH55: 12600 | CI55: 13500 | CJ55: 16350 | CK55: 13400 | CL55: 14300 | CM55: 15900 | CP55: Region | CQ55: East of England | CR55: RegionEast of England | CS55: 3500 | CT55: 4400 | CU55: 369210 | CV55: 3600 | CW55: 4400 | CX55: 371770 | CY55: 3600 | CZ55: 4500 | DA55: 385920 | DB55: 3600 | DC55: 4500 | DD55: 382430 | DE55: 3600 | DF55: 4500 | DG55: 380050 | DH55: 3800 | DI55: 4800 | DJ55: 379210 | DK55: 3900 | DL55: 4800 | DM55: 376710 | DN55: 3900 | DO55: 4900 | DP55: 373010 | DQ55: 13000 | DR55: 14100 | DS55: 276810 | DT55: 13000 | DU55: 14100 | DV55: 289500 | DW55: 14000 | DX55: 15100 | DY55: 288100 | DZ55: 14100 | EA55: 15100 | EB55: 305840 | EC55: 15300 | ED55: 16400 | EE55: 286490 | EF55: 15900 | EG55: 17000 | EH55: 280000 | EI55: 16400 | EJ55: 17400 | EK55: 268960 | EL55: 17300 | EM55: 18300 | EN55: 270310
AI56: Number of ObservationsGas2006 | AJ56: 46 | AN56: 44 | AO56: 1919-44 | AP56: Purpose built flat | AQ56: 1919-44Purpose built flat | AR56: 2300 | AS56: 3000 | AT56: 32760 | AU56: 2300 | AV56: 3000 | AW56: 33350 | AX56: 2300 | AY56: 3000 | AZ56: 34890 | BA56: 2300 | BB56: 3000 | BC56: 34370 | BD56: 2300 | BE56: 3000 | BF56: 34220 | BG56: 2400 | BH56: 3100 | BI56: 34130 | BJ56: 2500 | BK56: 3200 | BL56: 34150 | BM56: 2500 | BN56: 3300 | BO56: 32940 | BP56: 8500 | BQ56: 9200 | BR56: 26010 | BS56: 8600 | BT56: 9400 | BU56: 27130 | BV56: 9400 | BW56: 10000 | BX56: 26310 | BY56: 9400 | BZ56: 10100 | CA56: 29990 | CB56: 10300 | CC56: 11000 | CD56: 25430 | CE56: 10800 | CF56: 11600 | CG56: 25010 | CH56: 11200 | CI56: 11900 | CJ56: 24620 | CK56: 11900 | CL56: 12600 | CM56: 23920 | CP56: Region | CQ56: London | CR56: RegionLondon | CS56: 3200 | CT56: 4100 | CU56: 446700 | CV56: 3300 | CW56: 4100 | CX56: 452420 | CY56: 3400 | CZ56: 4200 | DA56: 464440 | DB56: 3300 | DC56: 4200 | DD56: 459320 | DE56: 3400 | DF56: 4200 | DG56: 458810 | DH56: 3500 | DI56: 4300 | DJ56: 457240 | DK56: 3500 | DL56: 4400 | DM56: 454370 | DN56: 3600 | DO56: 4500 | DP56: 450070 | DQ56: 12900 | DR56: 14400 | DS56: 359700 | DT56: 13000 | DU56: 14400 | DV56: 378180 | DW56: 14300 | DX56: 15600 | DY56: 366620 | DZ56: 14100 | EA56: 15500 | EB56: 404570 | EC56: 15500 | ED56: 16800 | EE56: 356740 | EF56: 16000 | EG56: 17300 | EH56: 349640 | EI56: 16600 | EJ56: 17700 | EK56: 345190 | EL56: 17400 | EM56: 18400 | EN56: 338940
B57: - | C57: =COUNTIF($F$13:$O$22,B57) -> 0 | AI57: MedianGas2005 | AJ57: 47 | AN57: 45 | AO57: 1945-64 | AP57: Purpose built flat | AQ57: 1945-64Purpose built flat | AR57: 2300 | AS57: 3100 | AT57: 110280 | AU57: 2400 | AV57: 3100 | AW57: 112180 | AX57: 2400 | AY57: 3200 | AZ57: 114560 | BA57: 2400 | BB57: 3200 | BC57: 113020 | BD57: 2400 | BE57: 3300 | BF57: 112510 | BG57: 2500 | BH57: 3400 | BI57: 112050 | BJ57: 2500 | BK57: 3400 | BL57: 112320 | BM57: 2600 | BN57: 3500 | BO57: 102330 | BP57: 7600 | BQ57: 8200 | BR57: 87240 | BS57: 7800 | BT57: 8400 | BU57: 90910 | BV57: 8600 | BW57: 9100 | BX57: 87090 | BY57: 8600 | BZ57: 9200 | CA57: 98120 | CB57: 9500 | CC57: 10200 | CD57: 84130 | CE57: 10100 | CF57: 10700 | CG57: 83380 | CH57: 10400 | CI57: 11000 | CJ57: 81740 | CK57: 11100 | CL57: 11700 | CM57: 78910 | CP57: Region | CQ57: South East | CR57: RegionSouth East | CS57: 3500 | CT57: 4400 | CU57: 536540 | CV57: 3700 | CW57: 4500 | CX57: 540700 | CY57: 3700 | CZ57: 4500 | DA57: 558720 | DB57: 3700 | DC57: 4500 | DD57: 552710 | DE57: 3700 | DF57: 4600 | DG57: 550480 | DH57: 3900 | DI57: 4800 | DJ57: 543710 | DK57: 3900 | DL57: 4800 | DM57: 545350 | DN57: 4000 | DO57: 4900 | DP57: 538120 | DQ57: 13000 | DR57: 14300 | DS57: 416740 | DT57: 12900 | DU57: 14200 | DV57: 438530 | DW57: 14000 | DX57: 15200 | DY57: 435680 | DZ57: 14000 | EA57: 15300 | EB57: 467950 | EC57: 15400 | ED57: 16700 | EE57: 422830 | EF57: 16100 | EG57: 17400 | EH57: 405580 | EI57: 16700 | EJ57: 17800 | EK57: 403090 | EL57: 17300 | EM57: 18400 | EN57: 399500
B58: n/a | C58: =COUNTIF($F$13:$O$22,B58) -> 0 | AI58: MeanGas2005 | AJ58: 48 | AN58: 46 | AO58: 1965-82 | AP58: Purpose built flat | AQ58: 1965-82Purpose built flat | AR58: 2200 | AS58: 3300 | AT58: 169890 | AU58: 2300 | AV58: 3300 | AW58: 172410 | AX58: 2300 | AY58: 3400 | AZ58: 176680 | BA58: 2300 | BB58: 3400 | BC58: 175120 | BD58: 2400 | BE58: 3500 | BF58: 174330 | BG58: 2500 | BH58: 3600 | BI58: 174190 | BJ58: 2500 | BK58: 3600 | BL58: 174940 | BM58: 2500 | BN58: 3700 | BO58: 155120 | BP58: 6600 | BQ58: 7200 | BR58: 99690 | BS58: 6700 | BT58: 7300 | BU58: 104470 | BV58: 7300 | BW58: 7900 | BX58: 99750 | BY58: 7300 | BZ58: 8000 | CA58: 112730 | CB58: 8100 | CC58: 8800 | CD58: 97090 | CE58: 8500 | CF58: 9300 | CG58: 96540 | CH58: 8800 | CI58: 9500 | CJ58: 94820 | CK58: 9500 | CL58: 10200 | CM58: 90720 | CP58: Region | CQ58: South West | CR58: RegionSouth West | CS58: 3500 | CT58: 4400 | CU58: 337640 | CV58: 3600 | CW58: 4500 | CX58: 340590 | CY58: 3600 | CZ58: 4500 | DA58: 346290 | DB58: 3600 | DC58: 4600 | DD58: 343990 | DE58: 3700 | DF58: 4600 | DG58: 341900 | DH58: 3800 | DI58: 4800 | DJ58: 337220 | DK58: 3900 | DL58: 4900 | DM58: 339350 | DN58: 4000 | DO58: 5000 | DP58: 311500 | DQ58: 11300 | DR58: 12400 | DS58: 231940 | DT58: 11200 | DU58: 12300 | DV58: 243610 | DW58: 12400 | DX58: 13400 | DY58: 243270 | DZ58: 12500 | EA58: 13500 | EB58: 257400 | EC58: 13900 | ED58: 14900 | EE58: 234550 | EF58: 14500 | EG58: 15600 | EH58: 229260 | EI58: 15100 | EJ58: 16100 | EK58: 224040 | EL58: 16000 | EM58: 17000 | EN58: 217370
AI59: Number of ObservationsGas2005 | AJ59: 49 | AN59: 47 | AO59: 1983-92 | AP59: Purpose built flat | AQ59: 1983-92Purpose built flat | AR59: 2800 | AS59: 3900 | AT59: 65140 | AU59: 2800 | AV59: 3800 | AW59: 65510 | AX59: 3000 | AY59: 4000 | AZ59: 67170 | BA59: 2900 | BB59: 4000 | BC59: 66900 | BD59: 3000 | BE59: 4100 | BF59: 66580 | BG59: 3100 | BH59: 4200 | BI59: 66840 | BJ59: 3100 | BK59: 4100 | BL59: 67130 | BM59: 3300 | BN59: 4400 | BO59: 60760 | BP59: 6000 | BQ59: 6800 | BR59: 25100 | BS59: 6100 | BT59: 6900 | BU59: 26160 | BV59: 6600 | BW59: 7400 | BX59: 25410 | BY59: 6700 | BZ59: 7500 | CA59: 27600 | CB59: 7400 | CC59: 8200 | CD59: 24760 | CE59: 7800 | CF59: 8600 | CG59: 24660 | CH59: 8000 | CI59: 8800 | CJ59: 24670 | CK59: 8500 | CL59: 9300 | CM59: 23940 | CP59: Region | CQ59: Wales | CR59: RegionWales | CS59: 3200 | CT59: 3900 | CU59: 190750 | CV59: 3300 | CW59: 4000 | CX59: 192210 | CY59: n/a | CZ59: n/a | DA59: n/a | DB59: n/a | DC59: n/a | DD59: n/a | DE59: n/a | DF59: n/a | DG59: n/a | DH59: n/a | DI59: n/a | DJ59: n/a | DK59: n/a | DL59: n/a | DM59: n/a | DN59: n/a | DO59: n/a | DP59: n/a | DQ59: 12700 | DR59: 13500 | DS59: 144630 | DT59: 12700 | DU59: 13600 | DV59: 151910 | DW59: n/a | DX59: n/a | DY59: n/a | DZ59: n/a | EA59: n/a | EB59: n/a | EC59: n/a | ED59: n/a | EE59: n/a | EF59: n/a | EG59: n/a | EH59: n/a | EI59: n/a | EJ59: n/a | EK59: n/a | EL59: n/a | EM59: n/a | EN59: n/a
AN60: 48 | AO60: 1993-99 | AP60: Purpose built flat | AQ60: 1993-99Purpose built flat | AR60: 3200 | AS60: 4300 | AT60: 30570 | AU60: 3200 | AV60: 4200 | AW60: 30870 | AX60: 3300 | AY60: 4400 | AZ60: 31790 | BA60: 3300 | BB60: 4400 | BC60: 31500 | BD60: 3400 | BE60: 4500 | BF60: 31320 | BG60: 3500 | BH60: 4600 | BI60: 31350 | BJ60: 3500 | BK60: 4500 | BL60: 31540 | BM60: 3600 | BN60: 4700 | BO60: 28420 | BP60: 6100 | BQ60: 6900 | BR60: 13010 | BS60: 6200 | BT60: 7000 | BU60: 13470 | BV60: 6700 | BW60: 7600 | BX60: 13100 | BY60: 6800 | BZ60: 7700 | CA60: 14360 | CB60: 7400 | CC60: 8300 | CD60: 12690 | CE60: 7700 | CF60: 8700 | CG60: 12460 | CH60: 7900 | CI60: 8900 | CJ60: 12170 | CK60: 8600 | CL60: 9400 | CM60: 12180 | CP60: Number of Adults | CQ60: 1 | CR60: Number of Adults1 | CS60: 2500 | CT60: 3400 | CU60: 1224390 | CV60: 2600 | CW60: 3300 | CX60: 1237130 | CY60: 2500 | CZ60: 3400 | DA60: 1235370 | DB60: 2600 | DC60: 3400 | DD60: 1222390 | DE60: 2600 | DF60: 3500 | DG60: 1207810 | DH60: 2700 | DI60: 3700 | DJ60: 1197390 | DK60: 2800 | DL60: 3700 | DM60: 1195530 | DN60: 2900 | DO60: 3900 | DP60: 1051410 | DQ60: 10800 | DR60: 11900 | DS60: 930560 | DT60: 10800 | DU60: 11900 | DV60: 974960 | DW60: 11700 | DX60: 12700 | DY60: 926340 | DZ60: 11800 | EA60: 12900 | EB60: 1000950 | EC60: 13100 | ED60: 14200 | EE60: 906830 | EF60: 13800 | EG60: 14900 | EH60: 891310 | EI60: 14400 | EJ60: 15400 | EK60: 864710 | EL60: 15200 | EM60: 16200 | EN60: 853070
C61: =COUNT(F13:O13) -> 7 | AN61: 49 | AO61: Post 1999 | AP61: Purpose built flat | AQ61: Post 1999Purpose built flat | AR61: 3000 | AS61: 4200 | AT61: 84960 | AU61: 3000 | AV61: 4100 | AW61: 85320 | AX61: 3100 | AY61: 4300 | AZ61: 68630 | BA61: 3100 | BB61: 4300 | BC61: 67830 | BD61: 3000 | BE61: 4300 | BF61: 66760 | BG61: 3100 | BH61: 4300 | BI61: 61780 | BJ61: 3100 | BK61: 4300 | BL61: 51450 | BM61: 3100 | BN61: 4500 | BO61: 37340 | BP61: 6100 | BQ61: 6900 | BR61: 23570 | BS61: 6200 | BT61: 7100 | BU61: 25900 | BV61: 6600 | BW61: 7500 | BX61: 19030 | BY61: 6600 | BZ61: 7700 | CA61: 20820 | CB61: 7200 | CC61: 8100 | CD61: 20050 | CE61: 8800 | CF61: 9200 | CG61: 19020 | CH61: 9200 | CI61: 9600 | CJ61: 13160 | CK61: 11100 | CL61: 10400 | CM61: 15260 | CP61: Number of Adults | CQ61: 2 | CR61: Number of Adults2 | CS61: 3500 | CT61: 4200 | CU61: 1441630 | CV61: 3600 | CW61: 4300 | CX61: 1451520 | CY61: 3600 | CZ61: 4300 | DA61: 1450330 | DB61: 3600 | DC61: 4300 | DD61: 1436250 | DE61: 3600 | DF61: 4300 | DG61: 1420530 | DH61: 3700 | DI61: 4500 | DJ61: 1412830 | DK61: 3800 | DL61: 4600 | DM61: 1410740 | DN61: 3800 | DO61: 4700 | DP61: 1254130 | DQ61: 13500 | DR61: 14500 | DS61: 1165830 | DT61: 13400 | DU61: 14500 | DV61: 1220540 | DW61: 14500 | DX61: 15500 | DY61: 1162820 | DZ61: 14600 | EA61: 15600 | EB61: 1238860 | EC61: 16000 | ED61: 17000 | EE61: 1136960 | EF61: 16600 | EG61: 17600 | EH61: 1111670 | EI61: 17300 | EJ61: 18200 | EK61: 1076970 | EL61: 18200 | EM61: 19000 | EN61: 1065830
AN62: 50 | AO62: Pre 1919 | AP62: 1 bedroom | AQ62: Pre 19191 bedroom | AR62: 2200 | AS62: 3300 | AT62: 65320 | AU62: 2300 | AV62: 3300 | AW62: 66340 | AX62: 2300 | AY62: 3400 | AZ62: 50400 | BA62: 2300 | BB62: 3400 | BC62: 49600 | BD62: 2400 | BE62: 3500 | BF62: 49380 | BG62: 2500 | BH62: 3600 | BI62: 48700 | BJ62: 2500 | BK62: 3600 | BL62: 48650 | BM62: 2600 | BN62: 3800 | BO62: 44250 | BP62: 7600 | BQ62: 9000 | BR62: 44060 | BS62: 7700 | BT62: 9100 | BU62: 46090 | BV62: 8600 | BW62: 9900 | BX62: 32550 | BY62: 8500 | BZ62: 9900 | CA62: 36810 | CB62: 9400 | CC62: 10800 | CD62: 31270 | CE62: 9900 | CF62: 11400 | CG62: 30730 | CH62: 10200 | CI62: 11600 | CJ62: 30070 | CK62: 10900 | CL62: 12400 | CM62: 29130 | CP62: Number of Adults | CQ62: 3 | CR62: Number of Adults3 | CS62: 4000 | CT62: 4800 | CU62: 486770 | CV62: 4200 | CW62: 4900 | CX62: 490950 | CY62: 4300 | CZ62: 5000 | DA62: 489870 | DB62: 4300 | DC62: 5000 | DD62: 484900 | DE62: 4300 | DF62: 5100 | DG62: 479870 | DH62: 4500 | DI62: 5300 | DJ62: 477830 | DK62: 4600 | DL62: 5300 | DM62: 477910 | DN62: 4600 | DO62: 5400 | DP62: 429440 | DQ62: 14600 | DR62: 15800 | DS62: 404410 | DT62: 14700 | DU62: 15900 | DV62: 423090 | DW62: 15800 | DX62: 17000 | DY62: 404050 | DZ62: 16000 | EA62: 17100 | EB62: 429130 | EC62: 17600 | ED62: 18700 | EE62: 392990 | EF62: 18300 | EG62: 19300 | EH62: 384140 | EI62: 19000 | EJ62: 19900 | EK62: 372960 | EL62: 19800 | EM62: 20700 | EN62: 368550
AN63: 51 | AO63: 1919-44 | AP63: 1 bedroom | AQ63: 1919-441 bedroom | AR63: 1900 | AS63: 2700 | AT63: 18420 | AU63: 2000 | AV63: 2700 | AW63: 18740 | AX63: 1900 | AY63: 2700 | AZ63: 18440 | BA63: 1900 | BB63: 2700 | BC63: 18200 | BD63: 1900 | BE63: 2800 | BF63: 18100 | BG63: 2000 | BH63: 2900 | BI63: 18010 | BJ63: 2000 | BK63: 2900 | BL63: 18000 | BM63: 2000 | BN63: 3000 | BO63: 16760 | BP63: 7500 | BQ63: 8500 | BR63: 13610 | BS63: 7600 | BT63: 8700 | BU63: 14130 | BV63: 8400 | BW63: 9400 | BX63: 13130 | BY63: 8400 | BZ63: 9500 | CA63: 14750 | CB63: 9500 | CC63: 10500 | CD63: 12770 | CE63: 10100 | CF63: 11100 | CG63: 12630 | CH63: 10300 | CI63: 11300 | CJ63: 12410 | CK63: 11100 | CL63: 12100 | CM63: 11900 | CP63: Number of Adults | CQ63: 4 | CR63: Number of Adults4 | CS63: 4500 | CT63: 5200 | CU63: 199100 | CV63: 4800 | CW63: 5500 | CX63: 200780 | CY63: 4900 | CZ63: 5600 | DA63: 200270 | DB63: 4900 | DC63: 5600 | DD63: 198260 | DE63: 5000 | DF63: 5700 | DG63: 196270 | DH63: 5200 | DI63: 5900 | DJ63: 195730 | DK63: 5300 | DL63: 6000 | DM63: 195750 | DN63: 5300 | DO63: 6000 | DP63: 176680 | DQ63: 15800 | DR63: 17100 | DS63: 166560 | DT63: 16000 | DU63: 17300 | DV63: 174490 | DW63: 17200 | DX63: 18400 | DY63: 166810 | DZ63: 17400 | EA63: 18600 | EB63: 176870 | EC63: 19100 | ED63: 20200 | EE63: 161470 | EF63: 19800 | EG63: 20800 | EH63: 157490 | EI63: 20500 | EJ63: 21400 | EK63: 153160 | EL63: 21200 | EM63: 22100 | EN63: 151100
AN64: 52 | AO64: 1945-64 | AP64: 1 bedroom | AQ64: 1945-641 bedroom | AR64: 1800 | AS64: 2600 | AT64: 52570 | AU64: 1900 | AV64: 2600 | AW64: 53420 | AX64: 1900 | AY64: 2600 | AZ64: 53910 | BA64: 1900 | BB64: 2700 | BC64: 53150 | BD64: 1900 | BE64: 2700 | BF64: 52880 | BG64: 1900 | BH64: 2800 | BI64: 52760 | BJ64: 2000 | BK64: 2800 | BL64: 52940 | BM64: 2000 | BN64: 2900 | BO64: 47200 | BP64: 6900 | BQ64: 7400 | BR64: 40350 | BS64: 7000 | BT64: 7600 | BU64: 42010 | BV64: 7800 | BW64: 8300 | BX64: 39990 | BY64: 7800 | BZ64: 8400 | CA64: 44700 | CB64: 8800 | CC64: 9400 | CD64: 38820 | CE64: 9300 | CF64: 9900 | CG64: 38760 | CH64: 9600 | CI64: 10200 | CJ64: 37940 | CK64: 10400 | CL64: 10900 | CM64: 36560 | CP64: Number of Adults | CQ64: 5 or more | CR64: Number of Adults5 or more | CS64: 4900 | CT64: 5700 | CU64: 87300 | CV64: 5200 | CW64: 6000 | CX64: 88080 | CY64: 5300 | CZ64: 6100 | DA64: 87860 | DB64: 5300 | DC64: 6100 | DD64: 86960 | DE64: 5300 | DF64: 6100 | DG64: 86040 | DH64: 5600 | DI64: 6400 | DJ64: 85670 | DK64: 5600 | DL64: 6400 | DM64: 85740 | DN64: 5600 | DO64: 6500 | DP64: 78030 | DQ64: 17000 | DR64: 18500 | DS64: 73000 | DT64: 17400 | DU64: 18900 | DV64: 76250 | DW64: 18600 | DX64: 20000 | DY64: 72490 | DZ64: 18700 | EA64: 20000 | EB64: 77360 | EC64: 20400 | ED64: 21600 | EE64: 69660 | EF64: 21100 | EG64: 22200 | EH64: 67990 | EI64: 21700 | EJ64: 22700 | EK64: 65870 | EL64: 22400 | EM64: 23300 | EN64: 64870
AN65: 53 | AO65: 1965-82 | AP65: 1 bedroom | AQ65: 1965-821 bedroom | AR65: 1800 | AS65: 2700 | AT65: 102010 | AU65: 1900 | AV65: 2800 | AW65: 103500 | AX65: 1900 | AY65: 2800 | AZ65: 105300 | BA65: 1900 | BB65: 2900 | BC65: 104420 | BD65: 1900 | BE65: 2900 | BF65: 104020 | BG65: 2000 | BH65: 3100 | BI65: 103930 | BJ65: 2000 | BK65: 3000 | BL65: 104430 | BM65: 2000 | BN65: 3100 | BO65: 91130 | BP65: 6000 | BQ65: 6500 | BR65: 57130 | BS65: 6100 | BT65: 6700 | BU65: 59800 | BV65: 6600 | BW65: 7100 | BX65: 57030 | BY65: 6700 | BZ65: 7300 | CA65: 63810 | CB65: 7500 | CC65: 8000 | CD65: 55550 | CE65: 7900 | CF65: 8500 | CG65: 55200 | CH65: 8100 | CI65: 8700 | CJ65: 54320 | CK65: 8800 | CL65: 9300 | CM65: 51790 | CP65: Fuel Poverty Quintile | CQ65: FP - 1 | CR65: Fuel Poverty QuintileFP - 1 | CS65: 3200 | CT65: 3900 | CU65: 692700 | CV65: 3300 | CW65: 4000 | CX65: 698620 | CY65: n/a | CZ65: n/a | DA65: n/a | DB65: n/a | DC65: n/a | DD65: n/a | DE65: n/a | DF65: n/a | DG65: n/a | DH65: n/a | DI65: n/a | DJ65: n/a | DK65: n/a | DL65: n/a | DM65: n/a | DN65: n/a | DO65: n/a | DP65: n/a | DQ65: 11300 | DR65: 12200 | DS65: 539630 | DT65: 11300 | DU65: 12200 | DV65: 565570 | DW65: n/a | DX65: n/a | DY65: n/a | DZ65: n/a | EA65: n/a | EB65: n/a | EC65: n/a | ED65: n/a | EE65: n/a | EF65: n/a | EG65: n/a | EH65: n/a | EI65: n/a | EJ65: n/a | EK65: n/a | EL65: n/a | EM65: n/a | EN65: n/a
AN66: 54 | AO66: 1983-92 | AP66: 1 bedroom | AQ66: 1983-921 bedroom | AR66: 2500 | AS66: 3600 | AT66: 54530 | AU66: 2500 | AV66: 3500 | AW66: 54870 | AX66: 2600 | AY66: 3600 | AZ66: 55240 | BA66: 2600 | BB66: 3600 | BC66: 54960 | BD66: 2600 | BE66: 3700 | BF66: 54650 | BG66: 2700 | BH66: 3800 | BI66: 54860 | BJ66: 2800 | BK66: 3800 | BL66: 55120 | BM66: 3000 | BN66: 4000 | BO66: 49780 | BP66: 5800 | BQ66: 6300 | BR66: 21700 | BS66: 5800 | BT66: 6400 | BU66: 22650 | BV66: 6300 | BW66: 6800 | BX66: 21690 | BY66: 6400 | BZ66: 7000 | CA66: 23350 | CB66: 7100 | CC66: 7600 | CD66: 21160 | CE66: 7400 | CF66: 8100 | CG66: 21040 | CH66: 7700 | CI66: 8200 | CJ66: 21030 | CK66: 8200 | CL66: 8700 | CM66: 20400 | CP66: Fuel Poverty Quintile | CQ66: FP - 2 | CR66: Fuel Poverty QuintileFP - 2 | CS66: 3400 | CT66: 4100 | CU66: 679110 | CV66: 3500 | CW66: 4200 | CX66: 684550 | CY66: n/a | CZ66: n/a | DA66: n/a | DB66: n/a | DC66: n/a | DD66: n/a | DE66: n/a | DF66: n/a | DG66: n/a | DH66: n/a | DI66: n/a | DJ66: n/a | DK66: n/a | DL66: n/a | DM66: n/a | DN66: n/a | DO66: n/a | DP66: n/a | DQ66: 12700 | DR66: 13800 | DS66: 541410 | DT66: 12700 | DU66: 13800 | DV66: 567200 | DW66: n/a | DX66: n/a | DY66: n/a | DZ66: n/a | EA66: n/a | EB66: n/a | EC66: n/a | ED66: n/a | EE66: n/a | EF66: n/a | EG66: n/a | EH66: n/a | EI66: n/a | EJ66: n/a | EK66: n/a | EL66: n/a | EM66: n/a | EN66: n/a
AN67: 55 | AO67: 1993-99 | AP67: 1 bedroom | AQ67: 1993-991 bedroom | AR67: 2800 | AS67: 3800 | AT67: 19340 | AU67: 2800 | AV67: 3800 | AW67: 19480 | AX67: 3000 | AY67: 3900 | AZ67: 19530 | BA67: 3000 | BB67: 4000 | BC67: 19320 | BD67: 3100 | BE67: 4100 | BF67: 19230 | BG67: 3200 | BH67: 4200 | BI67: 19240 | BJ67: 3200 | BK67: 4100 | BL67: 19380 | BM67: 3300 | BN67: 4300 | BO67: 16970 | BP67: 5500 | BQ67: 6200 | BR67: 7910 | BS67: 5600 | BT67: 6300 | BU67: 8140 | BV67: 6200 | BW67: 6900 | BX67: 7700 | BY67: 6200 | BZ67: 7000 | CA67: 8330 | CB67: 6900 | CC67: 7700 | CD67: 7480 | CE67: 7300 | CF67: 8100 | CG67: 7380 | CH67: 7500 | CI67: 8300 | CJ67: 7270 | CK67: 8000 | CL67: 8700 | CM67: 7170 | CP67: Fuel Poverty Quintile | CQ67: FP - 3 | CR67: Fuel Poverty QuintileFP - 3 | CS67: 3400 | CT67: 4200 | CU67: 676410 | CV67: 3500 | CW67: 4300 | CX67: 682180 | CY67: n/a | CZ67: n/a | DA67: n/a | DB67: n/a | DC67: n/a | DD67: n/a | DE67: n/a | DF67: n/a | DG67: n/a | DH67: n/a | DI67: n/a | DJ67: n/a | DK67: n/a | DL67: n/a | DM67: n/a | DN67: n/a | DO67: n/a | DP67: n/a | DQ67: 13300 | DR67: 14400 | DS67: 534080 | DT67: 13300 | DU67: 14400 | DV67: 559520 | DW67: n/a | DX67: n/a | DY67: n/a | DZ67: n/a | EA67: n/a | EB67: n/a | EC67: n/a | ED67: n/a | EE67: n/a | EF67: n/a | EG67: n/a | EH67: n/a | EI67: n/a | EJ67: n/a | EK67: n/a | EL67: n/a | EM67: n/a | EN67: n/a
AN68: 56 | AO68: Post 1999 | AP68: 1 bedroom | AQ68: Post 19991 bedroom | AR68: 2600 | AS68: 3600 | AT68: 28970 | AU68: 2700 | AV68: 3500 | AW68: 29170 | AX68: 2800 | AY68: 3700 | AZ68: 22320 | BA68: 2700 | BB68: 3700 | BC68: 22050 | BD68: 2700 | BE68: 3700 | BF68: 21840 | BG68: 2700 | BH68: 3700 | BI68: 20060 | BJ68: 2700 | BK68: 3700 | BL68: 16840 | BM68: 2800 | BN68: 3900 | BO68: 12370 | BP68: 5000 | BQ68: 5900 | BR68: 7130 | BS68: 5200 | BT68: 6100 | BU68: 7810 | BV68: 5600 | BW68: 6400 | BX68: 5620 | BY68: 5600 | BZ68: 6800 | CA68: 6210 | CB68: 6100 | CC68: 7200 | CD68: 5790 | CE68: 7300 | CF68: 8100 | CG68: 5390 | CH68: 7500 | CI68: 8400 | CJ68: 4130 | CK68: 9200 | CL68: 9200 | CM68: 4380 | CP68: Fuel Poverty Quintile | CQ68: FP - 4 | CR68: Fuel Poverty QuintileFP - 4 | CS68: 3400 | CT68: 4200 | CU68: 635120 | CV68: 3500 | CW68: 4300 | CX68: 640560 | CY68: n/a | CZ68: n/a | DA68: n/a | DB68: n/a | DC68: n/a | DD68: n/a | DE68: n/a | DF68: n/a | DG68: n/a | DH68: n/a | DI68: n/a | DJ68: n/a | DK68: n/a | DL68: n/a | DM68: n/a | DN68: n/a | DO68: n/a | DP68: n/a | DQ68: 13900 | DR68: 15000 | DS68: 510810 | DT68: 13900 | DU68: 15000 | DV68: 534500 | DW68: n/a | DX68: n/a | DY68: n/a | DZ68: n/a | EA68: n/a | EB68: n/a | EC68: n/a | ED68: n/a | EE68: n/a | EF68: n/a | EG68: n/a | EH68: n/a | EI68: n/a | EJ68: n/a | EK68: n/a | EL68: n/a | EM68: n/a | EN68: n/a
AN69: 57 | AO69: Pre 1919 | AP69: 2 bedrooms | AQ69: Pre 19192 bedrooms | AR69: 2800 | AS69: 3600 | AT69: 248470 | AU69: 2900 | AV69: 3700 | AW69: 252120 | AX69: 2900 | AY69: 3700 | AZ69: 238290 | BA69: 2900 | BB69: 3700 | BC69: 234710 | BD69: 2900 | BE69: 3700 | BF69: 233390 | BG69: 3000 | BH69: 3900 | BI69: 233250 | BJ69: 3100 | BK69: 3900 | BL69: 234900 | BM69: 3200 | BN69: 4100 | BO69: 200550 | BP69: 11500 | BQ69: 12300 | BR69: 202240 | BS69: 11500 | BT69: 12400 | BU69: 211590 | BV69: 12400 | BW69: 13200 | BX69: 194050 | BY69: 12500 | BZ69: 13300 | CA69: 213630 | CB69: 13800 | CC69: 14700 | CD69: 187010 | CE69: 14400 | CF69: 15300 | CG69: 184610 | CH69: 14900 | CI69: 15700 | CJ69: 180800 | CK69: 15700 | CL69: 16500 | CM69: 176400 | CP69: Fuel Poverty Quintile | CQ69: FP - 5 | CR69: Fuel Poverty QuintileFP - 5 | CS69: 3300 | CT69: 4100 | CU69: 623410 | CV69: 3400 | CW69: 4100 | CX69: 629920 | CY69: n/a | CZ69: n/a | DA69: n/a | DB69: n/a | DC69: n/a | DD69: n/a | DE69: n/a | DF69: n/a | DG69: n/a | DH69: n/a | DI69: n/a | DJ69: n/a | DK69: n/a | DL69: n/a | DM69: n/a | DN69: n/a | DO69: n/a | DP69: n/a | DQ69: 13900 | DR69: 15000 | DS69: 507500 | DT69: 13900 | DU69: 15100 | DV69: 530270 | DW69: n/a | DX69: n/a | DY69: n/a | DZ69: n/a | EA69: n/a | EB69: n/a | EC69: n/a | ED69: n/a | EE69: n/a | EF69: n/a | EG69: n/a | EH69: n/a | EI69: n/a | EJ69: n/a | EK69: n/a | EL69: n/a | EM69: n/a | EN69: n/a
AN70: 58 | AO70: 1919-44 | AP70: 2 bedrooms | AQ70: 1919-442 bedrooms | AR70: 2900 | AS70: 3600 | AT70: 118310 | AU70: 3000 | AV70: 3600 | AW70: 119530 | AX70: 3000 | AY70: 3700 | AZ70: 122440 | BA70: 3000 | BB70: 3700 | BC70: 121200 | BD70: 3000 | BE70: 3700 | BF70: 120510 | BG70: 3100 | BH70: 3900 | BI70: 120510 | BJ70: 3200 | BK70: 3900 | BL70: 121130 | BM70: 3200 | BN70: 4000 | BO70: 109150 | BP70: 12100 | BQ70: 12900 | BR70: 104430 | BS70: 12100 | BT70: 12900 | BU70: 108680 | BV70: 13100 | BW70: 13900 | BX70: 107900 | BY70: 13200 | BZ70: 14000 | CA70: 115900 | CB70: 14700 | CC70: 15500 | CD70: 104400 | CE70: 15300 | CF70: 16100 | CG70: 103100 | CH70: 15900 | CI70: 16600 | CJ70: 101410 | CK70: 16800 | CL70: 17500 | CM70: 99010 | CP70: Index of Multiple Deprivation Quintile | CQ70: IMD - 1 | CR70: Index of Multiple Deprivation QuintileIMD - 1 | CS70: 2900 | CT70: 3600 | CU70: 668510 | CV70: 3000 | CW70: 3600 | CX70: 676910 | CY70: n/a | CZ70: n/a | DA70: n/a | DB70: n/a | DC70: n/a | DD70: n/a | DE70: n/a | DF70: n/a | DG70: n/a | DH70: n/a | DI70: n/a | DJ70: n/a | DK70: n/a | DL70: n/a | DM70: n/a | DN70: n/a | DO70: n/a | DP70: n/a | DQ70: 10800 | DR70: 11600 | DS70: 549010 | DT70: 10900 | DU70: 11800 | DV70: 572150 | DW70: n/a | DX70: n/a | DY70: n/a | DZ70: n/a | EA70: n/a | EB70: n/a | EC70: n/a | ED70: n/a | EE70: n/a | EF70: n/a | EG70: n/a | EH70: n/a | EI70: n/a | EJ70: n/a | EK70: n/a | EL70: n/a | EM70: n/a | EN70: n/a
AN71: 59 | AO71: 1945-64 | AP71: 2 bedrooms | AQ71: 1945-642 bedrooms | AR71: 2800 | AS71: 3500 | AT71: 191400 | AU71: 2800 | AV71: 3600 | AW71: 193260 | AX71: 2800 | AY71: 3600 | AZ71: 195620 | BA71: 2800 | BB71: 3600 | BC71: 194030 | BD71: 2800 | BE71: 3600 | BF71: 192950 | BG71: 2900 | BH71: 3800 | BI71: 192680 | BJ71: 3000 | BK71: 3800 | BL71: 193450 | BM71: 3000 | BN71: 4000 | BO71: 174110 | BP71: 11000 | BQ71: 11700 | BR71: 162220 | BS71: 11100 | BT71: 11800 | BU71: 168980 | BV71: 12000 | BW71: 12700 | BX71: 165540 | BY71: 12100 | BZ71: 12800 | CA71: 177530 | CB71: 13500 | CC71: 14100 | CD71: 160200 | CE71: 14100 | CF71: 14800 | CG71: 158250 | CH71: 14600 | CI71: 15200 | CJ71: 155660 | CK71: 15400 | CL71: 16100 | CM71: 151820 | CP71: Index of Multiple Deprivation Quintile | CQ71: IMD - 2 | CR71: Index of Multiple Deprivation QuintileIMD - 2 | CS71: 3100 | CT71: 3900 | CU71: 665540 | CV71: 3200 | CW71: 3900 | CX71: 671680 | CY71: n/a | CZ71: n/a | DA71: n/a | DB71: n/a | DC71: n/a | DD71: n/a | DE71: n/a | DF71: n/a | DG71: n/a | DH71: n/a | DI71: n/a | DJ71: n/a | DK71: n/a | DL71: n/a | DM71: n/a | DN71: n/a | DO71: n/a | DP71: n/a | DQ71: 11900 | DR71: 12900 | DS71: 537190 | DT71: 12000 | DU71: 13000 | DV71: 562090 | DW71: n/a | DX71: n/a | DY71: n/a | DZ71: n/a | EA71: n/a | EB71: n/a | EC71: n/a | ED71: n/a | EE71: n/a | EF71: n/a | EG71: n/a | EH71: n/a | EI71: n/a | EJ71: n/a | EK71: n/a | EL71: n/a | EM71: n/a | EN71: n/a
AN72: 60 | AO72: 1965-82 | AP72: 2 bedrooms | AQ72: 1965-822 bedrooms | AR72: 2700 | AS72: 3700 | AT72: 191130 | AU72: 2800 | AV72: 3700 | AW72: 192670 | AX72: 2800 | AY72: 3800 | AZ72: 192430 | BA72: 2800 | BB72: 3800 | BC72: 191030 | BD72: 2800 | BE72: 3900 | BF72: 189940 | BG72: 3000 | BH72: 4000 | BI72: 189950 | BJ72: 3000 | BK72: 4100 | BL72: 190760 | BM72: 3000 | BN72: 4200 | BO72: 170030 | BP72: 9800 | BQ72: 10400 | BR72: 143660 | BS72: 9800 | BT72: 10500 | BU72: 150020 | BV72: 10600 | BW72: 11200 | BX72: 144290 | BY72: 10700 | BZ72: 11300 | CA72: 155460 | CB72: 11800 | CC72: 12500 | CD72: 139960 | CE72: 12400 | CF72: 13100 | CG72: 138770 | CH72: 12900 | CI72: 13600 | CJ72: 136480 | CK72: 13600 | CL72: 14300 | CM72: 132070 | CP72: Index of Multiple Deprivation Quintile | CQ72: IMD - 3 | CR72: Index of Multiple Deprivation QuintileIMD - 3 | CS72: 3400 | CT72: 4200 | CU72: 667430 | CV72: 3500 | CW72: 4300 | CX72: 672640 | CY72: n/a | CZ72: n/a | DA72: n/a | DB72: n/a | DC72: n/a | DD72: n/a | DE72: n/a | DF72: n/a | DG72: n/a | DH72: n/a | DI72: n/a | DJ72: n/a | DK72: n/a | DL72: n/a | DM72: n/a | DN72: n/a | DO72: n/a | DP72: n/a | DQ72: 13000 | DR72: 14000 | DS72: 506320 | DT72: 12900 | DU72: 14000 | DV72: 530580 | DW72: n/a | DX72: n/a | DY72: n/a | DZ72: n/a | EA72: n/a | EB72: n/a | EC72: n/a | ED72: n/a | EE72: n/a | EF72: n/a | EG72: n/a | EH72: n/a | EI72: n/a | EJ72: n/a | EK72: n/a | EL72: n/a | EM72: n/a | EN72: n/a
AN73: 61 | AO73: 1983-92 | AP73: 2 bedrooms | AQ73: 1983-922 bedrooms | AR73: 2700 | AS73: 3900 | AT73: 84340 | AU73: 2800 | AV73: 3900 | AW73: 84750 | AX73: 2900 | AY73: 4000 | AZ73: 84400 | BA73: 2800 | BB73: 4000 | BC73: 83940 | BD73: 2900 | BE73: 4100 | BF73: 83460 | BG73: 3000 | BH73: 4200 | BI73: 83690 | BJ73: 3000 | BK73: 4200 | BL73: 84060 | BM73: 3100 | BN73: 4400 | BO73: 75920 | BP73: 8700 | BQ73: 9300 | BR73: 61040 | BS73: 8700 | BT73: 9300 | BU73: 63440 | BV73: 9400 | BW73: 10000 | BX73: 61590 | BY73: 9500 | BZ73: 10100 | CA73: 64810 | CB73: 10400 | CC73: 11100 | CD73: 59870 | CE73: 10900 | CF73: 11600 | CG73: 59740 | CH73: 11200 | CI73: 11900 | CJ73: 59300 | CK73: 11700 | CL73: 12400 | CM73: 57830 | CP73: Index of Multiple Deprivation Quintile | CQ73: IMD - 4 | CR73: Index of Multiple Deprivation QuintileIMD - 4 | CS73: 3500 | CT73: 4400 | CU73: 653730 | CV73: 3700 | CW73: 4500 | CX73: 659010 | CY73: n/a | CZ73: n/a | DA73: n/a | DB73: n/a | DC73: n/a | DD73: n/a | DE73: n/a | DF73: n/a | DG73: n/a | DH73: n/a | DI73: n/a | DJ73: n/a | DK73: n/a | DL73: n/a | DM73: n/a | DN73: n/a | DO73: n/a | DP73: n/a | DQ73: 14000 | DR73: 15200 | DS73: 499730 | DT73: 13900 | DU73: 15100 | DV73: 524850 | DW73: n/a | DX73: n/a | DY73: n/a | DZ73: n/a | EA73: n/a | EB73: n/a | EC73: n/a | ED73: n/a | EE73: n/a | EF73: n/a | EG73: n/a | EH73: n/a | EI73: n/a | EJ73: n/a | EK73: n/a | EL73: n/a | EM73: n/a | EN73: n/a
AN74: 62 | AO74: 1993-99 | AP74: 2 bedrooms | AQ74: 1993-992 bedrooms | AR74: 2700 | AS74: 3800 | AT74: 57340 | AU74: 2800 | AV74: 3800 | AW74: 57680 | AX74: 2800 | AY74: 3800 | AZ74: 57460 | BA74: 2800 | BB74: 3800 | BC74: 57010 | BD74: 2800 | BE74: 3900 | BF74: 56600 | BG74: 2900 | BH74: 4000 | BI74: 56720 | BJ74: 3000 | BK74: 4000 | BL74: 57030 | BM74: 3000 | BN74: 4200 | BO74: 51280 | BP74: 8400 | BQ74: 8900 | BR74: 41980 | BS74: 8500 | BT74: 9000 | BU74: 43780 | BV74: 9000 | BW74: 9500 | BX74: 41910 | BY74: 9100 | BZ74: 9600 | CA74: 44120 | CB74: 9900 | CC74: 10500 | CD74: 41580 | CE74: 10300 | CF74: 10900 | CG74: 40710 | CH74: 10600 | CI74: 11200 | CJ74: 39200 | CK74: 11100 | CL74: 11600 | CM74: 40290 | CP74: Index of Multiple Deprivation Quintile | CQ74: IMD - 5 | CR74: Index of Multiple Deprivation QuintileIMD - 5 | CS74: 3700 | CT74: 4500 | CU74: 651550 | CV74: 3800 | CW74: 4600 | CX74: 655600 | CY74: n/a | CZ74: n/a | DA74: n/a | DB74: n/a | DC74: n/a | DD74: n/a | DE74: n/a | DF74: n/a | DG74: n/a | DH74: n/a | DI74: n/a | DJ74: n/a | DK74: n/a | DL74: n/a | DM74: n/a | DN74: n/a | DO74: n/a | DP74: n/a | DQ74: 15500 | DR74: 16800 | DS74: 541180 | DT74: 15300 | DU74: 16600 | DV74: 567390 | DW74: n/a | DX74: n/a | DY74: n/a | DZ74: n/a | EA74: n/a | EB74: n/a | EC74: n/a | ED74: n/a | EE74: n/a | EF74: n/a | EG74: n/a | EH74: n/a | EI74: n/a | EJ74: n/a | EK74: n/a | EL74: n/a | EM74: n/a | EN74: n/a
AN75: 63 | AO75: Post 1999 | AP75: 2 bedrooms | AQ75: Post 19992 bedrooms | AR75: 2800 | AS75: 4100 | AT75: 83180 | AU75: 2900 | AV75: 4000 | AW75: 83520 | AX75: 2900 | AY75: 4100 | AZ75: 69720 | BA75: 2900 | BB75: 4100 | BC75: 68950 | BD75: 2900 | BE75: 4100 | BF75: 67820 | BG75: 2900 | BH75: 4200 | BI75: 63290 | BJ75: 2900 | BK75: 4100 | BL75: 54030 | BM75: 2900 | BN75: 4200 | BO75: 40280 | BP75: 7500 | BQ75: 8200 | BR75: 32680 | BS75: 7700 | BT75: 8300 | BU75: 36430 | BV75: 8100 | BW75: 8800 | BX75: 26280 | BY75: 8100 | BZ75: 8900 | CA75: 28270 | CB75: 8800 | CC75: 9500 | CD75: 29510 | CE75: 10300 | CF75: 10500 | CG75: 26810 | CH75: 10900 | CI75: 11000 | CJ75: 18340 | CK75: 11600 | CL75: 11700 | CM75: 22710 | CR75: All Properties | CS75: 3300 | CT75: 4100 | CU75: 3498160 | CV75: 3400 | CW75: 4200 | CX75: 3528760 | CY75: 3500 | CZ75: 4200 | DA75: 3458030 | DB75: 3400 | DC75: 4200 | DD75: 3425800 | DE75: 3500 | DF75: 4300 | DG75: 3403390 | DH75: 3600 | DI75: 4500 | DJ75: 3395530 | DK75: 3700 | DL75: 4500 | DM75: 3389650 | DN75: 3800 | DO75: 4600 | DP75: 2996480 | DQ75: 12900 | DR75: 14000 | DS75: 2778260 | DT75: 12900 | DU75: 14100 | DV75: 2909210 | DW75: 14000 | DX75: 15100 | DY75: 2757930 | DZ75: 14100 | EA75: 15200 | EB75: 2949010 | EC75: 15600 | ED75: 16600 | EE75: 2689450 | EF75: 16200 | EG75: 17200 | EH75: 2640270 | EI75: 16800 | EJ75: 17800 | EK75: 2562760 | EL75: 17700 | EM75: 18600 | EN75: 2531820
AN76: 64 | AO76: Pre 1919 | AP76: 3 bedrooms | AQ76: Pre 19193 bedrooms | AR76: 3500 | AS76: 4300 | AT76: 277130 | AU76: 3600 | AV76: 4400 | AW76: 280620 | AX76: 3600 | AY76: 4400 | AZ76: 255840 | BA76: 3600 | BB76: 4500 | BC76: 252510 | BD76: 3700 | BE76: 4500 | BF76: 251130 | BG76: 3800 | BH76: 4700 | BI76: 251330 | BJ76: 3900 | BK76: 4700 | BL76: 252900 | BM76: 4000 | BN76: 4900 | BO76: 225220 | BP76: 14800 | BQ76: 15800 | BR76: 224460 | BS76: 14800 | BT76: 15800 | BU76: 234670 | BV76: 16100 | BW76: 17000 | BX76: 209070 | BY76: 16200 | BZ76: 17100 | CA76: 225850 | CB76: 17800 | CC76: 18700 | CD76: 201370 | CE76: 18400 | CF76: 19300 | CG76: 198370 | CH76: 19100 | CI76: 19800 | CJ76: 195000 | CK76: 20000 | CL76: 20800 | CM76: 190170
AN77: 65 | AO77: 1919-44 | AP77: 3 bedrooms | AQ77: =CONCATENATE(AO77,AP77) -> 1919-443 bedrooms | AR77: 3600 | AS77: 4100 | AT77: 418820 | AU77: 3700 | AV77: 4200 | AW77: 422350 | AX77: 3700 | AY77: 4300 | AZ77: 429870 | BA77: 3700 | BB77: 4300 | BC77: 425770 | BD77: 3700 | BE77: 4300 | BF77: 423380 | BG77: 3900 | BH77: 4500 | BI77: 424460 | BJ77: 3900 | BK77: 4500 | BL77: 426100 | BM77: 4000 | BN77: 4700 | BO77: 376360 | BP77: 14900 | BQ77: 15700 | BR77: 377790 | BS77: 14800 | BT77: 15700 | BU77: 394430 | BV77: 16100 | BW77: 16800 | BX77: 390020 | BY77: 16200 | BZ77: 17000 | CA77: 414690 | CB77: 17900 | CC77: 18700 | CD77: 378180 | CE77: 18600 | CF77: 19300 | CG77: 373070 | CH77: 19300 | CI77: 19900 | CJ77: 367470 | CK77: 20200 | CL77: 20800 | CM77: 359190
AN78: 66 | AO78: 1945-64 | AP78: 3 bedrooms | AQ78: 1945-643 bedrooms | AR78: 3500 | AS78: 4100 | AT78: 396540 | AU78: 3600 | AV78: 4200 | AW78: 399620 | AX78: 3600 | AY78: 4200 | AZ78: 396550 | BA78: 3600 | BB78: 4200 | BC78: 393190 | BD78: 3600 | BE78: 4200 | BF78: 390840 | BG78: 3800 | BH78: 4500 | BI78: 391560 | BJ78: 3800 | BK78: 4500 | BL78: 393510 | BM78: 3900 | BN78: 4600 | BO78: 350300 | BP78: 13700 | BQ78: 14400 | BR78: 349250 | BS78: 13700 | BT78: 14400 | BU78: 364180 | BV78: 14800 | BW78: 15500 | BX78: 351750 | BY78: 15000 | BZ78: 15700 | CA78: 372760 | CB78: 16600 | CC78: 17300 | CD78: 341270 | CE78: 17200 | CF78: 17900 | CG78: 337000 | CH78: 17900 | CI78: 18500 | CJ78: 332140 | CK78: 18800 | CL78: 19400 | CM78: 324080
AN79: 67 | AO79: 1965-82 | AP79: 3 bedrooms | AQ79: 1965-823 bedrooms | AR79: 3400 | AS79: 4000 | AT79: 374230 | AU79: 3600 | AV79: 4100 | AW79: 376570 | AX79: 3600 | AY79: 4200 | AZ79: 375270 | BA79: 3600 | BB79: 4200 | BC79: 372550 | BD79: 3600 | BE79: 4300 | BF79: 370050 | BG79: 3800 | BH79: 4500 | BI79: 370830 | BJ79: 3900 | BK79: 4600 | BL79: 372660 | BM79: 3900 | BN79: 4700 | BO79: 330240 | BP79: 12900 | BQ79: 13500 | BR79: 322170 | BS79: 12800 | BT79: 13600 | BU79: 336270 | BV79: 13800 | BW79: 14500 | BX79: 326230 | BY79: 14000 | BZ79: 14700 | CA79: 346350 | CB79: 15500 | CC79: 16300 | CD79: 316410 | CE79: 16200 | CF79: 16900 | CG79: 312760 | CH79: 16800 | CI79: 17500 | CJ79: 307990 | CK79: 17700 | CL79: 18400 | CM79: 300370
AN80: 68 | AO80: 1983-92 | AP80: 3 bedrooms | AQ80: 1983-923 bedrooms | AR80: 3500 | AS80: 4200 | AT80: 81540 | AU80: 3600 | AV80: 4300 | AW80: 81880 | AX80: 3600 | AY80: 4300 | AZ80: 80700 | BA80: 3600 | BB80: 4300 | BC80: 80260 | BD80: 3600 | BE80: 4400 | BF80: 79550 | BG80: 3800 | BH80: 4600 | BI80: 79770 | BJ80: 3900 | BK80: 4600 | BL80: 80220 | BM80: 3900 | BN80: 4800 | BO80: 72060 | BP80: 12500 | BQ80: 13200 | BR80: 70090 | BS80: 12500 | BT80: 13300 | BU80: 72690 | BV80: 13400 | BW80: 14100 | BX80: 71190 | BY80: 13500 | BZ80: 14300 | CA80: 74070 | CB80: 15000 | CC80: 15700 | CD80: 69240 | CE80: 15500 | CF80: 16300 | CG80: 68740 | CH80: 16000 | CI80: 16800 | CJ80: 68180 | CK80: 16700 | CL80: 17400 | CM80: 66810
AN81: 69 | AO81: 1993-99 | AP81: 3 bedrooms | AQ81: 1993-993 bedrooms | AR81: 3500 | AS81: 4100 | AT81: 66710 | AU81: 3600 | AV81: 4200 | AW81: 66950 | AX81: 3600 | AY81: 4200 | AZ81: 65860 | BA81: 3600 | BB81: 4200 | BC81: 65480 | BD81: 3600 | BE81: 4200 | BF81: 64810 | BG81: 3800 | BH81: 4400 | BI81: 64990 | BJ81: 3800 | BK81: 4500 | BL81: 65310 | BM81: 3800 | BN81: 4600 | BO81: 58360 | BP81: 11800 | BQ81: 12400 | BR81: 57060 | BS81: 11800 | BT81: 12500 | BU81: 59530 | BV81: 12600 | BW81: 13300 | BX81: 56510 | BY81: 12700 | BZ81: 13400 | CA81: 58680 | CB81: 13900 | CC81: 14500 | CD81: 56760 | CE81: 14300 | CF81: 15000 | CG81: 55130 | CH81: 14700 | CI81: 15400 | CJ81: 52030 | CK81: 15200 | CL81: 15900 | CM81: 55010
AN82: 70 | AO82: Post 1999 | AP82: 3 bedrooms | AQ82: Post 19993 bedrooms | AR82: 3300 | AS82: 3900 | AT82: 62680 | AU82: 3400 | AV82: 4000 | AW82: 62830 | AX82: 3400 | AY82: 4000 | AZ82: 54720 | BA82: 3400 | BB82: 3900 | BC82: 54230 | BD82: 3300 | BE82: 3900 | BF82: 53370 | BG82: 3400 | BH82: 4000 | BI82: 50520 | BJ82: 3500 | BK82: 4000 | BL82: 45220 | BM82: 3400 | BN82: 4000 | BO82: 35570 | BP82: 11400 | BQ82: 12100 | BR82: 41090 | BS82: 11500 | BT82: 12200 | BU82: 46650 | BV82: 12100 | BW82: 12900 | BX82: 31870 | BY82: 12000 | BZ82: 12800 | CA82: 33700 | CB82: 12900 | CC82: 13700 | CD82: 38480 | CE82: 13800 | CF82: 14600 | CG82: 33230 | CH82: 14400 | CI82: 15200 | CJ82: 22280 | CK82: 14500 | CL82: 15500 | CM82: 30370
AN83: 71 | AO83: Pre 1919 | AP83: 4 bedrooms | AQ83: Pre 19194 bedrooms | AR83: 4800 | AS83: 5900 | AT83: 78000 | AU83: 4900 | AV83: 6000 | AW83: 79010 | AX83: 5000 | AY83: 6000 | AZ83: 71820 | BA83: 5000 | BB83: 6000 | BC83: 71050 | BD83: 5000 | BE83: 6000 | BF83: 70550 | BG83: 5200 | BH83: 6300 | BI83: 70540 | BJ83: 5300 | BK83: 6300 | BL83: 71060 | BM83: 5400 | BN83: 6500 | BO83: 63890 | BP83: 21100 | BQ83: 21900 | BR83: 55200 | BS83: 20800 | BT83: 21800 | BU83: 57950 | BV83: 22800 | BW83: 23500 | BX83: 52160 | BY83: 22800 | BZ83: 23500 | CA83: 56250 | CB83: 24900 | CC83: 25200 | CD83: 49210 | CE83: 25500 | CF83: 25700 | CG83: 48080 | CH83: 26200 | CI83: 26300 | CJ83: 46820 | CK83: 27300 | CL83: 27200 | CM83: 45230
AN84: 72 | AO84: 1919-44 | AP84: 4 bedrooms | AQ84: 1919-444 bedrooms | AR84: 4700 | AS84: 5500 | AT84: 50650 | AU84: 4900 | AV84: 5600 | AW84: 51050 | AX84: 4900 | AY84: 5600 | AZ84: 51340 | BA84: 4900 | BB84: 5600 | BC84: 50840 | BD84: 5000 | BE84: 5700 | BF84: 50650 | BG84: 5200 | BH84: 5900 | BI84: 50680 | BJ84: 5300 | BK84: 6000 | BL84: 50940 | BM84: 5400 | BN84: 6100 | BO84: 46270 | BP84: 21800 | BQ84: 22800 | BR84: 43170 | BS84: 21500 | BT84: 22600 | BU84: 45360 | BV84: 23200 | BW84: 24100 | BX84: 43950 | BY84: 23400 | BZ84: 24200 | CA84: 46760 | CB84: 25500 | CC84: 26000 | CD84: 41710 | CE84: 26000 | CF84: 26500 | CG84: 40740 | CH84: 26900 | CI84: 27300 | CJ84: 39930 | CK84: 27900 | CL84: 28100 | CM84: 38550
AN85: 73 | AO85: 1945-64 | AP85: 4 bedrooms | AQ85: 1945-644 bedrooms | AR85: 4400 | AS85: 5100 | AT85: 43330 | AU85: 4600 | AV85: 5300 | AW85: 43740 | AX85: 4600 | AY85: 5300 | AZ85: 43990 | BA85: 4600 | BB85: 5300 | BC85: 43590 | BD85: 4600 | BE85: 5400 | BF85: 43330 | BG85: 4900 | BH85: 5600 | BI85: 43410 | BJ85: 5000 | BK85: 5700 | BL85: 43660 | BM85: 5000 | BN85: 5800 | BO85: 39390 | BP85: 18800 | BQ85: 20000 | BR85: 36990 | BS85: 18600 | BT85: 19800 | BU85: 38620 | BV85: 20100 | BW85: 21200 | BX85: 37950 | BY85: 20200 | BZ85: 21300 | CA85: 40050 | CB85: 22200 | CC85: 23200 | CD85: 36170 | CE85: 22800 | CF85: 23800 | CG85: 35570 | CH85: 23700 | CI85: 24500 | CJ85: 35060 | CK85: 24800 | CL85: 25500 | CM85: 34140
AN86: 74 | AO86: 1965-82 | AP86: 4 bedrooms | AQ86: 1965-824 bedrooms | AR86: 4200 | AS86: 4800 | AT86: 94120 | AU86: 4400 | AV86: 5000 | AW86: 94690 | AX86: 4400 | AY86: 5100 | AZ86: 95170 | BA86: 4400 | BB86: 5100 | BC86: 94460 | BD86: 4500 | BE86: 5100 | BF86: 93920 | BG86: 4700 | BH86: 5400 | BI86: 94110 | BJ86: 4800 | BK86: 5500 | BL86: 94610 | BM86: 4900 | BN86: 5600 | BO86: 84880 | BP86: 17800 | BQ86: 18800 | BR86: 79490 | BS86: 17600 | BT86: 18600 | BU86: 83100 | BV86: 18900 | BW86: 19900 | BX86: 81520 | BY86: 19100 | BZ86: 20100 | CA86: 85960 | CB86: 21100 | CC86: 22100 | CD86: 78630 | CE86: 21800 | CF86: 22700 | CG86: 77500 | CH86: 22600 | CI86: 23400 | CJ86: 75980 | CK86: 23600 | CL86: 24400 | CM86: 74020
AN87: 75 | AO87: 1983-92 | AP87: 4 bedrooms | AQ87: 1983-924 bedrooms | AR87: 4300 | AS87: 4900 | AT87: 53150 | AU87: 4500 | AV87: 5100 | AW87: 53310 | AX87: 4500 | AY87: 5200 | AZ87: 53740 | BA87: 4500 | BB87: 5200 | BC87: 53440 | BD87: 4600 | BE87: 5200 | BF87: 52990 | BG87: 4900 | BH87: 5500 | BI87: 53200 | BJ87: 5000 | BK87: 5600 | BL87: 53460 | BM87: 5000 | BN87: 5700 | BO87: 47560 | BP87: 17400 | BQ87: 18200 | BR87: 46300 | BS87: 17200 | BT87: 18100 | BU87: 48220 | BV87: 18400 | BW87: 19300 | BX87: 48140 | BY87: 18600 | BZ87: 19500 | CA87: 49830 | CB87: 20500 | CC87: 21300 | CD87: 46820 | CE87: 21000 | CF87: 21900 | CG87: 46470 | CH87: 21700 | CI87: 22600 | CJ87: 45970 | CK87: 22600 | CL87: 23400 | CM87: 45040
AN88: 76 | AO88: 1993-99 | AP88: 4 bedrooms | AQ88: 1993-994 bedrooms | AR88: 4400 | AS88: 5000 | AT88: 47010 | AU88: 4700 | AV88: 5200 | AW88: 47140 | AX88: 4700 | AY88: 5300 | AZ88: 47230 | BA88: 4700 | BB88: 5300 | BC88: 46990 | BD88: 4700 | BE88: 5300 | BF88: 46550 | BG88: 5000 | BH88: 5600 | BI88: 46770 | BJ88: 5100 | BK88: 5600 | BL88: 46940 | BM88: 5100 | BN88: 5700 | BO88: 41560 | BP88: 17100 | BQ88: 17900 | BR88: 40050 | BS88: 17000 | BT88: 17800 | BU88: 41740 | BV88: 18000 | BW88: 18900 | BX88: 40040 | BY88: 18100 | BZ88: 18900 | CA88: 41570 | CB88: 19500 | CC88: 20400 | CD88: 40630 | CE88: 20100 | CF88: 20900 | CG88: 39220 | CH88: 20600 | CI88: 21400 | CJ88: 35670 | CK88: 21000 | CL88: 21900 | CM88: 39780
AN89: 77 | AO89: Post 1999 | AP89: 4 bedrooms | AQ89: Post 19994 bedrooms | AR89: 4300 | AS89: 4900 | AT89: 44920 | AU89: 4500 | AV89: 5100 | AW89: 45040 | AX89: 4500 | AY89: 5100 | AZ89: 39190 | BA89: 4400 | BB89: 5100 | BC89: 38790 | BD89: 4400 | BE89: 5000 | BF89: 38160 | BG89: 4500 | BH89: 5100 | BI89: 36660 | BJ89: 4700 | BK89: 5300 | BL89: 33430 | BM89: 4600 | BN89: 5200 | BO89: 26860 | BP89: 16100 | BQ89: 17000 | BR89: 31110 | BS89: 16200 | BT89: 17000 | BU89: 34940 | BV89: 16900 | BW89: 17800 | BX89: 23680 | BY89: 16800 | BZ89: 17700 | CA89: 24970 | CB89: 17900 | CC89: 18800 | CD89: 29200 | CE89: 19100 | CF89: 19700 | CG89: 24210 | CH89: 20100 | CI89: 20600 | CJ89: 16270 | CK89: 21500 | CL89: 21200 | CM89: 24060
AN90: 78 | AO90: Pre 1919 | AP90: 5 or more bedrooms | AQ90: Pre 19195 or more bedrooms | AR90: 6300 | AS90: 7700 | AT90: 40140 | AU90: 6400 | AV90: 7800 | AW90: 40710 | AX90: 6500 | AY90: 7800 | AZ90: 38220 | BA90: 6500 | BB90: 7800 | BC90: 37770 | BD90: 6500 | BE90: 7800 | BF90: 37470 | BG90: 6800 | BH90: 8000 | BI90: 37480 | BJ90: 6900 | BK90: 8100 | BL90: 37800 | BM90: 7000 | BN90: 8300 | BO90: 34170 | BP90: 27000 | BQ90: 27000 | BR90: 24110 | BS90: 26700 | BT90: 26800 | BU90: 25320 | BV90: 28700 | BW90: 28300 | BX90: 23110 | BY90: 28500 | BZ90: 28000 | CA90: 25010 | CB90: 30300 | CC90: 29400 | CD90: 20620 | CE90: 30600 | CF90: 29700 | CG90: 19740 | CH90: 31400 | CI90: 30200 | CJ90: 19060 | CK90: 32400 | CL90: 31000 | CM90: 17960
AN91: 79 | AO91: 1919-44 | AP91: 5 or more bedrooms | AQ91: 1919-445 or more bedrooms | AR91: 5900 | AS91: 7100 | AT91: 12250 | AU91: 6000 | AV91: 7200 | AW91: 12380 | AX91: 6100 | AY91: 7300 | AZ91: 12630 | BA91: 6100 | BB91: 7300 | BC91: 12500 | BD91: 6200 | BE91: 7300 | BF91: 12470 | BG91: 6500 | BH91: 7600 | BI91: 12480 | BJ91: 6600 | BK91: 7700 | BL91: 12530 | BM91: 6700 | BN91: 7800 | BO91: 11590 | BP91: 27100 | BQ91: 27500 | BR91: 8960 | BS91: 26800 | BT91: 27200 | BU91: 9390 | BV91: 28300 | BW91: 28700 | BX91: 8970 | BY91: 28300 | BZ91: 28500 | CA91: 9560 | CB91: 30100 | CC91: 29900 | CD91: 8100 | CE91: 30500 | CF91: 30300 | CG91: 7800 | CH91: 31500 | CI91: 31000 | CJ91: 7490 | CK91: 32300 | CL91: 31700 | CM91: 7070
AN92: 80 | AO92: 1945-64 | AP92: 5 or more bedrooms | AQ92: 1945-645 or more bedrooms | AR92: 5300 | AS92: 6400 | AT92: 7880 | AU92: 5500 | AV92: 6500 | AW92: 7920 | AX92: 5500 | AY92: 6600 | AZ92: 8080 | BA92: 5500 | BB92: 6600 | BC92: 8010 | BD92: 5600 | BE92: 6600 | BF92: 7990 | BG92: 5900 | BH92: 6900 | BI92: 7970 | BJ92: 6000 | BK92: 7000 | BL92: 7990 | BM92: 6100 | BN92: 7200 | BO92: 7270 | BP92: 23000 | BQ92: 24200 | BR92: 6080 | BS92: 22700 | BT92: 23900 | BU92: 6390 | BV92: 24300 | BW92: 25400 | BX92: 6260 | BY92: 24300 | BZ92: 25400 | CA92: 6630 | CB92: 26500 | CC92: 27200 | CD92: 5870 | CE92: 27000 | CF92: 27700 | CG92: 5700 | CH92: 27900 | CI92: 28400 | CJ92: 5550 | CK92: 28800 | CL92: 29300 | CM92: 5380
AN93: 81 | AO93: 1965-82 | AP93: 5 or more bedrooms | AQ93: 1965-825 or more bedrooms | AR93: 5000 | AS93: 6000 | AT93: 11000 | AU93: 5200 | AV93: 6200 | AW93: 11110 | AX93: 5300 | AY93: 6300 | AZ93: 11040 | BA93: 5300 | BB93: 6200 | BC93: 10970 | BD93: 5400 | BE93: 6300 | BF93: 10890 | BG93: 5700 | BH93: 6600 | BI93: 10920 | BJ93: 5800 | BK93: 6700 | BL93: 10980 | BM93: 5900 | BN93: 6800 | BO93: 9980 | BP93: 21900 | BQ93: 23100 | BR93: 8420 | BS93: 21500 | BT93: 22800 | BU93: 8800 | BV93: 22800 | BW93: 23900 | BX93: 8550 | BY93: 23000 | BZ93: 24200 | CA93: 9040 | CB93: 25100 | CC93: 26000 | CD93: 8030 | CE93: 25700 | CF93: 26600 | CG93: 7900 | CH93: 26800 | CI93: 27400 | CJ93: 7700 | CK93: 27800 | CL93: 28300 | CM93: 7460
AN94: 82 | AO94: 1983-92 | AP94: 5 or more bedrooms | AQ94: 1983-925 or more bedrooms | AR94: 5600 | AS94: 6500 | AT94: 5550 | AU94: 5800 | AV94: 6800 | AW94: 5590 | AX94: 5800 | AY94: 6800 | AZ94: 5640 | BA94: 5800 | BB94: 6800 | BC94: 5570 | BD94: 6000 | BE94: 7000 | BF94: 5550 | BG94: 6300 | BH94: 7300 | BI94: 5550 | BJ94: 6400 | BK94: 7400 | BL94: 5610 | BM94: 6500 | BN94: 7400 | BO94: 5110 | BP94: 23300 | BQ94: 24300 | BR94: 4290 | BS94: 22900 | BT94: 24100 | BU94: 4470 | BV94: 24600 | BW94: 25400 | BX94: 4510 | BY94: 24600 | BZ94: 25500 | CA94: 4680 | CB94: 27000 | CC94: 27500 | CD94: 4230 | CE94: 27500 | CF94: 28100 | CG94: 4140 | CH94: 28200 | CI94: 28800 | CJ94: 4100 | CK94: 29100 | CL94: 29700 | CM94: 4010
AN95: 83 | AO95: 1993-99 | AP95: 5 or more bedrooms | AQ95: 1993-995 or more bedrooms | AR95: 5700 | AS95: 6600 | AT95: 6470 | AU95: 5900 | AV95: 6900 | AW95: 6490 | AX95: 6100 | AY95: 7000 | AZ95: 6560 | BA95: 6100 | BB95: 7000 | BC95: 6550 | BD95: 6200 | BE95: 7000 | BF95: 6460 | BG95: 6500 | BH95: 7300 | BI95: 6480 | BJ95: 6600 | BK95: 7400 | BL95: 6510 | BM95: 6700 | BN95: 7600 | BO95: 5930 | BP95: 23600 | BQ95: 24700 | BR95: 5000 | BS95: 23500 | BT95: 24400 | BU95: 5180 | BV95: 24700 | BW95: 25700 | BX95: 5020 | BY95: 24600 | BZ95: 25600 | CA95: 5250 | CB95: 26400 | CC95: 27200 | CD95: 4910 | CE95: 26700 | CF95: 27500 | CG95: 4710 | CH95: 27500 | CI95: 28300 | CJ95: 4280 | CK95: 27900 | CL95: 28600 | CM95: 4800
AN96: 84 | AO96: Post 1999 | AP96: 5 or more bedrooms | AQ96: Post 19995 or more bedrooms | AR96: 5600 | AS96: 6700 | AT96: 10700 | AU96: 5900 | AV96: 6900 | AW96: 10740 | AX96: 5900 | AY96: 6800 | AZ96: 9380 | BA96: 5900 | BB96: 6800 | BC96: 9300 | BD96: 5800 | BE96: 6700 | BF96: 9160 | BG96: 6000 | BH96: 6900 | BI96: 8870 | BJ96: 6100 | BK96: 6900 | BL96: 8150 | BM96: 6000 | BN96: 6900 | BO96: 6640 | BP96: 22900 | BQ96: 23900 | BR96: 7050 | BS96: 22900 | BT96: 24000 | BU96: 7780 | BV96: 24200 | BW96: 25300 | BX96: 5430 | BY96: 23900 | BZ96: 24900 | CA96: 5750 | CB96: 25400 | CC96: 26200 | CD96: 6160 | CE96: 26000 | CF96: 26700 | CG96: 5180 | CH96: 27600 | CI96: 27900 | CJ96: 3650 | CK96: 29700 | CL96: 28300 | CM96: 5370
AN97: 85 | AO97: Pre 1919 | AP97: 50 or less | AQ97: Pre 191950 or less | AR97: 2300 | AS97: 3300 | AT97: 71830 | AU97: 2300 | AV97: 3300 | AW97: 72920 | AX97: 2300 | AY97: 3300 | AZ97: 54320 | BA97: 2300 | BB97: 3300 | BC97: 53430 | BD97: 2400 | BE97: 3400 | BF97: 53140 | BG97: 2400 | BH97: 3500 | BI97: 52370 | BJ97: 2500 | BK97: 3500 | BL97: 52160 | BM97: 2600 | BN97: 3700 | BO97: 48160 | BP97: 7800 | BQ97: 9000 | BR97: 50160 | BS97: 7900 | BT97: 9100 | BU97: 52520 | BV97: 8600 | BW97: 9700 | BX97: 35950 | BY97: 8500 | BZ97: 9700 | CA97: 40840 | CB97: 9500 | CC97: 10700 | CD97: 34630 | CE97: 9900 | CF97: 11200 | CG97: 33830 | CH97: 10200 | CI97: 11500 | CJ97: 33310 | CK97: 11000 | CL97: 12300 | CM97: 32210
AN98: 86 | AO98: 1919-44 | AP98: 50 or less | AQ98: 1919-4450 or less | AR98: 2100 | AS98: 2800 | AT98: 30800 | AU98: 2200 | AV98: 2900 | AW98: 31330 | AX98: 2100 | AY98: 2800 | AZ98: 31210 | BA98: 2100 | BB98: 2900 | BC98: 30780 | BD98: 2200 | BE98: 2900 | BF98: 30630 | BG98: 2200 | BH98: 3000 | BI98: 30490 | BJ98: 2200 | BK98: 3000 | BL98: 30510 | BM98: 2300 | BN98: 3100 | BO98: 29100 | BP98: 8000 | BQ98: 8600 | BR98: 24190 | BS98: 8100 | BT98: 8800 | BU98: 25180 | BV98: 8900 | BW98: 9400 | BX98: 23600 | BY98: 8900 | BZ98: 9500 | CA98: 26640 | CB98: 9800 | CC98: 10500 | CD98: 22860 | CE98: 10300 | CF98: 11000 | CG98: 22530 | CH98: 10600 | CI98: 11300 | CJ98: 22110 | CK98: 11400 | CL98: 12000 | CM98: 21350
AN99: 87 | AO99: 1945-64 | AP99: 50 or less | AQ99: 1945-6450 or less | AR99: 2100 | AS99: 2800 | AT99: 76880 | AU99: 2100 | AV99: 2900 | AW99: 78230 | AX99: 2100 | AY99: 2900 | AZ99: 79020 | BA99: 2100 | BB99: 2900 | BC99: 77940 | BD99: 2200 | BE99: 3000 | BF99: 77590 | BG99: 2200 | BH99: 3100 | BI99: 77290 | BJ99: 2300 | BK99: 3100 | BL99: 77490 | BM99: 2300 | BN99: 3200 | BO99: 70850 | BP99: 7200 | BQ99: 7700 | BR99: 60060 | BS99: 7300 | BT99: 7900 | BU99: 62510 | BV99: 8100 | BW99: 8600 | BX99: 59330 | BY99: 8100 | BZ99: 8700 | CA99: 66810 | CB99: 9000 | CC99: 9600 | CD99: 57350 | CE99: 9500 | CF99: 10100 | CG99: 56970 | CH99: 9800 | CI99: 10300 | CJ99: 55970 | CK99: 10600 | CL99: 11000 | CM99: 54080
AN100: 88 | AO100: 1965-82 | AP100: 50 or less | AQ100: 1965-8250 or less | AR100: 2000 | AS100: 3000 | AT100: 121460 | AU100: 2100 | AV100: 3000 | AW100: 123260 | AX100: 2100 | AY100: 3100 | AZ100: 124980 | BA100: 2100 | BB100: 3200 | BC100: 123910 | BD100: 2100 | BE100: 3200 | BF100: 123390 | BG100: 2200 | BH100: 3400 | BI100: 123260 | BJ100: 2200 | BK100: 3400 | BL100: 123730 | BM100: 2300 | BN100: 3500 | BO100: 109620 | BP100: 6100 | BQ100: 6500 | BR100: 67740 | BS100: 6100 | BT100: 6700 | BU100: 71000 | BV100: 6700 | BW100: 7200 | BX100: 67070 | BY100: 6700 | BZ100: 7300 | CA100: 75760 | CB100: 7500 | CC100: 8000 | CD100: 65290 | CE100: 7800 | CF100: 8400 | CG100: 64920 | CH100: 8100 | CI100: 8700 | CJ100: 63840 | CK100: 8800 | CL100: 9300 | CM100: 60950
AN101: 89 | AO101: 1983-92 | AP101: 50 or less | AQ101: 1983-9250 or less | AR101: 2800 | AS101: 3900 | AT101: 63130 | AU101: 2800 | AV101: 3800 | AW101: 63470 | AX101: 2900 | AY101: 3900 | AZ101: 63620 | BA101: 2900 | BB101: 4000 | BC101: 63350 | BD101: 3000 | BE101: 4000 | BF101: 63070 | BG101: 3100 | BH101: 4200 | BI101: 63310 | BJ101: 3100 | BK101: 4100 | BL101: 63570 | BM101: 3300 | BN101: 4300 | BO101: 57610 | BP101: 5800 | BQ101: 6300 | BR101: 23700 | BS101: 5800 | BT101: 6400 | BU101: 24670 | BV101: 6300 | BW101: 6800 | BX101: 23450 | BY101: 6400 | BZ101: 7000 | CA101: 25470 | CB101: 7000 | CC101: 7600 | CD101: 22910 | CE101: 7400 | CF101: 8000 | CG101: 22800 | CH101: 7600 | CI101: 8200 | CJ101: 22800 | CK101: 8100 | CL101: 8600 | CM101: 22080
AN102: 90 | AO102: 1993-99 | AP102: 50 or less | AQ102: 1993-9950 or less | AR102: 3100 | AS102: 4200 | AT102: 26520 | AU102: 3100 | AV102: 4100 | AW102: 26760 | AX102: 3300 | AY102: 4300 | AZ102: 26920 | BA102: 3300 | BB102: 4300 | BC102: 26630 | BD102: 3400 | BE102: 4400 | BF102: 26520 | BG102: 3500 | BH102: 4600 | BI102: 26520 | BJ102: 3500 | BK102: 4500 | BL102: 26720 | BM102: 3600 | BN102: 4700 | BO102: 23840 | BP102: 5800 | BQ102: 6300 | BR102: 10530 | BS102: 5900 | BT102: 6500 | BU102: 10880 | BV102: 6400 | BW102: 7000 | BX102: 10340 | BY102: 6500 | BZ102: 7200 | CA102: 11280 | CB102: 7100 | CC102: 7800 | CD102: 10040 | CE102: 7400 | CF102: 8200 | CG102: 9840 | CH102: 7600 | CI102: 8400 | CJ102: 9640 | CK102: 8200 | CL102: 8900 | CM102: 9590
AN103: 91 | AO103: Post 1999 | AP103: 50 or less | AQ103: Post 199950 or less | AR103: 2800 | AS103: 3900 | AT103: 62110 | AU103: 2900 | AV103: 3800 | AW103: 62430 | AX103: 3000 | AY103: 4100 | AZ103: 49280 | BA103: 2900 | BB103: 4100 | BC103: 48650 | BD103: 2900 | BE103: 4100 | BF103: 47950 | BG103: 2900 | BH103: 4100 | BI103: 44080 | BJ103: 2900 | BK103: 4100 | BL103: 36410 | BM103: 3000 | BN103: 4200 | BO103: 26120 | BP103: 5700 | BQ103: 6300 | BR103: 16730 | BS103: 5700 | BT103: 6500 | BU103: 18430 | BV103: 6100 | BW103: 6900 | BX103: 12940 | BY103: 6200 | BZ103: 7100 | CA103: 14220 | CB103: 6700 | CC103: 7600 | CD103: 13790 | CE103: 8200 | CF103: 8700 | CG103: 13050 | CH103: 8600 | CI103: 9100 | CJ103: 9010 | CK103: 10400 | CL103: 9900 | CM103: 10210
AN104: 92 | AO104: Pre 1919 | AP104: 51 to 100 | AQ104: Pre 191951 to 100 | AR104: 2800 | AS104: 3600 | AT104: 312030 | AU104: 2900 | AV104: 3600 | AW104: 316440 | AX104: 2900 | AY104: 3600 | AZ104: 299780 | BA104: 2900 | BB104: 3600 | BC104: 295480 | BD104: 2900 | BE104: 3700 | BF104: 293870 | BG104: 3000 | BH104: 3800 | BI104: 293930 | BJ104: 3100 | BK104: 3900 | BL104: 295920 | BM104: 3200 | BN104: 4100 | BO104: 257960 | BP104: 11600 | BQ104: 12200 | BR104: 260930 | BS104: 11600 | BT104: 12300 | BU104: 272720 | BV104: 12500 | BW104: 13100 | BX104: 250210 | BY104: 12500 | BZ104: 13200 | CA104: 274710 | CB104: 13900 | CC104: 14600 | CD104: 241640 | CE104: 14400 | CF104: 15200 | CG104: 238480 | CH104: 15000 | CI104: 15600 | CJ104: 233790 | CK104: 15800 | CL104: 16400 | CM104: 228090
AN105: 93 | AO105: 1919-44 | AP105: 51 to 100 | AQ105: 1919-4451 to 100 | AR105: 3300 | AS105: 3800 | AT105: 354290 | AU105: 3400 | AV105: 3900 | AW105: 357430 | AX105: 3400 | AY105: 3900 | AZ105: 366960 | BA105: 3300 | BB105: 3900 | BC105: 363390 | BD105: 3400 | BE105: 4000 | BF105: 361420 | BG105: 3500 | BH105: 4100 | BI105: 362070 | BJ105: 3600 | BK105: 4200 | BL105: 363430 | BM105: 3600 | BN105: 4300 | BO105: 320910 | BP105: 13100 | BQ105: 13600 | BR105: 319470 | BS105: 13100 | BT105: 13700 | BU105: 332810 | BV105: 14200 | BW105: 14700 | BX105: 331360 | BY105: 14300 | BZ105: 14800 | CA105: 353380 | CB105: 15800 | CC105: 16300 | CD105: 321620 | CE105: 16500 | CF105: 17000 | CG105: 317620 | CH105: 17100 | CI105: 17500 | CJ105: 312850 | CK105: 18000 | CL105: 18400 | CM105: 305580
AN106: 94 | AO106: 1945-64 | AP106: 51 to 100 | AQ106: 1945-6451 to 100 | AR106: 3100 | AS106: 3700 | AT106: 404580 | AU106: 3200 | AV106: 3800 | AW106: 407920 | AX106: 3200 | AY106: 3800 | AZ106: 409010 | BA106: 3200 | BB106: 3800 | BC106: 405660 | BD106: 3200 | BE106: 3900 | BF106: 403270 | BG106: 3300 | BH106: 4100 | BI106: 403620 | BJ106: 3400 | BK106: 4100 | BL106: 405380 | BM106: 3400 | BN106: 4200 | BO106: 361960 | BP106: 12200 | BQ106: 12600 | BR106: 354540 | BS106: 12200 | BT106: 12700 | BU106: 369290 | BV106: 13200 | BW106: 13600 | BX106: 360020 | BY106: 13300 | BZ106: 13800 | CA106: 382500 | CB106: 14800 | CC106: 15200 | CD106: 349510 | CE106: 15400 | CF106: 15900 | CG106: 345410 | CH106: 16000 | CI106: 16400 | CJ106: 339990 | CK106: 16900 | CL106: 17300 | CM106: 332050
AN107: 95 | AO107: 1965-82 | AP107: 51 to 100 | AQ107: 1965-8251 to 100 | AR107: 3000 | AS107: 3800 | AT107: 411970 | AU107: 3200 | AV107: 3800 | AW107: 414690 | AX107: 3200 | AY107: 3900 | AZ107: 415730 | BA107: 3200 | BB107: 3900 | BC107: 412690 | BD107: 3200 | BE107: 4000 | BF107: 410150 | BG107: 3400 | BH107: 4200 | BI107: 410700 | BJ107: 3400 | BK107: 4200 | BL107: 412790 | BM107: 3500 | BN107: 4300 | BO107: 364480 | BP107: 11300 | BQ107: 11700 | BR107: 344120 | BS107: 11200 | BT107: 11800 | BU107: 359060 | BV107: 12100 | BW107: 12600 | BX107: 348550 | BY107: 12300 | BZ107: 12800 | CA107: 371450 | CB107: 13600 | CC107: 14100 | CD107: 338480 | CE107: 14200 | CF107: 14800 | CG107: 335010 | CH107: 14800 | CI107: 15300 | CJ107: 329990 | CK107: 15600 | CL107: 16100 | CM107: 321140
AN108: 96 | AO108: 1983-92 | AP108: 51 to 100 | AQ108: 1983-9251 to 100 | AR108: 2900 | AS108: 3800 | AT108: 127080 | AU108: 3000 | AV108: 3800 | AW108: 127640 | AX108: 3000 | AY108: 3900 | AZ108: 127760 | BA108: 3000 | BB108: 3900 | BC108: 127000 | BD108: 3100 | BE108: 4000 | BF108: 126000 | BG108: 3200 | BH108: 4200 | BI108: 126410 | BJ108: 3300 | BK108: 4200 | BL108: 127050 | BM108: 3300 | BN108: 4300 | BO108: 114390 | BP108: 10000 | BQ108: 10500 | BR108: 105550 | BS108: 10000 | BT108: 10500 | BU108: 109610 | BV108: 10700 | BW108: 11300 | BX108: 107530 | BY108: 10800 | BZ108: 11400 | CA108: 112400 | CB108: 11900 | CC108: 12500 | CD108: 104600 | CE108: 12500 | CF108: 13000 | CG108: 104120 | CH108: 12900 | CI108: 13400 | CJ108: 103450 | CK108: 13400 | CL108: 14000 | CM108: 101210
AN109: 97 | AO109: 1993-99 | AP109: 51 to 100 | AQ109: 1993-9951 to 100 | AR109: 3000 | AS109: 3700 | AT109: 93770 | AU109: 3100 | AV109: 3800 | AW109: 94160 | AX109: 3100 | AY109: 3800 | AZ109: 93800 | BA109: 3100 | BB109: 3800 | BC109: 93230 | BD109: 3100 | BE109: 3900 | BF109: 92340 | BG109: 3200 | BH109: 4000 | BI109: 92660 | BJ109: 3300 | BK109: 4000 | BL109: 93040 | BM109: 3300 | BN109: 4200 | BO109: 83010 | BP109: 9700 | BQ109: 10200 | BR109: 78320 | BS109: 9800 | BT109: 10300 | BU109: 81710 | BV109: 10500 | BW109: 11000 | BX109: 78100 | BY109: 10500 | BZ109: 11100 | CA109: 81490 | CB109: 11500 | CC109: 12100 | CD109: 78220 | CE109: 11900 | CF109: 12500 | CG109: 76310 | CH109: 12200 | CI109: 12800 | CJ109: 72690 | CK109: 12700 | CL109: 13300 | CM109: 75860
AN110: 98 | AO110: Post 1999 | AP110: 51 to 100 | AQ110: Post 199951 to 100 | AR110: 2900 | AS110: 3800 | AT110: 77210 | AU110: 3000 | AV110: 3800 | AW110: 77480 | AX110: 3000 | AY110: 3900 | AZ110: 67170 | BA110: 3000 | BB110: 3900 | BC110: 66550 | BD110: 2900 | BE110: 3800 | BF110: 65520 | BG110: 3000 | BH110: 3900 | BI110: 61930 | BJ110: 3000 | BK110: 3900 | BL110: 54890 | BM110: 3000 | BN110: 3900 | BO110: 42820 | BP110: 9100 | BQ110: 9600 | BR110: 41390 | BS110: 9200 | BT110: 9700 | BU110: 46930 | BV110: 9600 | BW110: 10200 | BX110: 33270 | BY110: 9600 | BZ110: 10200 | CA110: 35370 | CB110: 10500 | CC110: 11000 | CD110: 39600 | CE110: 11500 | CF110: 11900 | CG110: 34170 | CH110: 12100 | CI110: 12300 | CJ110: 23610 | CK110: 12900 | CL110: 13200 | CM110: 31320
AN111: 99 | AO111: Pre 1919 | AP111: 101 to 150 | AQ111: Pre 1919101 to 150 | AR111: 3700 | AS111: 4500 | AT111: 213370 | AU111: 3800 | AV111: 4500 | AW111: 216010 | AX111: 3900 | AY111: 4600 | AZ111: 197740 | BA111: 3900 | BB111: 4700 | BC111: 195160 | BD111: 3900 | BE111: 4700 | BF111: 194020 | BG111: 4100 | BH111: 4900 | BI111: 194220 | BJ111: 4100 | BK111: 4900 | BL111: 195670 | BM111: 4200 | BN111: 5100 | BO111: 172360 | BP111: 16400 | BQ111: 17100 | BR111: 172050 | BS111: 16300 | BT111: 17100 | BU111: 180070 | BV111: 17800 | BW111: 18400 | BX111: 161650 | BY111: 17900 | BZ111: 18600 | CA111: 173980 | CB111: 19700 | CC111: 20300 | CD111: 155540 | CE111: 20300 | CF111: 20900 | CG111: 153440 | CH111: 21100 | CI111: 21500 | CJ111: 150720 | CK111: 22100 | CL111: 22500 | CM111: 147220
AN112: 100 | AO112: 1919-44 | AP112: 101 to 150 | AQ112: 1919-44101 to 150 | AR112: 3900 | AS112: 4500 | AT112: 191370 | AU112: 4000 | AV112: 4600 | AW112: 192880 | AX112: 4100 | AY112: 4700 | AZ112: 194330 | BA112: 4100 | BB112: 4700 | BC112: 192530 | BD112: 4100 | BE112: 4700 | BF112: 191430 | BG112: 4300 | BH112: 4900 | BI112: 191950 | BJ112: 4300 | BK112: 5000 | BL112: 192840 | BM112: 4400 | BN112: 5100 | BO112: 171880 | BP112: 17800 | BQ112: 18500 | BR112: 171390 | BS112: 17600 | BT112: 18300 | BU112: 179500 | BV112: 19100 | BW112: 19800 | BX112: 176310 | BY112: 19300 | BZ112: 19900 | CA112: 186880 | CB112: 21300 | CC112: 21800 | CD112: 170730 | CE112: 21900 | CF112: 22400 | CG112: 168140 | CH112: 22800 | CI112: 23200 | CJ112: 165660 | CK112: 23800 | CL112: 24200 | CM112: 162140
AN113: 101 | AO113: 1945-64 | AP113: 101 to 150 | AQ113: 1945-64101 to 150 | AR113: 3800 | AS113: 4400 | AT113: 183130 | AU113: 3900 | AV113: 4500 | AW113: 184410 | AX113: 3900 | AY113: 4500 | AZ113: 183420 | BA113: 3900 | BB113: 4500 | BC113: 181880 | BD113: 3900 | BE113: 4600 | BF113: 180840 | BG113: 4100 | BH113: 4800 | BI113: 181180 | BJ113: 4200 | BK113: 4900 | BL113: 182170 | BM113: 4200 | BN113: 5000 | BO113: 161610 | BP113: 15900 | BQ113: 16600 | BR113: 159550 | BS113: 15700 | BT113: 16600 | BU113: 166650 | BV113: 17100 | BW113: 17800 | BX113: 161690 | BY113: 17200 | BZ113: 18000 | CA113: 170730 | CB113: 19100 | CC113: 19800 | CD113: 156550 | CE113: 19800 | CF113: 20500 | CG113: 154550 | CH113: 20500 | CI113: 21200 | CJ113: 152500 | CK113: 21500 | CL113: 22200 | CM113: 148710
AN114: 102 | AO114: 1965-82 | AP114: 101 to 150 | AQ114: 1965-82101 to 150 | AR114: 3800 | AS114: 4400 | AT114: 196250 | AU114: 3900 | AV114: 4500 | AW114: 197400 | AX114: 4000 | AY114: 4500 | AZ114: 196660 | BA114: 4000 | BB114: 4600 | BC114: 195320 | BD114: 4000 | BE114: 4600 | BF114: 194020 | BG114: 4200 | BH114: 4900 | BI114: 194480 | BJ114: 4300 | BK114: 4900 | BL114: 195330 | BM114: 4400 | BN114: 5100 | BO114: 174730 | BP114: 15500 | BQ114: 16200 | BR114: 167470 | BS114: 15400 | BT114: 16100 | BU114: 175020 | BV114: 16500 | BW114: 17200 | BX114: 170660 | BY114: 16700 | BZ114: 17400 | CA114: 180310 | CB114: 18500 | CC114: 19200 | CD114: 165200 | CE114: 19200 | CF114: 19900 | CG114: 163320 | CH114: 20000 | CI114: 20600 | CJ114: 160560 | CK114: 21000 | CL114: 21600 | CM114: 156490
AN115: 103 | AO115: 1983-92 | AP115: 101 to 150 | AQ115: 1983-92101 to 150 | AR115: 4000 | AS115: 4600 | AT115: 63760 | AU115: 4100 | AV115: 4700 | AW115: 63990 | AX115: 4200 | AY115: 4800 | AZ115: 64010 | BA115: 4200 | BB115: 4800 | BC115: 63700 | BD115: 4200 | BE115: 4800 | BF115: 63160 | BG115: 4500 | BH115: 5100 | BI115: 63360 | BJ115: 4600 | BK115: 5200 | BL115: 63700 | BM115: 4600 | BN115: 5300 | BO115: 56690 | BP115: 15900 | BQ115: 16400 | BR115: 55660 | BS115: 15800 | BT115: 16300 | BU115: 57860 | BV115: 16900 | BW115: 17500 | BX115: 57540 | BY115: 17100 | BZ115: 17700 | CA115: 59560 | CB115: 18900 | CC115: 19400 | CD115: 56040 | CE115: 19400 | CF115: 20100 | CG115: 55680 | CH115: 20100 | CI115: 20700 | CJ115: 55040 | CK115: 20900 | CL115: 21500 | CM115: 53980
AN116: 104 | AO116: 1993-99 | AP116: 101 to 150 | AQ116: 1993-99101 to 150 | AR116: 4000 | AS116: 4600 | AT116: 53200 | AU116: 4200 | AV116: 4700 | AW116: 53360 | AX116: 4300 | AY116: 4800 | AZ116: 53370 | BA116: 4200 | BB116: 4800 | BC116: 53040 | BD116: 4300 | BE116: 4800 | BF116: 52580 | BG116: 4500 | BH116: 5000 | BI116: 52770 | BJ116: 4600 | BK116: 5100 | BL116: 53010 | BM116: 4600 | BN116: 5200 | BO116: 47170 | BP116: 15400 | BQ116: 15900 | BR116: 46060 | BS116: 15300 | BT116: 15800 | BU116: 48040 | BV116: 16300 | BW116: 16700 | BX116: 46000 | BY116: 16300 | BZ116: 16800 | CA116: 47720 | CB116: 17800 | CC116: 18300 | CD116: 46660 | CE116: 18300 | CF116: 18800 | CG116: 45090 | CH116: 18800 | CI116: 19200 | CJ116: 41470 | CK116: 19200 | CL116: 19800 | CM116: 45650
AN117: 105 | AO117: Post 1999 | AP117: 101 to 150 | AQ117: Post 1999101 to 150 | AR117: 3700 | AS117: 4200 | AT117: 58930 | AU117: 3800 | AV117: 4300 | AW117: 59050 | AX117: 3800 | AY117: 4300 | AZ117: 51550 | BA117: 3800 | BB117: 4300 | BC117: 51090 | BD117: 3800 | BE117: 4300 | BF117: 50230 | BG117: 3900 | BH117: 4400 | BI117: 47780 | BJ117: 4000 | BK117: 4500 | BL117: 42670 | BM117: 3900 | BN117: 4500 | BO117: 33670 | BP117: 13700 | BQ117: 14100 | BR117: 40780 | BS117: 13700 | BT117: 14300 | BU117: 45960 | BV117: 14400 | BW117: 14900 | BX117: 30950 | BY117: 14300 | BZ117: 14800 | CA117: 32700 | CB117: 15400 | CC117: 15900 | CD117: 37850 | CE117: 15900 | CF117: 16800 | CG117: 32410 | CH117: 16800 | CI117: 17500 | CJ117: 21250 | CK117: 18600 | CL117: 18200 | CM117: 30320
AN118: 106 | AO118: Pre 1919 | AP118: 151 to 200 | AQ118: Pre 1919151 to 200 | AR118: 5000 | AS118: 6000 | AT118: 62040 | AU118: 5100 | AV118: 6100 | AW118: 62910 | AX118: 5200 | AY118: 6100 | AZ118: 57950 | BA118: 5200 | BB118: 6200 | BC118: 57250 | BD118: 5200 | BE118: 6200 | BF118: 56910 | BG118: 5500 | BH118: 6400 | BI118: 56880 | BJ118: 5600 | BK118: 6500 | BL118: 57270 | BM118: 5700 | BN118: 6700 | BO118: 50520 | BP118: 23600 | BQ118: 24000 | BR118: 42570 | BS118: 23300 | BT118: 23800 | BU118: 44720 | BV118: 25400 | BW118: 25600 | BX118: 41300 | BY118: 25300 | BZ118: 25500 | CA118: 44290 | CB118: 27600 | CC118: 27500 | CD118: 38730 | CE118: 28200 | CF118: 28000 | CG118: 37740 | CH118: 29100 | CI118: 28700 | CJ118: 36730 | CK118: 30200 | CL118: 29600 | CM118: 35350
AN119: 107 | AO119: 1919-44 | AP119: 151 to 200 | AQ119: 1919-44151 to 200 | AR119: 5000 | AS119: 5800 | AT119: 29630 | AU119: 5200 | AV119: 6000 | AW119: 29900 | AX119: 5300 | AY119: 6000 | AZ119: 30220 | BA119: 5300 | BB119: 6000 | BC119: 29960 | BD119: 5300 | BE119: 6100 | BF119: 29810 | BG119: 5600 | BH119: 6300 | BI119: 29820 | BJ119: 5600 | BK119: 6400 | BL119: 30000 | BM119: 5800 | BN119: 6600 | BO119: 27260 | BP119: 25800 | BQ119: 26300 | BR119: 24940 | BS119: 25500 | BT119: 26000 | BU119: 26140 | BV119: 27200 | BW119: 27600 | BX119: 25530 | BY119: 27400 | BZ119: 27600 | CA119: 27020 | CB119: 29800 | CC119: 29700 | CD119: 23830 | CE119: 30300 | CF119: 30200 | CG119: 23280 | CH119: 31300 | CI119: 31000 | CJ119: 22650 | CK119: 32300 | CL119: 32000 | CM119: 21740
AN120: 108 | AO120: 1945-64 | AP120: 151 to 200 | AQ120: 1945-64151 to 200 | AR120: 4900 | AS120: 5800 | AT120: 20240 | AU120: 5100 | AV120: 5900 | AW120: 20420 | AX120: 5100 | AY120: 5900 | AZ120: 20380 | BA120: 5100 | BB120: 5900 | BC120: 20200 | BD120: 5100 | BE120: 6000 | BF120: 20040 | BG120: 5400 | BH120: 6300 | BI120: 20080 | BJ120: 5500 | BK120: 6300 | BL120: 20240 | BM120: 5600 | BN120: 6500 | BO120: 18080 | BP120: 23900 | BQ120: 24600 | BR120: 16280 | BS120: 23500 | BT120: 24400 | BU120: 17050 | BV120: 25200 | BW120: 25800 | BX120: 16540 | BY120: 25300 | BZ120: 26000 | CA120: 17450 | CB120: 27700 | CC120: 28100 | CD120: 15480 | CE120: 28300 | CF120: 28600 | CG120: 15050 | CH120: 29200 | CI120: 29400 | CJ120: 14750 | CK120: 30400 | CL120: 30500 | CM120: 14260
AN121: 109 | AO121: 1965-82 | AP121: 151 to 200 | AQ121: 1965-82151 to 200 | AR121: 4600 | AS121: 5300 | AT121: 32450 | AU121: 4700 | AV121: 5500 | AW121: 32690 | AX121: 4800 | AY121: 5600 | AZ121: 31940 | BA121: 4800 | BB121: 5600 | BC121: 31690 | BD121: 4900 | BE121: 5600 | BF121: 31500 | BG121: 5100 | BH121: 5900 | BI121: 31580 | BJ121: 5300 | BK121: 6000 | BL121: 31780 | BM121: 5300 | BN121: 6100 | BO121: 28570 | BP121: 22100 | BQ121: 23000 | BR121: 25070 | BS121: 21800 | BT121: 22700 | BU121: 26190 | BV121: 23500 | BW121: 24300 | BX121: 25210 | BY121: 23700 | BZ121: 24500 | CA121: 26520 | CB121: 26000 | CC121: 26700 | CD121: 24060 | CE121: 26800 | CF121: 27400 | CG121: 23530 | CH121: 27700 | CI121: 28200 | CJ121: 23020 | CK121: 28900 | CL121: 29200 | CM121: 22280
AN122: 110 | AO122: 1983-92 | AP122: 151 to 200 | AQ122: 1983-92151 to 200 | AR122: 4600 | AS122: 5400 | AT122: 17170 | AU122: 4800 | AV122: 5600 | AW122: 17280 | AX122: 4900 | AY122: 5700 | AZ122: 16950 | BA122: 4900 | BB122: 5700 | BC122: 16820 | BD122: 4900 | BE122: 5700 | BF122: 16690 | BG122: 5300 | BH122: 6000 | BI122: 16770 | BJ122: 5400 | BK122: 6100 | BL122: 16870 | BM122: 5400 | BN122: 6200 | BO122: 15150 | BP122: 20600 | BQ122: 21300 | BR122: 13460 | BS122: 20300 | BT122: 21100 | BU122: 14090 | BV122: 21700 | BW122: 22400 | BX122: 13810 | BY122: 21800 | BZ122: 22700 | CA122: 14310 | CB122: 24000 | CC122: 24800 | CD122: 13320 | CE122: 24600 | CF122: 25400 | CG122: 13180 | CH122: 25500 | CI122: 26200 | CJ122: 13030 | CK122: 26500 | CL122: 27100 | CM122: 12690
AN123: 111 | AO123: 1993-99 | AP123: 151 to 200 | AQ123: 1993-99151 to 200 | AR123: 4800 | AS123: 5500 | AT123: 15240 | AU123: 5000 | AV123: 5700 | AW123: 15290 | AX123: 5100 | AY123: 5800 | AZ123: 14860 | BA123: 5100 | BB123: 5800 | BC123: 14800 | BD123: 5100 | BE123: 5800 | BF123: 14660 | BG123: 5500 | BH123: 6100 | BI123: 14670 | BJ123: 5600 | BK123: 6200 | BL123: 14790 | BM123: 5600 | BN123: 6300 | BO123: 13230 | BP123: 20100 | BQ123: 20800 | BR123: 11820 | BS123: 19800 | BT123: 20500 | BU123: 12310 | BV123: 21000 | BW123: 21700 | BX123: 11780 | BY123: 20900 | BZ123: 21700 | CA123: 12270 | CB123: 22800 | CC123: 23500 | CD123: 11740 | CE123: 23100 | CF123: 23900 | CG123: 11360 | CH123: 23900 | CI123: 24500 | CJ123: 10390 | CK123: 23800 | CL123: 24800 | CM123: 11480
AN124: 112 | AO124: Post 1999 | AP124: 151 to 200 | AQ124: Post 1999151 to 200 | AR124: 4600 | AS124: 5200 | AT124: 19710 | AU124: 4800 | AV124: 5300 | AW124: 19760 | AX124: 4800 | AY124: 5400 | AZ124: 17310 | BA124: 4800 | BB124: 5400 | BC124: 17130 | BD124: 4800 | BE124: 5300 | BF124: 16850 | BG124: 4900 | BH124: 5500 | BI124: 16200 | BJ124: 5000 | BK124: 5600 | BL124: 14900 | BM124: 5000 | BN124: 5500 | BO124: 11980 | BP124: 18300 | BQ124: 19000 | BR124: 13230 | BS124: 18400 | BT124: 19000 | BU124: 14710 | BV124: 19300 | BW124: 20000 | BX124: 10360 | BY124: 19100 | BZ124: 19800 | CA124: 10890 | CB124: 20500 | CC124: 21100 | CD124: 12300 | CE124: 21200 | CF124: 21800 | CG124: 10300 | CH124: 22000 | CI124: 22600 | CJ124: 7130 | CK124: 22500 | CL124: 22800 | CM124: 10270
AN125: 113 | AO125: Pre 1919 | AP125: Over 200 | AQ125: Pre 1919Over 200 | AR125: 6800 | AS125: 8200 | AT125: 45550 | AU125: 7000 | AV125: 8300 | AW125: 46170 | AX125: n/a | AY125: n/a | AZ125: n/a | BA125: n/a | BB125: n/a | BC125: n/a | BD125: n/a | BE125: n/a | BF125: n/a | BG125: n/a | BH125: n/a | BI125: n/a | BJ125: n/a | BK125: n/a | BL125: n/a | BM125: n/a | BN125: n/a | BO125: n/a | BP125: 30600 | BQ125: 29700 | BR125: 21090 | BS125: 30100 | BT125: 29500 | BU125: 22190 | BV125: n/a | BW125: n/a | BX125: n/a | BY125: n/a | BZ125: n/a | CA125: n/a | CB125: n/a | CC125: n/a | CD125: n/a | CE125: n/a | CF125: n/a | CG125: n/a | CH125: n/a | CI125: n/a | CJ125: n/a | CK125: n/a | CL125: n/a | CM125: n/a
AN126: 114 | AO126: 1919-44 | AP126: Over 200 | AQ126: 1919-44Over 200 | AR126: 6700 | AS126: 7800 | AT126: 11610 | AU126: 6800 | AV126: 8000 | AW126: 11760 | AX126: n/a | AY126: n/a | AZ126: n/a | BA126: n/a | BB126: n/a | BC126: n/a | BD126: n/a | BE126: n/a | BF126: n/a | BG126: n/a | BH126: n/a | BI126: n/a | BJ126: n/a | BK126: n/a | BL126: n/a | BM126: n/a | BN126: n/a | BO126: n/a | BP126: 32600 | BQ126: 31900 | BR126: 7400 | BS126: 32000 | BT126: 31500 | BU126: 7770 | BV126: n/a | BW126: n/a | BX126: n/a | BY126: n/a | BZ126: n/a | CA126: n/a | CB126: n/a | CC126: n/a | CD126: n/a | CE126: n/a | CF126: n/a | CG126: n/a | CH126: n/a | CI126: n/a | CJ126: n/a | CK126: n/a | CL126: n/a | CM126: n/a
AN127: 115 | AO127: 1945-64 | AP127: Over 200 | AQ127: 1945-64Over 200 | AR127: 6600 | AS127: 7700 | AT127: 5960 | AU127: 6700 | AV127: 7900 | AW127: 6020 | AX127: n/a | AY127: n/a | AZ127: n/a | BA127: n/a | BB127: n/a | BC127: n/a | BD127: n/a | BE127: n/a | BF127: n/a | BG127: n/a | BH127: n/a | BI127: n/a | BJ127: n/a | BK127: n/a | BL127: n/a | BM127: n/a | BN127: n/a | BO127: n/a | BP127: 30300 | BQ127: 30300 | BR127: 3740 | BS127: 29700 | BT127: 29800 | BU127: 3920 | BV127: n/a | BW127: n/a | BX127: n/a | BY127: n/a | BZ127: n/a | CA127: n/a | CB127: n/a | CC127: n/a | CD127: n/a | CE127: n/a | CF127: n/a | CG127: n/a | CH127: n/a | CI127: n/a | CJ127: n/a | CK127: n/a | CL127: n/a | CM127: n/a
AN128: 116 | AO128: 1965-82 | AP128: Over 200 | AQ128: 1965-82Over 200 | AR128: 6000 | AS128: 7200 | AT128: 9060 | AU128: 6200 | AV128: 7300 | AW128: 9140 | AX128: n/a | AY128: n/a | AZ128: n/a | BA128: n/a | BB128: n/a | BC128: n/a | BD128: n/a | BE128: n/a | BF128: n/a | BG128: n/a | BH128: n/a | BI128: n/a | BJ128: n/a | BK128: n/a | BL128: n/a | BM128: n/a | BN128: n/a | BO128: n/a | BP128: 28700 | BQ128: 28900 | BR128: 5560 | BS128: 28300 | BT128: 28600 | BU128: 5770 | BV128: n/a | BW128: n/a | BX128: n/a | BY128: n/a | BZ128: n/a | CA128: n/a | CB128: n/a | CC128: n/a | CD128: n/a | CE128: n/a | CF128: n/a | CG128: n/a | CH128: n/a | CI128: n/a | CJ128: n/a | CK128: n/a | CL128: n/a | CM128: n/a
AN129: 117 | AO129: 1983-92 | AP129: Over 200 | AQ129: 1983-92Over 200 | AR129: 5900 | AS129: 7000 | AT129: 6470 | AU129: 6100 | AV129: 7200 | AW129: 6510 | AX129: n/a | AY129: n/a | AZ129: n/a | BA129: n/a | BB129: n/a | BC129: n/a | BD129: n/a | BE129: n/a | BF129: n/a | BG129: n/a | BH129: n/a | BI129: n/a | BJ129: n/a | BK129: n/a | BL129: n/a | BM129: n/a | BN129: n/a | BO129: n/a | BP129: 26800 | BQ129: 27300 | BR129: 4190 | BS129: 26300 | BT129: 27000 | BU129: 4350 | BV129: n/a | BW129: n/a | BX129: n/a | BY129: n/a | BZ129: n/a | CA129: n/a | CB129: n/a | CC129: n/a | CD129: n/a | CE129: n/a | CF129: n/a | CG129: n/a | CH129: n/a | CI129: n/a | CJ129: n/a | CK129: n/a | CL129: n/a | CM129: n/a
AN130: 118 | AO130: 1993-99 | AP130: Over 200 | AQ130: 1993-99Over 200 | AR130: 6000 | AS130: 7100 | AT130: 6860 | AU130: 6200 | AV130: 7200 | AW130: 6880 | AX130: n/a | AY130: n/a | AZ130: n/a | BA130: n/a | BB130: n/a | BC130: n/a | BD130: n/a | BE130: n/a | BF130: n/a | BG130: n/a | BH130: n/a | BI130: n/a | BJ130: n/a | BK130: n/a | BL130: n/a | BM130: n/a | BN130: n/a | BO130: n/a | BP130: 26600 | BQ130: 27200 | BR130: 4430 | BS130: 26000 | BT130: 26800 | BU130: 4580 | BV130: n/a | BW130: n/a | BX130: n/a | BY130: n/a | BZ130: n/a | CA130: n/a | CB130: n/a | CC130: n/a | CD130: n/a | CE130: n/a | CF130: n/a | CG130: n/a | CH130: n/a | CI130: n/a | CJ130: n/a | CK130: n/a | CL130: n/a | CM130: n/a
AN131: 119 | AO131: Post 1999 | AP131: Over 200 | AQ131: Post 1999Over 200 | AR131: 6100 | AS131: 7200 | AT131: 12040 | AU131: 6300 | AV131: 7400 | AW131: 12140 | AX131: n/a | AY131: n/a | AZ131: n/a | BA131: n/a | BB131: n/a | BC131: n/a | BD131: n/a | BE131: n/a | BF131: n/a | BG131: n/a | BH131: n/a | BI131: n/a | BJ131: n/a | BK131: n/a | BL131: n/a | BM131: n/a | BN131: n/a | BO131: n/a | BP131: 24700 | BQ131: 25500 | BR131: 6710 | BS131: 24400 | BT131: 25400 | BU131: 7340 | BV131: n/a | BW131: n/a | BX131: n/a | BY131: n/a | BZ131: n/a | CA131: n/a | CB131: n/a | CC131: n/a | CD131: n/a | CE131: n/a | CF131: n/a | CG131: n/a | CH131: n/a | CI131: n/a | CJ131: n/a | CK131: n/a | CL131: n/a | CM131: n/a
AN132: 120 | AO132: Pre 1919 | AP132: Owner-occupied | AQ132: Pre 1919Owner-occupied | AR132: 3600 | AS132: 4600 | AT132: 460040 | AU132: 3700 | AV132: 4600 | AW132: 465750 | AX132: 3700 | AY132: 4600 | AZ132: 378450 | BA132: 3700 | BB132: 4600 | BC132: 373880 | BD132: 3700 | BE132: 4700 | BF132: 372180 | BG132: 3900 | BH132: 4800 | BI132: 371890 | BJ132: 3900 | BK132: 4900 | BL132: 374380 | BM132: 4000 | BN132: 5100 | BO132: 325590 | BP132: 14900 | BQ132: 16400 | BR132: 353150 | BS132: 14900 | BT132: 16300 | BU132: 369570 | BV132: 15700 | BW132: 17200 | BX132: 300890 | BY132: 15800 | BZ132: 17300 | CA132: 325280 | CB132: 17400 | CC132: 18800 | CD132: 288390 | CE132: 18000 | CF132: 19300 | CG132: 283230 | CH132: 18600 | CI132: 19800 | CJ132: 277200 | CK132: 19400 | CL132: 20600 | CM132: 269150
AN133: 121 | AO133: 1919-44 | AP133: Owner-occupied | AQ133: 1919-44Owner-occupied | AR133: 3700 | AS133: 4300 | AT133: 437910 | AU133: 3800 | AV133: 4400 | AW133: 441740 | AX133: 3900 | AY133: 4500 | AZ133: 404190 | BA133: 3900 | BB133: 4500 | BC133: 400740 | BD133: 3900 | BE133: 4600 | BF133: 398820 | BG133: 4100 | BH133: 4800 | BI133: 399260 | BJ133: 4100 | BK133: 4800 | BL133: 400860 | BM133: 4200 | BN133: 5000 | BO133: 355690 | BP133: 16100 | BQ133: 17100 | BR133: 387470 | BS133: 16000 | BT133: 17000 | BU133: 405530 | BV133: 17200 | BW133: 18200 | BX133: 362490 | BY133: 17400 | BZ133: 18400 | CA133: 384400 | CB133: 19200 | CC133: 20100 | CD133: 350410 | CE133: 19700 | CF133: 20600 | CG133: 344940 | CH133: 20500 | CI133: 21300 | CJ133: 339560 | CK133: 21400 | CL133: 22200 | CM133: 331400
AN134: 122 | AO134: 1945-64 | AP134: Owner-occupied | AQ134: =CONCATENATE(AO134,AP134) -> 1945-64Owner-occupied | AR134: 3400 | AS134: 4100 | AT134: 419720 | AU134: 3500 | AV134: 4200 | AW134: 422870 | AX134: 3600 | AY134: 4300 | AZ134: 392110 | BA134: 3600 | BB134: 4400 | BC134: 389300 | BD134: 3700 | BE134: 4400 | BF134: 387380 | BG134: 3800 | BH134: 4600 | BI134: 387700 | BJ134: 3900 | BK134: 4700 | BL134: 389350 | BM134: 4000 | BN134: 4800 | BO134: 346960 | BP134: 14400 | BQ134: 15300 | BR134: 361870 | BS134: 14300 | BT134: 15200 | BU134: 378310 | BV134: 15500 | BW134: 16500 | BX134: 344240 | BY134: 15700 | BZ134: 16700 | CA134: 363400 | CB134: 17400 | CC134: 18300 | CD134: 333470 | CE134: 18000 | CF134: 18900 | CG134: 328910 | CH134: 18700 | CI134: 19500 | CJ134: 324140 | CK134: 19600 | CL134: 20400 | CM134: 316230
AN135: 123 | AO135: 1965-82 | AP135: Owner-occupied | AQ135: 1965-82Owner-occupied | AR135: 3400 | AS135: 4100 | AT135: 523650 | AU135: 3500 | AV135: 4200 | AW135: 526700 | AX135: 3700 | AY135: 4400 | AZ135: 466030 | BA135: 3700 | BB135: 4400 | BC135: 463210 | BD135: 3700 | BE135: 4400 | BF135: 460670 | BG135: 3900 | BH135: 4700 | BI135: 461220 | BJ135: 4000 | BK135: 4700 | BL135: 463410 | BM135: 4000 | BN135: 4800 | BO135: 411330 | BP135: 13500 | BQ135: 14400 | BR135: 432580 | BS135: 13400 | BT135: 14300 | BU135: 452140 | BV135: 14600 | BW135: 15600 | BX135: 396910 | BY135: 14800 | BZ135: 15800 | CA135: 419960 | CB135: 16400 | CC135: 17400 | CD135: 384650 | CE135: 17000 | CF135: 18000 | CG135: 380010 | CH135: 17700 | CI135: 18600 | CJ135: 373980 | CK135: 18600 | CL135: 19400 | CM135: 364400
AN136: 124 | AO136: 1983-92 | AP136: Owner-occupied | AQ136: 1983-92Owner-occupied | AR136: 3500 | AS136: 4300 | AT136: 198650 | AU136: 3700 | AV136: 4400 | AW136: 199400 | AX136: 3800 | AY136: 4500 | AZ136: 182030 | BA136: 3800 | BB136: 4500 | BC136: 181030 | BD136: 3800 | BE136: 4600 | BF136: 179870 | BG136: 4000 | BH136: 4800 | BI136: 180260 | BJ136: 4100 | BK136: 4900 | BL136: 181080 | BM136: 4200 | BN136: 5000 | BO136: 162500 | BP136: 12900 | BQ136: 13800 | BR136: 155310 | BS136: 12800 | BT136: 13800 | BU136: 161430 | BV136: 13800 | BW136: 14800 | BX136: 149740 | BY136: 14000 | BZ136: 15000 | CA136: 155730 | CB136: 15500 | CC136: 16400 | CD136: 145620 | CE136: 16000 | CF136: 16900 | CG136: 144690 | CH136: 16500 | CI136: 17400 | CJ136: 143440 | CK136: 17200 | CL136: 18000 | CM136: 140240
AN137: 125 | AO137: 1993-99 | AP137: Owner-occupied | AQ137: 1993-99Owner-occupied | AR137: 3700 | AS137: 4300 | AT137: 141490 | AU137: 3800 | AV137: 4500 | AW137: 141930 | AX137: 3800 | AY137: 4500 | AZ137: 134300 | BA137: 3800 | BB137: 4500 | BC137: 133560 | BD137: 3900 | BE137: 4600 | BF137: 132390 | BG137: 4000 | BH137: 4800 | BI137: 132850 | BJ137: 4100 | BK137: 4800 | BL137: 133500 | BM137: 4100 | BN137: 4900 | BO137: 118850 | BP137: 13200 | BQ137: 14200 | BR137: 114180 | BS137: 13100 | BT137: 14100 | BU137: 119160 | BV137: 13900 | BW137: 14900 | BX137: 110060 | BY137: 14000 | BZ137: 15000 | CA137: 114300 | CB137: 15200 | CC137: 16300 | CD137: 111090 | CE137: 15700 | CF137: 16700 | CG137: 107660 | CH137: 16000 | CI137: 17000 | CJ137: 100240 | CK137: 16700 | CL137: 17600 | CM137: 108350
AN138: 126 | AO138: Post 1999 | AP138: Owner-occupied | AQ138: Post 1999Owner-occupied | AR138: 3600 | AS138: 4400 | AT138: 139070 | AU138: 3800 | AV138: 4400 | AW138: 139490 | AX138: 3800 | AY138: 4500 | AZ138: 114770 | BA138: 3700 | BB138: 4500 | BC138: 113740 | BD138: 3700 | BE138: 4400 | BF138: 112200 | BG138: 3800 | BH138: 4500 | BI138: 108540 | BJ138: 3800 | BK138: 4600 | BL138: 98700 | BM138: 3800 | BN138: 4600 | BO138: 77740 | BP138: 12900 | BQ138: 14000 | BR138: 83440 | BS138: 13000 | BT138: 14100 | BU138: 94000 | BV138: 13400 | BW138: 14700 | BX138: 64040 | BY138: 13400 | BZ138: 14600 | CA138: 67780 | CB138: 14300 | CC138: 15600 | CD138: 76980 | CE138: 15000 | CF138: 16300 | CG138: 65700 | CH138: 15600 | CI138: 17100 | CJ138: 44210 | CK138: 16200 | CL138: 17700 | CM138: 63730
AN139: 127 | AO139: Pre 1919 | AP139: Privately rented | AQ139: Pre 1919Privately rented | AR139: 3000 | AS139: 3900 | AT139: 163550 | AU139: 3000 | AV139: 3900 | AW139: 166230 | AX139: 3000 | AY139: 3800 | AZ139: 69700 | BA139: 2900 | BB139: 3800 | BC139: 68720 | BD139: 3000 | BE139: 3900 | BF139: 68250 | BG139: 3100 | BH139: 4000 | BI139: 67640 | BJ139: 3200 | BK139: 4100 | BL139: 68060 | BM139: 3300 | BN139: 4300 | BO139: 58580 | BP139: 11600 | BQ139: 12900 | BR139: 130480 | BS139: 11600 | BT139: 13100 | BU139: 136550 | BV139: 12200 | BW139: 13400 | BX139: 55380 | BY139: 12100 | BZ139: 13400 | CA139: 61740 | CB139: 13400 | CC139: 14600 | CD139: 53160 | CE139: 14000 | CF139: 15200 | CG139: 51990 | CH139: 14600 | CI139: 15700 | CJ139: 50730 | CK139: 15700 | CL139: 16800 | CM139: 49360
AN140: 128 | AO140: 1919-44 | AP140: Privately rented | AQ140: 1919-44Privately rented | AR140: 3200 | AS140: 3800 | AT140: 57540 | AU140: 3200 | AV140: 3900 | AW140: 58170 | AX140: 3200 | AY140: 3900 | AZ140: 22860 | BA140: 3200 | BB140: 3900 | BC140: 22600 | BD140: 3200 | BE140: 3900 | BF140: 22410 | BG140: 3300 | BH140: 4100 | BI140: 22260 | BJ140: 3400 | BK140: 4100 | BL140: 22400 | BM140: 3500 | BN140: 4300 | BO140: 20160 | BP140: 12300 | BQ140: 13400 | BR140: 48720 | BS140: 12400 | BT140: 13500 | BU140: 50720 | BV140: 13400 | BW140: 14500 | BX140: 19930 | BY140: 13600 | BZ140: 14500 | CA140: 21640 | CB140: 14900 | CC140: 16000 | CD140: 19150 | CE140: 15700 | CF140: 16600 | CG140: 18850 | CH140: 16400 | CI140: 17200 | CJ140: 18460 | CK140: 17400 | CL140: 18200 | CM140: 17990
AN141: 129 | AO141: 1945-64 | AP141: Privately rented | AQ141: 1945-64Privately rented | AR141: 3000 | AS141: 3800 | AT141: 64600 | AU141: 3100 | AV141: 3800 | AW141: 65390 | AX141: 3200 | AY141: 3900 | AZ141: 24640 | BA141: 3200 | BB141: 4000 | BC141: 24290 | BD141: 3200 | BE141: 4000 | BF141: 24160 | BG141: 3300 | BH141: 4100 | BI141: 23960 | BJ141: 3300 | BK141: 4100 | BL141: 24160 | BM141: 3400 | BN141: 4300 | BO141: 21820 | BP141: 10700 | BQ141: 11400 | BR141: 52220 | BS141: 10700 | BT141: 11500 | BU141: 54400 | BV141: 12400 | BW141: 13000 | BX141: 20080 | BY141: 12400 | BZ141: 13100 | CA141: 21830 | CB141: 13700 | CC141: 14400 | CD141: 19330 | CE141: 14400 | CF141: 15000 | CG141: 19220 | CH141: 15000 | CI141: 15500 | CJ141: 18770 | CK141: 15900 | CL141: 16600 | CM141: 18240
AN142: 130 | AO142: 1965-82 | AP142: Privately rented | AQ142: 1965-82Privately rented | AR142: 2800 | AS142: 3700 | AT142: 83630 | AU142: 2900 | AV142: 3700 | AW142: 84450 | AX142: 3200 | AY142: 4100 | AZ142: 32670 | BA142: 3200 | BB142: 4100 | BC142: 32310 | BD142: 3200 | BE142: 4200 | BF142: 32140 | BG142: 3300 | BH142: 4300 | BI142: 31950 | BJ142: 3400 | BK142: 4400 | BL142: 32120 | BM142: 3500 | BN142: 4500 | BO142: 28430 | BP142: 9200 | BQ142: 10100 | BR142: 56300 | BS142: 9300 | BT142: 10200 | BU142: 58520 | BV142: 10700 | BW142: 11500 | BX142: 22410 | BY142: 10700 | BZ142: 11600 | CA142: 24460 | CB142: 11800 | CC142: 12700 | CD142: 21740 | CE142: 12400 | CF142: 13300 | CG142: 21370 | CH142: 12900 | CI142: 13800 | CJ142: 21110 | CK142: 13900 | CL142: 14700 | CM142: 20320
AN143: 131 | AO143: 1983-92 | AP143: Privately rented | AQ143: 1983-92Privately rented | AR143: 2900 | AS143: 4000 | AT143: 41040 | AU143: 3000 | AV143: 3900 | AW143: 41320 | AX143: 3300 | AY143: 4200 | AZ143: 18470 | BA143: 3300 | BB143: 4200 | BC143: 18310 | BD143: 3400 | BE143: 4300 | BF143: 18200 | BG143: 3500 | BH143: 4500 | BI143: 18110 | BJ143: 3600 | BK143: 4400 | BL143: 18220 | BM143: 3800 | BN143: 4700 | BO143: 16340 | BP143: 8000 | BQ143: 9000 | BR143: 22380 | BS143: 8000 | BT143: 9100 | BU143: 23320 | BV143: 8800 | BW143: 9800 | BX143: 10360 | BY143: 8800 | BZ143: 9800 | CA143: 11070 | CB143: 9600 | CC143: 10700 | CD143: 9990 | CE143: 10000 | CF143: 11200 | CG143: 9950 | CH143: 10500 | CI143: 11500 | CJ143: 9970 | CK143: 11000 | CL143: 12200 | CM143: 9620
AN144: 132 | AO144: 1993-99 | AP144: Privately rented | AQ144: 1993-99Privately rented | AR144: 3100 | AS144: 4200 | AT144: 25140 | AU144: 3200 | AV144: 4200 | AW144: 25370 | AX144: 3500 | AY144: 4400 | AZ144: 12930 | BA144: 3500 | BB144: 4400 | BC144: 12810 | BD144: 3500 | BE144: 4400 | BF144: 12710 | BG144: 3600 | BH144: 4600 | BI144: 12670 | BJ144: 3700 | BK144: 4600 | BL144: 12710 | BM144: 3700 | BN144: 4700 | BO144: 10970 | BP144: 8600 | BQ144: 9600 | BR144: 15190 | BS144: 8600 | BT144: 9600 | BU144: 15770 | BV144: 9700 | BW144: 10600 | BX144: 8020 | BY144: 9800 | BZ144: 10600 | CA144: 8510 | CB144: 10600 | CC144: 11700 | CD144: 7870 | CE144: 11100 | CF144: 12100 | CG144: 7740 | CH144: 11400 | CI144: 12400 | CJ144: 7490 | CK144: 12000 | CL144: 13000 | CM144: 7560
AN145: 133 | AO145: Post 1999 | AP145: Privately rented | AQ145: Post 1999Privately rented | AR145: 3200 | AS145: 4200 | AT145: 60280 | AU145: 3200 | AV145: 4200 | AW145: 60570 | AX145: 3300 | AY145: 4300 | AZ145: 21530 | BA145: 3300 | BB145: 4300 | BC145: 21260 | BD145: 3200 | BE145: 4300 | BF145: 20980 | BG145: 3200 | BH145: 4300 | BI145: 19790 | BJ145: 3200 | BK145: 4200 | BL145: 16870 | BM145: 3200 | BN145: 4300 | BO145: 11880 | BP145: 8200 | BQ145: 9300 | BR145: 20530 | BS145: 8300 | BT145: 9500 | BU145: 22600 | BV145: 8400 | BW145: 9600 | BX145: 7310 | BY145: 8500 | BZ145: 9700 | CA145: 7920 | CB145: 9500 | CC145: 10700 | CD145: 8280 | CE145: 10900 | CF145: 11500 | CG145: 7620 | CH145: 11100 | CI145: 11700 | CJ145: 5180 | CK145: 12100 | CL145: 12900 | CM145: 6270
AN146: 134 | AO146: Pre 1919 | AP146: Council/Housing Association | AQ146: Pre 1919Council/Housing Association | AR146: 2900 | AS146: 3600 | AT146: 43320 | AU146: 3000 | AV146: 3700 | AW146: 44010 | AX146: 2900 | AY146: 3600 | AZ146: 36650 | BA146: 2900 | BB146: 3600 | BC146: 36100 | BD146: 2900 | BE146: 3700 | BF146: 36000 | BG146: 3000 | BH146: 3900 | BI146: 35890 | BJ146: 3100 | BK146: 3900 | BL146: 35960 | BM146: 3200 | BN146: 4100 | BO146: 30460 | BP146: 12000 | BQ146: 13000 | BR146: 37560 | BS146: 12000 | BT146: 13200 | BU146: 39300 | BV146: 12200 | BW146: 13100 | BX146: 29930 | BY146: 12300 | BZ146: 13300 | CA146: 33150 | CB146: 13700 | CC146: 14700 | CD146: 29010 | CE146: 14300 | CF146: 15300 | CG146: 28750 | CH146: 14800 | CI146: 15700 | CJ146: 28000 | CK146: 15900 | CL146: 16700 | CM146: 27010
AN147: 135 | AO147: 1919-44 | AP147: Council/Housing Association | AQ147: 1919-44Council/Housing Association | AR147: 3100 | AS147: 3600 | AT147: 119400 | AU147: 3200 | AV147: 3700 | AW147: 120430 | AX147: 3300 | AY147: 3700 | AZ147: 103200 | BA147: 3200 | BB147: 3700 | BC147: 102150 | BD147: 3200 | BE147: 3800 | BF147: 101540 | BG147: 3400 | BH147: 3900 | BI147: 101510 | BJ147: 3400 | BK147: 4000 | BL147: 101600 | BM147: 3500 | BN147: 4100 | BO147: 87610 | BP147: 11400 | BQ147: 11800 | BR147: 109300 | BS147: 11500 | BT147: 12100 | BU147: 113140 | BV147: 12400 | BW147: 12900 | BX147: 93990 | BY147: 12600 | BZ147: 13100 | CA147: 100510 | CB147: 13900 | CC147: 14500 | CD147: 90710 | CE147: 14600 | CF147: 15200 | CG147: 89460 | CH147: 15200 | CI147: 15700 | CJ147: 87630 | CK147: 16200 | CL147: 16700 | CM147: 84920
AN148: 136 | AO148: 1945-64 | AP148: Council/Housing Association | AQ148: 1945-64Council/Housing Association | AR148: 2800 | AS148: 3400 | AT148: 204910 | AU148: 2900 | AV148: 3500 | AW148: 207070 | AX148: 3000 | AY148: 3600 | AZ148: 173890 | BA148: 2900 | BB148: 3600 | BC148: 172300 | BD148: 3000 | BE148: 3700 | BF148: 171360 | BG148: 3100 | BH148: 3800 | BI148: 170750 | BJ148: 3100 | BK148: 3900 | BL148: 171290 | BM148: 3200 | BN148: 4000 | BO148: 151580 | BP148: 10600 | BQ148: 11000 | BR148: 179310 | BS148: 10700 | BT148: 11100 | BU148: 185870 | BV148: 11500 | BW148: 11900 | BX148: 149270 | BY148: 11600 | BZ148: 12000 | CA148: 160930 | CB148: 12900 | CC148: 13300 | CD148: 144470 | CE148: 13600 | CF148: 14000 | CG148: 142630 | CH148: 14100 | CI148: 14400 | CJ148: 140070 | CK148: 14900 | CL148: 15300 | CM148: 135810
AN149: 137 | AO149: 1965-82 | AP149: Council/Housing Association | AQ149: 1965-82Council/Housing Association | AR149: 2600 | AS149: 3400 | AT149: 162030 | AU149: 2700 | AV149: 3400 | AW149: 163880 | AX149: 2800 | AY149: 3600 | AZ149: 158630 | BA149: 2700 | BB149: 3600 | BC149: 157380 | BD149: 2800 | BE149: 3700 | BF149: 156530 | BG149: 2900 | BH149: 3800 | BI149: 156160 | BJ149: 3000 | BK149: 3900 | BL149: 156530 | BM149: 3000 | BN149: 4000 | BO149: 135780 | BP149: 8900 | BQ149: 9300 | BR149: 120330 | BS149: 8900 | BT149: 9400 | BU149: 125410 | BV149: 9700 | BW149: 10100 | BX149: 113920 | BY149: 9700 | BZ149: 10300 | CA149: 123790 | CB149: 10800 | CC149: 11300 | CD149: 110230 | CE149: 11400 | CF149: 12000 | CG149: 109140 | CH149: 11800 | CI149: 12400 | CJ149: 106790 | CK149: 12600 | CL149: 13200 | CM149: 102380
AN150: 138 | AO150: 1983-92 | AP150: Council/Housing Association | AQ150: 1983-92Council/Housing Association | AR150: 2600 | AS150: 3500 | AT150: 37690 | AU150: 2700 | AV150: 3500 | AW150: 37910 | AX150: 2700 | AY150: 3600 | AZ150: 36010 | BA150: 2600 | BB150: 3600 | BC150: 35950 | BD150: 2700 | BE150: 3700 | BF150: 35760 | BG150: 2800 | BH150: 3800 | BI150: 35720 | BJ150: 2800 | BK150: 3800 | BL150: 35820 | BM150: 2900 | BN150: 3900 | BO150: 31630 | BP150: 8200 | BQ150: 8800 | BR150: 24810 | BS150: 8300 | BT150: 9000 | BU150: 25780 | BV150: 8600 | BW150: 9200 | BX150: 21220 | BY150: 8800 | BZ150: 9400 | CA150: 22450 | CB150: 9700 | CC150: 10400 | CD150: 20570 | CE150: 10300 | CF150: 11000 | CG150: 20450 | CH150: 10600 | CI150: 11300 | CJ150: 20340 | CK150: 11200 | CL150: 11900 | CM150: 19800
AN151: 139 | AO151: 1993-99 | AP151: Council/Housing Association | AQ151: 1993-99Council/Housing Association | AR151: 3200 | AS151: 3900 | AT151: 28940 | AU151: 3300 | AV151: 4000 | AW151: 29100 | AX151: 3300 | AY151: 4100 | AZ151: 22580 | BA151: 3300 | BB151: 4100 | BC151: 22410 | BD151: 3400 | BE151: 4200 | BF151: 22210 | BG151: 3500 | BH151: 4400 | BI151: 22220 | BJ151: 3600 | BK151: 4400 | BL151: 22300 | BM151: 3600 | BN151: 4500 | BO151: 19700 | BP151: 8800 | BQ151: 9200 | BR151: 21970 | BS151: 9000 | BT151: 9400 | BU151: 22750 | BV151: 9500 | BW151: 10000 | BX151: 15960 | BY151: 9600 | BZ151: 10100 | CA151: 16860 | CB151: 10500 | CC151: 11100 | CD151: 15620 | CE151: 11000 | CF151: 11700 | CG151: 15280 | CH151: 11400 | CI151: 11900 | CJ151: 14970 | CK151: 11900 | CL151: 12500 | CM151: 14760
AN152: 140 | AO152: Post 1999 | AP152: Council/Housing Association | AQ152: Post 1999Council/Housing Association | AR152: 2900 | AS152: 3600 | AT152: 28070 | AU152: 2900 | AV152: 3600 | AW152: 28180 | AX152: 2900 | AY152: 3700 | AZ152: 16290 | BA152: 2900 | BB152: 3700 | BC152: 16110 | BD152: 2900 | BE152: 3700 | BF152: 15960 | BG152: 2900 | BH152: 3700 | BI152: 14770 | BJ152: 3000 | BK152: 3800 | BL152: 12040 | BM152: 3000 | BN152: 3800 | BO152: 8910 | BP152: 8400 | BQ152: 9100 | BR152: 13780 | BS152: 8700 | BT152: 9400 | BU152: 15570 | BV152: 8700 | BW152: 9400 | BX152: 6850 | BY152: 8700 | BZ152: 9500 | CA152: 7400 | CB152: 9400 | CC152: 10300 | CD152: 7950 | CE152: 11100 | CF152: 11400 | CG152: 7360 | CH152: 11300 | CI152: 11800 | CJ152: 5130 | CK152: 12100 | CL152: 12500 | CM152: 5540
AN153: 141 | AO153: Pre 1919 | AP153: Less than £15,000 | AQ153: Pre 1919Less than £15,000 | AR153: 2700 | AS153: 3600 | AT153: 100020 | AU153: 2700 | AV153: 3600 | AW153: 101730 | AX153: n/a | AY153: n/a | AZ153: n/a | BA153: n/a | BB153: n/a | BC153: n/a | BD153: n/a | BE153: n/a | BF153: n/a | BG153: n/a | BH153: n/a | BI153: n/a | BJ153: n/a | BK153: n/a | BL153: n/a | BM153: n/a | BN153: n/a | BO153: n/a | BP153: 11900 | BQ153: 13100 | BR153: 79060 | BS153: 12000 | BT153: 13200 | BU153: 82720 | BV153: n/a | BW153: n/a | BX153: n/a | BY153: n/a | BZ153: n/a | CA153: n/a | CB153: n/a | CC153: n/a | CD153: n/a | CE153: n/a | CF153: n/a | CG153: n/a | CH153: n/a | CI153: n/a | CJ153: n/a | CK153: n/a | CL153: n/a | CM153: n/a
AN154: 142 | AO154: 1919-44 | AP154: Less than £15,000 | AQ154: 1919-44Less than £15,000 | AR154: 2800 | AS154: 3400 | AT154: 124830 | AU154: 2900 | AV154: 3500 | AW154: 126040 | AX154: n/a | AY154: n/a | AZ154: n/a | BA154: n/a | BB154: n/a | BC154: n/a | BD154: n/a | BE154: n/a | BF154: n/a | BG154: n/a | BH154: n/a | BI154: n/a | BJ154: n/a | BK154: n/a | BL154: n/a | BM154: n/a | BN154: n/a | BO154: n/a | BP154: 12200 | BQ154: 13000 | BR154: 112310 | BS154: 12300 | BT154: 13100 | BU154: 116670 | BV154: n/a | BW154: n/a | BX154: n/a | BY154: n/a | BZ154: n/a | CA154: n/a | CB154: n/a | CC154: n/a | CD154: n/a | CE154: n/a | CF154: n/a | CG154: n/a | CH154: n/a | CI154: n/a | CJ154: n/a | CK154: n/a | CL154: n/a | CM154: n/a
AN155: 143 | AO155: 1945-64 | AP155: Less than £15,000 | AQ155: 1945-64Less than £15,000 | AR155: 2600 | AS155: 3300 | AT155: 187600 | AU155: 2600 | AV155: 3300 | AW155: 189670 | AX155: n/a | AY155: n/a | AZ155: n/a | BA155: n/a | BB155: n/a | BC155: n/a | BD155: n/a | BE155: n/a | BF155: n/a | BG155: n/a | BH155: n/a | BI155: n/a | BJ155: n/a | BK155: n/a | BL155: n/a | BM155: n/a | BN155: n/a | BO155: n/a | BP155: 11100 | BQ155: 11600 | BR155: 161900 | BS155: 11200 | BT155: 11800 | BU155: 168210 | BV155: n/a | BW155: n/a | BX155: n/a | BY155: n/a | BZ155: n/a | CA155: n/a | CB155: n/a | CC155: n/a | CD155: n/a | CE155: n/a | CF155: n/a | CG155: n/a | CH155: n/a | CI155: n/a | CJ155: n/a | CK155: n/a | CL155: n/a | CM155: n/a
AN156: 144 | AO156: 1965-82 | AP156: Less than £15,000 | AQ156: 1965-82Less than £15,000 | AR156: 2400 | AS156: 3200 | AT156: 186080 | AU156: 2500 | AV156: 3300 | AW156: 188030 | AX156: n/a | AY156: n/a | AZ156: n/a | BA156: n/a | BB156: n/a | BC156: n/a | BD156: n/a | BE156: n/a | BF156: n/a | BG156: n/a | BH156: n/a | BI156: n/a | BJ156: n/a | BK156: n/a | BL156: n/a | BM156: n/a | BN156: n/a | BO156: n/a | BP156: 9900 | BQ156: 10700 | BR156: 138420 | BS156: 10000 | BT156: 10800 | BU156: 144360 | BV156: n/a | BW156: n/a | BX156: n/a | BY156: n/a | BZ156: n/a | CA156: n/a | CB156: n/a | CC156: n/a | CD156: n/a | CE156: n/a | CF156: n/a | CG156: n/a | CH156: n/a | CI156: n/a | CJ156: n/a | CK156: n/a | CL156: n/a | CM156: n/a
AN157: 145 | AO157: 1983-92 | AP157: Less than £15,000 | AQ157: 1983-92Less than £15,000 | AR157: 2500 | AS157: 3400 | AT157: 55610 | AU157: 2500 | AV157: 3400 | AW157: 55960 | AX157: n/a | AY157: n/a | AZ157: n/a | BA157: n/a | BB157: n/a | BC157: n/a | BD157: n/a | BE157: n/a | BF157: n/a | BG157: n/a | BH157: n/a | BI157: n/a | BJ157: n/a | BK157: n/a | BL157: n/a | BM157: n/a | BN157: n/a | BO157: n/a | BP157: 9300 | BQ157: 10300 | BR157: 35930 | BS157: 9400 | BT157: 10400 | BU157: 37300 | BV157: n/a | BW157: n/a | BX157: n/a | BY157: n/a | BZ157: n/a | CA157: n/a | CB157: n/a | CC157: n/a | CD157: n/a | CE157: n/a | CF157: n/a | CG157: n/a | CH157: n/a | CI157: n/a | CJ157: n/a | CK157: n/a | CL157: n/a | CM157: n/a
AN158: 146 | AO158: 1993-99 | AP158: Less than £15,000 | AQ158: 1993-99Less than £15,000 | AR158: 2900 | AS158: 3700 | AT158: 34510 | AU158: 3000 | AV158: 3700 | AW158: 34700 | AX158: n/a | AY158: n/a | AZ158: n/a | BA158: n/a | BB158: n/a | BC158: n/a | BD158: n/a | BE158: n/a | BF158: n/a | BG158: n/a | BH158: n/a | BI158: n/a | BJ158: n/a | BK158: n/a | BL158: n/a | BM158: n/a | BN158: n/a | BO158: n/a | BP158: 9500 | BQ158: 10300 | BR158: 25480 | BS158: 9600 | BT158: 10400 | BU158: 26460 | BV158: n/a | BW158: n/a | BX158: n/a | BY158: n/a | BZ158: n/a | CA158: n/a | CB158: n/a | CC158: n/a | CD158: n/a | CE158: n/a | CF158: n/a | CG158: n/a | CH158: n/a | CI158: n/a | CJ158: n/a | CK158: n/a | CL158: n/a | CM158: n/a
AN159: 147 | AO159: Post 1999 | AP159: Less than £15,000 | AQ159: Post 1999Less than £15,000 | AR159: 2900 | AS159: 3700 | AT159: 29540 | AU159: 3000 | AV159: 3700 | AW159: 29690 | AX159: n/a | AY159: n/a | AZ159: n/a | BA159: n/a | BB159: n/a | BC159: n/a | BD159: n/a | BE159: n/a | BF159: n/a | BG159: n/a | BH159: n/a | BI159: n/a | BJ159: n/a | BK159: n/a | BL159: n/a | BM159: n/a | BN159: n/a | BO159: n/a | BP159: 9500 | BQ159: 10500 | BR159: 13780 | BS159: 9600 | BT159: 10600 | BU159: 15720 | BV159: n/a | BW159: n/a | BX159: n/a | BY159: n/a | BZ159: n/a | CA159: n/a | CB159: n/a | CC159: n/a | CD159: n/a | CE159: n/a | CF159: n/a | CG159: n/a | CH159: n/a | CI159: n/a | CJ159: n/a | CK159: n/a | CL159: n/a | CM159: n/a
AN160: 148 | AO160: Pre 1919 | AP160: £15,000 - £19,999 | AQ160: Pre 1919£15,000 - £19,999 | AR160: 2900 | AS160: 3800 | AT160: 50830 | AU160: 3000 | AV160: 3800 | AW160: 51640 | AX160: n/a | AY160: n/a | AZ160: n/a | BA160: n/a | BB160: n/a | BC160: n/a | BD160: n/a | BE160: n/a | BF160: n/a | BG160: n/a | BH160: n/a | BI160: n/a | BJ160: n/a | BK160: n/a | BL160: n/a | BM160: n/a | BN160: n/a | BO160: n/a | BP160: 12400 | BQ160: 13600 | BR160: 40160 | BS160: 12400 | BT160: 13700 | BU160: 42000 | BV160: n/a | BW160: n/a | BX160: n/a | BY160: n/a | BZ160: n/a | CA160: n/a | CB160: n/a | CC160: n/a | CD160: n/a | CE160: n/a | CF160: n/a | CG160: n/a | CH160: n/a | CI160: n/a | CJ160: n/a | CK160: n/a | CL160: n/a | CM160: n/a
AN161: 149 | AO161: 1919-44 | AP161: £15,000 - £19,999 | AQ161: 1919-44£15,000 - £19,999 | AR161: 3000 | AS161: 3600 | AT161: 49330 | AU161: 3000 | AV161: 3700 | AW161: 49720 | AX161: n/a | AY161: n/a | AZ161: n/a | BA161: n/a | BB161: n/a | BC161: n/a | BD161: n/a | BE161: n/a | BF161: n/a | BG161: n/a | BH161: n/a | BI161: n/a | BJ161: n/a | BK161: n/a | BL161: n/a | BM161: n/a | BN161: n/a | BO161: n/a | BP161: 13300 | BQ161: 14200 | BR161: 43930 | BS161: 13300 | BT161: 14300 | BU161: 45680 | BV161: n/a | BW161: n/a | BX161: n/a | BY161: n/a | BZ161: n/a | CA161: n/a | CB161: n/a | CC161: n/a | CD161: n/a | CE161: n/a | CF161: n/a | CG161: n/a | CH161: n/a | CI161: n/a | CJ161: n/a | CK161: n/a | CL161: n/a | CM161: n/a
AN162: 150 | AO162: 1945-64 | AP162: £15,000 - £19,999 | AQ162: 1945-64£15,000 - £19,999 | AR162: 2800 | AS162: 3500 | AT162: 65840 | AU162: 2900 | AV162: 3600 | AW162: 66370 | AX162: n/a | AY162: n/a | AZ162: n/a | BA162: n/a | BB162: n/a | BC162: n/a | BD162: n/a | BE162: n/a | BF162: n/a | BG162: n/a | BH162: n/a | BI162: n/a | BJ162: n/a | BK162: n/a | BL162: n/a | BM162: n/a | BN162: n/a | BO162: n/a | BP162: 11900 | BQ162: 12500 | BR162: 56240 | BS162: 11900 | BT162: 12600 | BU162: 58610 | BV162: n/a | BW162: n/a | BX162: n/a | BY162: n/a | BZ162: n/a | CA162: n/a | CB162: n/a | CC162: n/a | CD162: n/a | CE162: n/a | CF162: n/a | CG162: n/a | CH162: n/a | CI162: n/a | CJ162: n/a | CK162: n/a | CL162: n/a | CM162: n/a
AN163: 151 | AO163: 1965-82 | AP163: £15,000 - £19,999 | AQ163: 1965-82£15,000 - £19,999 | AR163: 2700 | AS163: 3400 | AT163: 68620 | AU163: 2800 | AV163: 3500 | AW163: 69140 | AX163: n/a | AY163: n/a | AZ163: n/a | BA163: n/a | BB163: n/a | BC163: n/a | BD163: n/a | BE163: n/a | BF163: n/a | BG163: n/a | BH163: n/a | BI163: n/a | BJ163: n/a | BK163: n/a | BL163: n/a | BM163: n/a | BN163: n/a | BO163: n/a | BP163: 10800 | BQ163: 11500 | BR163: 51650 | BS163: 10800 | BT163: 11600 | BU163: 53950 | BV163: n/a | BW163: n/a | BX163: n/a | BY163: n/a | BZ163: n/a | CA163: n/a | CB163: n/a | CC163: n/a | CD163: n/a | CE163: n/a | CF163: n/a | CG163: n/a | CH163: n/a | CI163: n/a | CJ163: n/a | CK163: n/a | CL163: n/a | CM163: n/a
AN164: 152 | AO164: 1983-92 | AP164: £15,000 - £19,999 | AQ164: 1983-92£15,000 - £19,999 | AR164: 2800 | AS164: 3700 | AT164: 21910 | AU164: 2900 | AV164: 3700 | AW164: 21950 | AX164: n/a | AY164: n/a | AZ164: n/a | BA164: n/a | BB164: n/a | BC164: n/a | BD164: n/a | BE164: n/a | BF164: n/a | BG164: n/a | BH164: n/a | BI164: n/a | BJ164: n/a | BK164: n/a | BL164: n/a | BM164: n/a | BN164: n/a | BO164: n/a | BP164: 10100 | BQ164: 11000 | BR164: 14060 | BS164: 10100 | BT164: 11100 | BU164: 14510 | BV164: n/a | BW164: n/a | BX164: n/a | BY164: n/a | BZ164: n/a | CA164: n/a | CB164: n/a | CC164: n/a | CD164: n/a | CE164: n/a | CF164: n/a | CG164: n/a | CH164: n/a | CI164: n/a | CJ164: n/a | CK164: n/a | CL164: n/a | CM164: n/a
AN165: 153 | AO165: 1993-99 | AP165: £15,000 - £19,999 | AQ165: 1993-99£15,000 - £19,999 | AR165: 3100 | AS165: 3900 | AT165: 12570 | AU165: 3200 | AV165: 3900 | AW165: 12630 | AX165: n/a | AY165: n/a | AZ165: n/a | BA165: n/a | BB165: n/a | BC165: n/a | BD165: n/a | BE165: n/a | BF165: n/a | BG165: n/a | BH165: n/a | BI165: n/a | BJ165: n/a | BK165: n/a | BL165: n/a | BM165: n/a | BN165: n/a | BO165: n/a | BP165: 10600 | BQ165: 11600 | BR165: 9110 | BS165: 10700 | BT165: 11600 | BU165: 9520 | BV165: n/a | BW165: n/a | BX165: n/a | BY165: n/a | BZ165: n/a | CA165: n/a | CB165: n/a | CC165: n/a | CD165: n/a | CE165: n/a | CF165: n/a | CG165: n/a | CH165: n/a | CI165: n/a | CJ165: n/a | CK165: n/a | CL165: n/a | CM165: n/a
AN166: 154 | AO166: Post 1999 | AP166: £15,000 - £19,999 | AQ166: Post 1999£15,000 - £19,999 | AR166: 3100 | AS166: 3900 | AT166: 12470 | AU166: 3200 | AV166: 3900 | AW166: 12510 | AX166: n/a | AY166: n/a | AZ166: n/a | BA166: n/a | BB166: n/a | BC166: n/a | BD166: n/a | BE166: n/a | BF166: n/a | BG166: n/a | BH166: n/a | BI166: n/a | BJ166: n/a | BK166: n/a | BL166: n/a | BM166: n/a | BN166: n/a | BO166: n/a | BP166: 10600 | BQ166: 11600 | BR166: 5900 | BS166: 10700 | BT166: 11700 | BU166: 6660 | BV166: n/a | BW166: n/a | BX166: n/a | BY166: n/a | BZ166: n/a | CA166: n/a | CB166: n/a | CC166: n/a | CD166: n/a | CE166: n/a | CF166: n/a | CG166: n/a | CH166: n/a | CI166: n/a | CJ166: n/a | CK166: n/a | CL166: n/a | CM166: n/a
AN167: 155 | AO167: Pre 1919 | AP167: £20,000 - £29,999 | AQ167: Pre 1919£20,000 - £29,999 | AR167: 3000 | AS167: 3800 | AT167: 150250 | AU167: 3000 | AV167: 3800 | AW167: 152220 | AX167: n/a | AY167: n/a | AZ167: n/a | BA167: n/a | BB167: n/a | BC167: n/a | BD167: n/a | BE167: n/a | BF167: n/a | BG167: n/a | BH167: n/a | BI167: n/a | BJ167: n/a | BK167: n/a | BL167: n/a | BM167: n/a | BN167: n/a | BO167: n/a | BP167: 12300 | BQ167: 13500 | BR167: 120940 | BS167: 12300 | BT167: 13500 | BU167: 126110 | BV167: n/a | BW167: n/a | BX167: n/a | BY167: n/a | BZ167: n/a | CA167: n/a | CB167: n/a | CC167: n/a | CD167: n/a | CE167: n/a | CF167: n/a | CG167: n/a | CH167: n/a | CI167: n/a | CJ167: n/a | CK167: n/a | CL167: n/a | CM167: n/a
AN168: 156 | AO168: 1919-44 | AP168: £20,000 - £29,999 | AQ168: 1919-44£20,000 - £29,999 | AR168: 3200 | AS168: 3800 | AT168: 108400 | AU168: 3300 | AV168: 3900 | AW168: 109110 | AX168: n/a | AY168: n/a | AZ168: n/a | BA168: n/a | BB168: n/a | BC168: n/a | BD168: n/a | BE168: n/a | BF168: n/a | BG168: n/a | BH168: n/a | BI168: n/a | BJ168: n/a | BK168: n/a | BL168: n/a | BM168: n/a | BN168: n/a | BO168: n/a | BP168: 13500 | BQ168: 14400 | BR168: 96140 | BS168: 13500 | BT168: 14400 | BU168: 99980 | BV168: n/a | BW168: n/a | BX168: n/a | BY168: n/a | BZ168: n/a | CA168: n/a | CB168: n/a | CC168: n/a | CD168: n/a | CE168: n/a | CF168: n/a | CG168: n/a | CH168: n/a | CI168: n/a | CJ168: n/a | CK168: n/a | CL168: n/a | CM168: n/a
AN169: 157 | AO169: 1945-64 | AP169: £20,000 - £29,999 | AQ169: 1945-64£20,000 - £29,999 | AR169: 3100 | AS169: 3700 | AT169: 141960 | AU169: 3200 | AV169: 3800 | AW169: 143060 | AX169: n/a | AY169: n/a | AZ169: n/a | BA169: n/a | BB169: n/a | BC169: n/a | BD169: n/a | BE169: n/a | BF169: n/a | BG169: n/a | BH169: n/a | BI169: n/a | BJ169: n/a | BK169: n/a | BL169: n/a | BM169: n/a | BN169: n/a | BO169: n/a | BP169: 12500 | BQ169: 13100 | BR169: 121890 | BS169: 12400 | BT169: 13200 | BU169: 126950 | BV169: n/a | BW169: n/a | BX169: n/a | BY169: n/a | BZ169: n/a | CA169: n/a | CB169: n/a | CC169: n/a | CD169: n/a | CE169: n/a | CF169: n/a | CG169: n/a | CH169: n/a | CI169: n/a | CJ169: n/a | CK169: n/a | CL169: n/a | CM169: n/a
AN170: 158 | AO170: 1965-82 | AP170: £20,000 - £29,999 | AQ170: 1965-82£20,000 - £29,999 | AR170: 3000 | AS170: 3800 | AT170: 154930 | AU170: 3100 | AV170: 3800 | AW170: 155850 | AX170: n/a | AY170: n/a | AZ170: n/a | BA170: n/a | BB170: n/a | BC170: n/a | BD170: n/a | BE170: n/a | BF170: n/a | BG170: n/a | BH170: n/a | BI170: n/a | BJ170: n/a | BK170: n/a | BL170: n/a | BM170: n/a | BN170: n/a | BO170: n/a | BP170: 11500 | BQ170: 12400 | BR170: 122130 | BS170: 11500 | BT170: 12400 | BU170: 127280 | BV170: n/a | BW170: n/a | BX170: n/a | BY170: n/a | BZ170: n/a | CA170: n/a | CB170: n/a | CC170: n/a | CD170: n/a | CE170: n/a | CF170: n/a | CG170: n/a | CH170: n/a | CI170: n/a | CJ170: n/a | CK170: n/a | CL170: n/a | CM170: n/a
AN171: 159 | AO171: 1983-92 | AP171: £20,000 - £29,999 | AQ171: 1983-92£20,000 - £29,999 | AR171: 3000 | AS171: 3900 | AT171: 52070 | AU171: 3100 | AV171: 3900 | AW171: 52260 | AX171: n/a | AY171: n/a | AZ171: n/a | BA171: n/a | BB171: n/a | BC171: n/a | BD171: n/a | BE171: n/a | BF171: n/a | BG171: n/a | BH171: n/a | BI171: n/a | BJ171: n/a | BK171: n/a | BL171: n/a | BM171: n/a | BN171: n/a | BO171: n/a | BP171: 10200 | BQ171: 11300 | BR171: 37160 | BS171: 10200 | BT171: 11200 | BU171: 38660 | BV171: n/a | BW171: n/a | BX171: n/a | BY171: n/a | BZ171: n/a | CA171: n/a | CB171: n/a | CC171: n/a | CD171: n/a | CE171: n/a | CF171: n/a | CG171: n/a | CH171: n/a | CI171: n/a | CJ171: n/a | CK171: n/a | CL171: n/a | CM171: n/a
AN172: 160 | AO172: 1993-99 | AP172: £20,000 - £29,999 | AQ172: 1993-99£20,000 - £29,999 | AR172: 3100 | AS172: 3900 | AT172: 32370 | AU172: 3200 | AV172: 4000 | AW172: 32560 | AX172: n/a | AY172: n/a | AZ172: n/a | BA172: n/a | BB172: n/a | BC172: n/a | BD172: n/a | BE172: n/a | BF172: n/a | BG172: n/a | BH172: n/a | BI172: n/a | BJ172: n/a | BK172: n/a | BL172: n/a | BM172: n/a | BN172: n/a | BO172: n/a | BP172: 10300 | BQ172: 11400 | BR172: 24460 | BS172: 10400 | BT172: 11400 | BU172: 25460 | BV172: n/a | BW172: n/a | BX172: n/a | BY172: n/a | BZ172: n/a | CA172: n/a | CB172: n/a | CC172: n/a | CD172: n/a | CE172: n/a | CF172: n/a | CG172: n/a | CH172: n/a | CI172: n/a | CJ172: n/a | CK172: n/a | CL172: n/a | CM172: n/a
AN173: 161 | AO173: Post 1999 | AP173: £20,000 - £29,999 | AQ173: Post 1999£20,000 - £29,999 | AR173: 3000 | AS173: 3900 | AT173: 40280 | AU173: 3100 | AV173: 3900 | AW173: 40450 | AX173: n/a | AY173: n/a | AZ173: n/a | BA173: n/a | BB173: n/a | BC173: n/a | BD173: n/a | BE173: n/a | BF173: n/a | BG173: n/a | BH173: n/a | BI173: n/a | BJ173: n/a | BK173: n/a | BL173: n/a | BM173: n/a | BN173: n/a | BO173: n/a | BP173: 9600 | BQ173: 10800 | BR173: 19500 | BS173: 9800 | BT173: 10900 | BU173: 22050 | BV173: n/a | BW173: n/a | BX173: n/a | BY173: n/a | BZ173: n/a | CA173: n/a | CB173: n/a | CC173: n/a | CD173: n/a | CE173: n/a | CF173: n/a | CG173: n/a | CH173: n/a | CI173: n/a | CJ173: n/a | CK173: n/a | CL173: n/a | CM173: n/a
AN174: 162 | AO174: Pre 1919 | AP174: £30,000 - £39,999 | AQ174: Pre 1919£30,000 - £39,999 | AR174: 3400 | AS174: 4300 | AT174: 110530 | AU174: 3500 | AV174: 4300 | AW174: 111860 | AX174: n/a | AY174: n/a | AZ174: n/a | BA174: n/a | BB174: n/a | BC174: n/a | BD174: n/a | BE174: n/a | BF174: n/a | BG174: n/a | BH174: n/a | BI174: n/a | BJ174: n/a | BK174: n/a | BL174: n/a | BM174: n/a | BN174: n/a | BO174: n/a | BP174: 13700 | BQ174: 15000 | BR174: 87130 | BS174: 13700 | BT174: 15000 | BU174: 91000 | BV174: n/a | BW174: n/a | BX174: n/a | BY174: n/a | BZ174: n/a | CA174: n/a | CB174: n/a | CC174: n/a | CD174: n/a | CE174: n/a | CF174: n/a | CG174: n/a | CH174: n/a | CI174: n/a | CJ174: n/a | CK174: n/a | CL174: n/a | CM174: n/a
AN175: 163 | AO175: 1919-44 | AP175: £30,000 - £39,999 | AQ175: 1919-44£30,000 - £39,999 | AR175: 3500 | AS175: 4100 | AT175: 103580 | AU175: 3600 | AV175: 4200 | AW175: 104390 | AX175: n/a | AY175: n/a | AZ175: n/a | BA175: n/a | BB175: n/a | BC175: n/a | BD175: n/a | BE175: n/a | BF175: n/a | BG175: n/a | BH175: n/a | BI175: n/a | BJ175: n/a | BK175: n/a | BL175: n/a | BM175: n/a | BN175: n/a | BO175: n/a | BP175: 14600 | BQ175: 15500 | BR175: 92270 | BS175: 14600 | BT175: 15500 | BU175: 96300 | BV175: n/a | BW175: n/a | BX175: n/a | BY175: n/a | BZ175: n/a | CA175: n/a | CB175: n/a | CC175: n/a | CD175: n/a | CE175: n/a | CF175: n/a | CG175: n/a | CH175: n/a | CI175: n/a | CJ175: n/a | CK175: n/a | CL175: n/a | CM175: n/a
AN176: 164 | AO176: 1945-64 | AP176: £30,000 - £39,999 | AQ176: 1945-64£30,000 - £39,999 | AR176: 3400 | AS176: 4100 | AT176: 106860 | AU176: 3600 | AV176: 4200 | AW176: 107610 | AX176: n/a | AY176: n/a | AZ176: n/a | BA176: n/a | BB176: n/a | BC176: n/a | BD176: n/a | BE176: n/a | BF176: n/a | BG176: n/a | BH176: n/a | BI176: n/a | BJ176: n/a | BK176: n/a | BL176: n/a | BM176: n/a | BN176: n/a | BO176: n/a | BP176: 13200 | BQ176: 13900 | BR176: 92460 | BS176: 13100 | BT176: 13900 | BU176: 96420 | BV176: n/a | BW176: n/a | BX176: n/a | BY176: n/a | BZ176: n/a | CA176: n/a | CB176: n/a | CC176: n/a | CD176: n/a | CE176: n/a | CF176: n/a | CG176: n/a | CH176: n/a | CI176: n/a | CJ176: n/a | CK176: n/a | CL176: n/a | CM176: n/a
AN177: 165 | AO177: 1965-82 | AP177: £30,000 - £39,999 | AQ177: 1965-82£30,000 - £39,999 | AR177: 3400 | AS177: 4000 | AT177: 125780 | AU177: 3500 | AV177: 4100 | AW177: 126520 | AX177: n/a | AY177: n/a | AZ177: n/a | BA177: n/a | BB177: n/a | BC177: n/a | BD177: n/a | BE177: n/a | BF177: n/a | BG177: n/a | BH177: n/a | BI177: n/a | BJ177: n/a | BK177: n/a | BL177: n/a | BM177: n/a | BN177: n/a | BO177: n/a | BP177: 12400 | BQ177: 13200 | BR177: 102810 | BS177: 12400 | BT177: 13200 | BU177: 107360 | BV177: n/a | BW177: n/a | BX177: n/a | BY177: n/a | BZ177: n/a | CA177: n/a | CB177: n/a | CC177: n/a | CD177: n/a | CE177: n/a | CF177: n/a | CG177: n/a | CH177: n/a | CI177: n/a | CJ177: n/a | CK177: n/a | CL177: n/a | CM177: n/a
AN178: 166 | AO178: 1983-92 | AP178: £30,000 - £39,999 | AQ178: 1983-92£30,000 - £39,999 | AR178: 3400 | AS178: 4200 | AT178: 44280 | AU178: 3500 | AV178: 4200 | AW178: 44430 | AX178: n/a | AY178: n/a | AZ178: n/a | BA178: n/a | BB178: n/a | BC178: n/a | BD178: n/a | BE178: n/a | BF178: n/a | BG178: n/a | BH178: n/a | BI178: n/a | BJ178: n/a | BK178: n/a | BL178: n/a | BM178: n/a | BN178: n/a | BO178: n/a | BP178: 11200 | BQ178: 12200 | BR178: 32990 | BS178: 11200 | BT178: 12200 | BU178: 34310 | BV178: n/a | BW178: n/a | BX178: n/a | BY178: n/a | BZ178: n/a | CA178: n/a | CB178: n/a | CC178: n/a | CD178: n/a | CE178: n/a | CF178: n/a | CG178: n/a | CH178: n/a | CI178: n/a | CJ178: n/a | CK178: n/a | CL178: n/a | CM178: n/a
AN179: 167 | AO179: 1993-99 | AP179: £30,000 - £39,999 | AQ179: 1993-99£30,000 - £39,999 | AR179: 3300 | AS179: 4100 | AT179: 28450 | AU179: 3400 | AV179: 4100 | AW179: 28500 | AX179: n/a | AY179: n/a | AZ179: n/a | BA179: n/a | BB179: n/a | BC179: n/a | BD179: n/a | BE179: n/a | BF179: n/a | BG179: n/a | BH179: n/a | BI179: n/a | BJ179: n/a | BK179: n/a | BL179: n/a | BM179: n/a | BN179: n/a | BO179: n/a | BP179: 11000 | BQ179: 12100 | BR179: 21940 | BS179: 11000 | BT179: 12100 | BU179: 22870 | BV179: n/a | BW179: n/a | BX179: n/a | BY179: n/a | BZ179: n/a | CA179: n/a | CB179: n/a | CC179: n/a | CD179: n/a | CE179: n/a | CF179: n/a | CG179: n/a | CH179: n/a | CI179: n/a | CJ179: n/a | CK179: n/a | CL179: n/a | CM179: n/a
AN180: 168 | AO180: Post 1999 | AP180: £30,000 - £39,999 | AQ180: Post 1999£30,000 - £39,999 | AR180: 3200 | AS180: 4000 | AT180: 38570 | AU180: 3200 | AV180: 4000 | AW180: 38690 | AX180: n/a | AY180: n/a | AZ180: n/a | BA180: n/a | BB180: n/a | BC180: n/a | BD180: n/a | BE180: n/a | BF180: n/a | BG180: n/a | BH180: n/a | BI180: n/a | BJ180: n/a | BK180: n/a | BL180: n/a | BM180: n/a | BN180: n/a | BO180: n/a | BP180: 10300 | BQ180: 11400 | BR180: 19490 | BS180: 10400 | BT180: 11500 | BU180: 21870 | BV180: n/a | BW180: n/a | BX180: n/a | BY180: n/a | BZ180: n/a | CA180: n/a | CB180: n/a | CC180: n/a | CD180: n/a | CE180: n/a | CF180: n/a | CG180: n/a | CH180: n/a | CI180: n/a | CJ180: n/a | CK180: n/a | CL180: n/a | CM180: n/a
AN181: 169 | AO181: Pre 1919 | AP181: £40,000 - £49,999 | AQ181: Pre 1919£40,000 - £49,999 | AR181: 3600 | AS181: 4500 | AT181: 86420 | AU181: 3700 | AV181: 4600 | AW181: 87450 | AX181: n/a | AY181: n/a | AZ181: n/a | BA181: n/a | BB181: n/a | BC181: n/a | BD181: n/a | BE181: n/a | BF181: n/a | BG181: n/a | BH181: n/a | BI181: n/a | BJ181: n/a | BK181: n/a | BL181: n/a | BM181: n/a | BN181: n/a | BO181: n/a | BP181: 14400 | BQ181: 15700 | BR181: 68610 | BS181: 14400 | BT181: 15700 | BU181: 71850 | BV181: n/a | BW181: n/a | BX181: n/a | BY181: n/a | BZ181: n/a | CA181: n/a | CB181: n/a | CC181: n/a | CD181: n/a | CE181: n/a | CF181: n/a | CG181: n/a | CH181: n/a | CI181: n/a | CJ181: n/a | CK181: n/a | CL181: n/a | CM181: n/a
AN182: 170 | AO182: 1919-44 | AP182: £40,000 - £49,999 | AQ182: 1919-44£40,000 - £49,999 | AR182: 3800 | AS182: 4400 | AT182: 82230 | AU182: 4000 | AV182: 4500 | AW182: 83050 | AX182: n/a | AY182: n/a | AZ182: n/a | BA182: n/a | BB182: n/a | BC182: n/a | BD182: n/a | BE182: n/a | BF182: n/a | BG182: n/a | BH182: n/a | BI182: n/a | BJ182: n/a | BK182: n/a | BL182: n/a | BM182: n/a | BN182: n/a | BO182: n/a | BP182: 15600 | BQ182: 16500 | BR182: 73580 | BS182: 15500 | BT182: 16400 | BU182: 77030 | BV182: n/a | BW182: n/a | BX182: n/a | BY182: n/a | BZ182: n/a | CA182: n/a | CB182: n/a | CC182: n/a | CD182: n/a | CE182: n/a | CF182: n/a | CG182: n/a | CH182: n/a | CI182: n/a | CJ182: n/a | CK182: n/a | CL182: n/a | CM182: n/a
AN183: 171 | AO183: 1945-64 | AP183: £40,000 - £49,999 | AQ183: 1945-64£40,000 - £49,999 | AR183: 3700 | AS183: 4400 | AT183: 73410 | AU183: 3900 | AV183: 4500 | AW183: 74000 | AX183: n/a | AY183: n/a | AZ183: n/a | BA183: n/a | BB183: n/a | BC183: n/a | BD183: n/a | BE183: n/a | BF183: n/a | BG183: n/a | BH183: n/a | BI183: n/a | BJ183: n/a | BK183: n/a | BL183: n/a | BM183: n/a | BN183: n/a | BO183: n/a | BP183: 14200 | BQ183: 15000 | BR183: 64130 | BS183: 14100 | BT183: 15000 | BU183: 66950 | BV183: n/a | BW183: n/a | BX183: n/a | BY183: n/a | BZ183: n/a | CA183: n/a | CB183: n/a | CC183: n/a | CD183: n/a | CE183: n/a | CF183: n/a | CG183: n/a | CH183: n/a | CI183: n/a | CJ183: n/a | CK183: n/a | CL183: n/a | CM183: n/a
AN184: 172 | AO184: 1965-82 | AP184: £40,000 - £49,999 | AQ184: 1965-82£40,000 - £49,999 | AR184: 3700 | AS184: 4300 | AT184: 95820 | AU184: 3900 | AV184: 4400 | AW184: 96340 | AX184: n/a | AY184: n/a | AZ184: n/a | BA184: n/a | BB184: n/a | BC184: n/a | BD184: n/a | BE184: n/a | BF184: n/a | BG184: n/a | BH184: n/a | BI184: n/a | BJ184: n/a | BK184: n/a | BL184: n/a | BM184: n/a | BN184: n/a | BO184: n/a | BP184: 13500 | BQ184: 14200 | BR184: 80410 | BS184: 13400 | BT184: 14200 | BU184: 83980 | BV184: n/a | BW184: n/a | BX184: n/a | BY184: n/a | BZ184: n/a | CA184: n/a | CB184: n/a | CC184: n/a | CD184: n/a | CE184: n/a | CF184: n/a | CG184: n/a | CH184: n/a | CI184: n/a | CJ184: n/a | CK184: n/a | CL184: n/a | CM184: n/a
AN185: 173 | AO185: 1983-92 | AP185: £40,000 - £49,999 | AQ185: 1983-92£40,000 - £49,999 | AR185: 3700 | AS185: 4500 | AT185: 34970 | AU185: 3900 | AV185: 4500 | AW185: 35120 | AX185: n/a | AY185: n/a | AZ185: n/a | BA185: n/a | BB185: n/a | BC185: n/a | BD185: n/a | BE185: n/a | BF185: n/a | BG185: n/a | BH185: n/a | BI185: n/a | BJ185: n/a | BK185: n/a | BL185: n/a | BM185: n/a | BN185: n/a | BO185: n/a | BP185: 12600 | BQ185: 13400 | BR185: 27540 | BS185: 12600 | BT185: 13300 | BU185: 28580 | BV185: n/a | BW185: n/a | BX185: n/a | BY185: n/a | BZ185: n/a | CA185: n/a | CB185: n/a | CC185: n/a | CD185: n/a | CE185: n/a | CF185: n/a | CG185: n/a | CH185: n/a | CI185: n/a | CJ185: n/a | CK185: n/a | CL185: n/a | CM185: n/a
AN186: 174 | AO186: 1993-99 | AP186: £40,000 - £49,999 | AQ186: 1993-99£40,000 - £49,999 | AR186: 3700 | AS186: 4300 | AT186: 24200 | AU186: 3800 | AV186: 4400 | AW186: 24290 | AX186: n/a | AY186: n/a | AZ186: n/a | BA186: n/a | BB186: n/a | BC186: n/a | BD186: n/a | BE186: n/a | BF186: n/a | BG186: n/a | BH186: n/a | BI186: n/a | BJ186: n/a | BK186: n/a | BL186: n/a | BM186: n/a | BN186: n/a | BO186: n/a | BP186: 12200 | BQ186: 13100 | BR186: 19330 | BS186: 12200 | BT186: 13100 | BU186: 20140 | BV186: n/a | BW186: n/a | BX186: n/a | BY186: n/a | BZ186: n/a | CA186: n/a | CB186: n/a | CC186: n/a | CD186: n/a | CE186: n/a | CF186: n/a | CG186: n/a | CH186: n/a | CI186: n/a | CJ186: n/a | CK186: n/a | CL186: n/a | CM186: n/a
AN187: 175 | AO187: Post 1999 | AP187: £40,000 - £49,999 | AQ187: Post 1999£40,000 - £49,999 | AR187: 3400 | AS187: 4200 | AT187: 30670 | AU187: 3600 | AV187: 4200 | AW187: 30730 | AX187: n/a | AY187: n/a | AZ187: n/a | BA187: n/a | BB187: n/a | BC187: n/a | BD187: n/a | BE187: n/a | BF187: n/a | BG187: n/a | BH187: n/a | BI187: n/a | BJ187: n/a | BK187: n/a | BL187: n/a | BM187: n/a | BN187: n/a | BO187: n/a | BP187: 11500 | BQ187: 12500 | BR187: 16100 | BS187: 11600 | BT187: 12600 | BU187: 18120 | BV187: n/a | BW187: n/a | BX187: n/a | BY187: n/a | BZ187: n/a | CA187: n/a | CB187: n/a | CC187: n/a | CD187: n/a | CE187: n/a | CF187: n/a | CG187: n/a | CH187: n/a | CI187: n/a | CJ187: n/a | CK187: n/a | CL187: n/a | CM187: n/a
AN188: 176 | AO188: Pre 1919 | AP188: £50,000 - £59,999 | AQ188: Pre 1919£50,000 - £59,999 | AR188: 3800 | AS188: 4800 | AT188: 50760 | AU188: 3900 | AV188: 4800 | AW188: 51330 | AX188: n/a | AY188: n/a | AZ188: n/a | BA188: n/a | BB188: n/a | BC188: n/a | BD188: n/a | BE188: n/a | BF188: n/a | BG188: n/a | BH188: n/a | BI188: n/a | BJ188: n/a | BK188: n/a | BL188: n/a | BM188: n/a | BN188: n/a | BO188: n/a | BP188: 15300 | BQ188: 16700 | BR188: 39150 | BS188: 15300 | BT188: 16700 | BU188: 41070 | BV188: n/a | BW188: n/a | BX188: n/a | BY188: n/a | BZ188: n/a | CA188: n/a | CB188: n/a | CC188: n/a | CD188: n/a | CE188: n/a | CF188: n/a | CG188: n/a | CH188: n/a | CI188: n/a | CJ188: n/a | CK188: n/a | CL188: n/a | CM188: n/a
AN189: 177 | AO189: 1919-44 | AP189: £50,000 - £59,999 | AQ189: 1919-44£50,000 - £59,999 | AR189: 4000 | AS189: 4700 | AT189: 47800 | AU189: 4200 | AV189: 4800 | AW189: 48290 | AX189: n/a | AY189: n/a | AZ189: n/a | BA189: n/a | BB189: n/a | BC189: n/a | BD189: n/a | BE189: n/a | BF189: n/a | BG189: n/a | BH189: n/a | BI189: n/a | BJ189: n/a | BK189: n/a | BL189: n/a | BM189: n/a | BN189: n/a | BO189: n/a | BP189: 16700 | BQ189: 17700 | BR189: 42460 | BS189: 16500 | BT189: 17600 | BU189: 44450 | BV189: n/a | BW189: n/a | BX189: n/a | BY189: n/a | BZ189: n/a | CA189: n/a | CB189: n/a | CC189: n/a | CD189: n/a | CE189: n/a | CF189: n/a | CG189: n/a | CH189: n/a | CI189: n/a | CJ189: n/a | CK189: n/a | CL189: n/a | CM189: n/a
AN190: 178 | AO190: 1945-64 | AP190: £50,000 - £59,999 | AQ190: 1945-64£50,000 - £59,999 | AR190: 3900 | AS190: 4600 | AT190: 39840 | AU190: 4100 | AV190: 4700 | AW190: 40210 | AX190: n/a | AY190: n/a | AZ190: n/a | BA190: n/a | BB190: n/a | BC190: n/a | BD190: n/a | BE190: n/a | BF190: n/a | BG190: n/a | BH190: n/a | BI190: n/a | BJ190: n/a | BK190: n/a | BL190: n/a | BM190: n/a | BN190: n/a | BO190: n/a | BP190: 15000 | BQ190: 15800 | BR190: 34370 | BS190: 14900 | BT190: 15800 | BU190: 36060 | BV190: n/a | BW190: n/a | BX190: n/a | BY190: n/a | BZ190: n/a | CA190: n/a | CB190: n/a | CC190: n/a | CD190: n/a | CE190: n/a | CF190: n/a | CG190: n/a | CH190: n/a | CI190: n/a | CJ190: n/a | CK190: n/a | CL190: n/a | CM190: n/a
AN191: 179 | AO191: 1965-82 | AP191: £50,000 - £59,999 | AQ191: 1965-82£50,000 - £59,999 | AR191: 3800 | AS191: 4500 | AT191: 50580 | AU191: 4000 | AV191: 4600 | AW191: 50970 | AX191: n/a | AY191: n/a | AZ191: n/a | BA191: n/a | BB191: n/a | BC191: n/a | BD191: n/a | BE191: n/a | BF191: n/a | BG191: n/a | BH191: n/a | BI191: n/a | BJ191: n/a | BK191: n/a | BL191: n/a | BM191: n/a | BN191: n/a | BO191: n/a | BP191: 14000 | BQ191: 14800 | BR191: 42190 | BS191: 13900 | BT191: 14800 | BU191: 44090 | BV191: n/a | BW191: n/a | BX191: n/a | BY191: n/a | BZ191: n/a | CA191: n/a | CB191: n/a | CC191: n/a | CD191: n/a | CE191: n/a | CF191: n/a | CG191: n/a | CH191: n/a | CI191: n/a | CJ191: n/a | CK191: n/a | CL191: n/a | CM191: n/a
AN192: 180 | AO192: 1983-92 | AP192: £50,000 - £59,999 | AQ192: 1983-92£50,000 - £59,999 | AR192: 3900 | AS192: 4600 | AT192: 22140 | AU192: 4000 | AV192: 4700 | AW192: 22250 | AX192: n/a | AY192: n/a | AZ192: n/a | BA192: n/a | BB192: n/a | BC192: n/a | BD192: n/a | BE192: n/a | BF192: n/a | BG192: n/a | BH192: n/a | BI192: n/a | BJ192: n/a | BK192: n/a | BL192: n/a | BM192: n/a | BN192: n/a | BO192: n/a | BP192: 13200 | BQ192: 14100 | BR192: 17730 | BS192: 13200 | BT192: 14100 | BU192: 18450 | BV192: n/a | BW192: n/a | BX192: n/a | BY192: n/a | BZ192: n/a | CA192: n/a | CB192: n/a | CC192: n/a | CD192: n/a | CE192: n/a | CF192: n/a | CG192: n/a | CH192: n/a | CI192: n/a | CJ192: n/a | CK192: n/a | CL192: n/a | CM192: n/a
AN193: 181 | AO193: 1993-99 | AP193: £50,000 - £59,999 | AQ193: 1993-99£50,000 - £59,999 | AR193: 3800 | AS193: 4500 | AT193: 18390 | AU193: 4000 | AV193: 4600 | AW193: 18460 | AX193: n/a | AY193: n/a | AZ193: n/a | BA193: n/a | BB193: n/a | BC193: n/a | BD193: n/a | BE193: n/a | BF193: n/a | BG193: n/a | BH193: n/a | BI193: n/a | BJ193: n/a | BK193: n/a | BL193: n/a | BM193: n/a | BN193: n/a | BO193: n/a | BP193: 13000 | BQ193: 13900 | BR193: 14960 | BS193: 12900 | BT193: 13900 | BU193: 15620 | BV193: n/a | BW193: n/a | BX193: n/a | BY193: n/a | BZ193: n/a | CA193: n/a | CB193: n/a | CC193: n/a | CD193: n/a | CE193: n/a | CF193: n/a | CG193: n/a | CH193: n/a | CI193: n/a | CJ193: n/a | CK193: n/a | CL193: n/a | CM193: n/a
AN194: 182 | AO194: Post 1999 | AP194: £50,000 - £59,999 | AQ194: Post 1999£50,000 - £59,999 | AR194: 3600 | AS194: 4300 | AT194: 23180 | AU194: 3800 | AV194: 4400 | AW194: 23270 | AX194: n/a | AY194: n/a | AZ194: n/a | BA194: n/a | BB194: n/a | BC194: n/a | BD194: n/a | BE194: n/a | BF194: n/a | BG194: n/a | BH194: n/a | BI194: n/a | BJ194: n/a | BK194: n/a | BL194: n/a | BM194: n/a | BN194: n/a | BO194: n/a | BP194: 12100 | BQ194: 13100 | BR194: 13020 | BS194: 12200 | BT194: 13200 | BU194: 14510 | BV194: n/a | BW194: n/a | BX194: n/a | BY194: n/a | BZ194: n/a | CA194: n/a | CB194: n/a | CC194: n/a | CD194: n/a | CE194: n/a | CF194: n/a | CG194: n/a | CH194: n/a | CI194: n/a | CJ194: n/a | CK194: n/a | CL194: n/a | CM194: n/a
AN195: 183 | AO195: Pre 1919 | AP195: £60,000 - £69,999 | AQ195: Pre 1919£60,000 - £69,999 | AR195: 4000 | AS195: 5100 | AT195: 30770 | AU195: 4200 | AV195: 5100 | AW195: 31150 | AX195: n/a | AY195: n/a | AZ195: n/a | BA195: n/a | BB195: n/a | BC195: n/a | BD195: n/a | BE195: n/a | BF195: n/a | BG195: n/a | BH195: n/a | BI195: n/a | BJ195: n/a | BK195: n/a | BL195: n/a | BM195: n/a | BN195: n/a | BO195: n/a | BP195: 16300 | BQ195: 17800 | BR195: 23200 | BS195: 16200 | BT195: 17700 | BU195: 24260 | BV195: n/a | BW195: n/a | BX195: n/a | BY195: n/a | BZ195: n/a | CA195: n/a | CB195: n/a | CC195: n/a | CD195: n/a | CE195: n/a | CF195: n/a | CG195: n/a | CH195: n/a | CI195: n/a | CJ195: n/a | CK195: n/a | CL195: n/a | CM195: n/a
AN196: 184 | AO196: 1919-44 | AP196: £60,000 - £69,999 | AQ196: 1919-44£60,000 - £69,999 | AR196: 4200 | AS196: 4800 | AT196: 29010 | AU196: 4300 | AV196: 4900 | AW196: 29260 | AX196: n/a | AY196: n/a | AZ196: n/a | BA196: n/a | BB196: n/a | BC196: n/a | BD196: n/a | BE196: n/a | BF196: n/a | BG196: n/a | BH196: n/a | BI196: n/a | BJ196: n/a | BK196: n/a | BL196: n/a | BM196: n/a | BN196: n/a | BO196: n/a | BP196: 17700 | BQ196: 18700 | BR196: 25410 | BS196: 17600 | BT196: 18600 | BU196: 26750 | BV196: n/a | BW196: n/a | BX196: n/a | BY196: n/a | BZ196: n/a | CA196: n/a | CB196: n/a | CC196: n/a | CD196: n/a | CE196: n/a | CF196: n/a | CG196: n/a | CH196: n/a | CI196: n/a | CJ196: n/a | CK196: n/a | CL196: n/a | CM196: n/a
AN197: 185 | AO197: 1945-64 | AP197: £60,000 - £69,999 | AQ197: 1945-64£60,000 - £69,999 | AR197: 4000 | AS197: 4700 | AT197: 24480 | AU197: 4200 | AV197: 4800 | AW197: 24680 | AX197: n/a | AY197: n/a | AZ197: n/a | BA197: n/a | BB197: n/a | BC197: n/a | BD197: n/a | BE197: n/a | BF197: n/a | BG197: n/a | BH197: n/a | BI197: n/a | BJ197: n/a | BK197: n/a | BL197: n/a | BM197: n/a | BN197: n/a | BO197: n/a | BP197: 15600 | BQ197: 16600 | BR197: 21030 | BS197: 15400 | BT197: 16500 | BU197: 22070 | BV197: n/a | BW197: n/a | BX197: n/a | BY197: n/a | BZ197: n/a | CA197: n/a | CB197: n/a | CC197: n/a | CD197: n/a | CE197: n/a | CF197: n/a | CG197: n/a | CH197: n/a | CI197: n/a | CJ197: n/a | CK197: n/a | CL197: n/a | CM197: n/a
AN198: 186 | AO198: 1965-82 | AP198: £60,000 - £69,999 | AQ198: =CONCATENATE(AO198,AP198) -> 1965-82£60,000 - £69,999 | AR198: 4000 | AS198: 4600 | AT198: 30350 | AU198: 4100 | AV198: 4800 | AW198: 30540 | AX198: n/a | AY198: n/a | AZ198: n/a | BA198: n/a | BB198: n/a | BC198: n/a | BD198: n/a | BE198: n/a | BF198: n/a | BG198: n/a | BH198: n/a | BI198: n/a | BJ198: n/a | BK198: n/a | BL198: n/a | BM198: n/a | BN198: n/a | BO198: n/a | BP198: 14600 | BQ198: 15500 | BR198: 25160 | BS198: 14500 | BT198: 15500 | BU198: 26340 | BV198: n/a | BW198: n/a | BX198: n/a | BY198: n/a | BZ198: n/a | CA198: n/a | CB198: n/a | CC198: n/a | CD198: n/a | CE198: n/a | CF198: n/a | CG198: n/a | CH198: n/a | CI198: n/a | CJ198: n/a | CK198: n/a | CL198: n/a | CM198: n/a
AN199: 187 | AO199: 1983-92 | AP199: £60,000 - £69,999 | AQ199: 1983-92£60,000 - £69,999 | AR199: 4100 | AS199: 4800 | AT199: 14720 | AU199: 4200 | AV199: 4900 | AW199: 14800 | AX199: n/a | AY199: n/a | AZ199: n/a | BA199: n/a | BB199: n/a | BC199: n/a | BD199: n/a | BE199: n/a | BF199: n/a | BG199: n/a | BH199: n/a | BI199: n/a | BJ199: n/a | BK199: n/a | BL199: n/a | BM199: n/a | BN199: n/a | BO199: n/a | BP199: 14100 | BQ199: 14900 | BR199: 11730 | BS199: 13900 | BT199: 14800 | BU199: 12250 | BV199: n/a | BW199: n/a | BX199: n/a | BY199: n/a | BZ199: n/a | CA199: n/a | CB199: n/a | CC199: n/a | CD199: n/a | CE199: n/a | CF199: n/a | CG199: n/a | CH199: n/a | CI199: n/a | CJ199: n/a | CK199: n/a | CL199: n/a | CM199: n/a
AN200: 188 | AO200: 1993-99 | AP200: £60,000 - £69,999 | AQ200: 1993-99£60,000 - £69,999 | AR200: 4000 | AS200: 4700 | AT200: 13270 | AU200: 4200 | AV200: 4800 | AW200: 13310 | AX200: n/a | AY200: n/a | AZ200: n/a | BA200: n/a | BB200: n/a | BC200: n/a | BD200: n/a | BE200: n/a | BF200: n/a | BG200: n/a | BH200: n/a | BI200: n/a | BJ200: n/a | BK200: n/a | BL200: n/a | BM200: n/a | BN200: n/a | BO200: n/a | BP200: 14100 | BQ200: 15000 | BR200: 10920 | BS200: 14000 | BT200: 14900 | BU200: 11400 | BV200: n/a | BW200: n/a | BX200: n/a | BY200: n/a | BZ200: n/a | CA200: n/a | CB200: n/a | CC200: n/a | CD200: n/a | CE200: n/a | CF200: n/a | CG200: n/a | CH200: n/a | CI200: n/a | CJ200: n/a | CK200: n/a | CL200: n/a | CM200: n/a
AN201: 189 | AO201: Post 1999 | AP201: £60,000 - £69,999 | AQ201: Post 1999£60,000 - £69,999 | AR201: 3800 | AS201: 4500 | AT201: 16270 | AU201: 3900 | AV201: 4600 | AW201: 16280 | AX201: n/a | AY201: n/a | AZ201: n/a | BA201: n/a | BB201: n/a | BC201: n/a | BD201: n/a | BE201: n/a | BF201: n/a | BG201: n/a | BH201: n/a | BI201: n/a | BJ201: n/a | BK201: n/a | BL201: n/a | BM201: n/a | BN201: n/a | BO201: n/a | BP201: 12800 | BQ201: 13800 | BR201: 9290 | BS201: 12900 | BT201: 13900 | BU201: 10290 | BV201: n/a | BW201: n/a | BX201: n/a | BY201: n/a | BZ201: n/a | CA201: n/a | CB201: n/a | CC201: n/a | CD201: n/a | CE201: n/a | CF201: n/a | CG201: n/a | CH201: n/a | CI201: n/a | CJ201: n/a | CK201: n/a | CL201: n/a | CM201: n/a
... 871 more rows
